Workbook

Sheet Mercantil
C3: Joao Marques | H3: Hoja de balance
C6: Descripción | F6: Balance inicial a partir de: 01/01/2013
C7: Cobros y gastos del año 2013 | H7: 1000
G8: Deposito en Mercantil al 31/12/12 En Fondo Comun al 30/12/12 Total = 1000,00
C11: Fecha | D11: Descripción del elemento | G11: Cobros | H11: Gastos | I11: Balance
C12: 2014-05-04 | D12: dsssssfsdfsf | G12: 50000 | I12: =IF(OR(G12>0, H12>0),($H$7+SUM($G$12:G12))-SUM($H$12:H12),"") -> 51000
C13: 2014-07-07 | D13: ggfgfh | H13: 35000 | I13: =IF(OR(G13>0, H13>0),($H$7+SUM($G$12:G13))-SUM($H$12:H13),"") -> 16000
I14: =IF(OR(G14>0, H14>0),($H$7+SUM($G$12:G14))-SUM($H$12:H14),"") -> 
I15: =IF(OR(G15>0, H15>0),($H$7+SUM($G$12:G15))-SUM($H$12:H15),"") -> 
I16: =IF(OR(G16>0, H16>0),($H$7+SUM($G$12:G16))-SUM($H$12:H16),"") -> 
I17: =IF(OR(G17>0, H17>0),($H$7+SUM($G$12:G17))-SUM($H$12:H17),"") -> 
I18: =IF(OR(G18>0, H18>0),($H$7+SUM($G$12:G18))-SUM($H$12:H18),"") -> 
I19: =IF(OR(G19>0, H19>0),($H$7+SUM($G$12:G19))-SUM($H$12:H19),"") -> 
I20: =IF(OR(G20>0, H20>0),($H$7+SUM($G$12:G20))-SUM($H$12:H20),"") -> 
I21: =IF(OR(G21>0, H21>0),($H$7+SUM($G$12:G21))-SUM($H$12:H21),"") -> 
I22: =IF(OR(G22>0, H22>0),($H$7+SUM($G$12:G22))-SUM($H$12:H22),"") -> 
I23: =IF(OR(G23>0, H23>0),($H$7+SUM($G$12:G23))-SUM($H$12:H23),"") -> 
I24: =IF(OR(G24>0, H24>0),($H$7+SUM($G$12:G24))-SUM($H$12:H24),"") -> 
I25: =IF(OR(G25>0, H25>0),($H$7+SUM($G$12:G25))-SUM($H$12:H25),"") -> 
I26: =IF(OR(G26>0, H26>0),($H$7+SUM($G$12:G26))-SUM($H$12:H26),"") -> 
I27: =IF(OR(G27>0, H27>0),($H$7+SUM($G$12:G27))-SUM($H$12:H27),"") -> 
I28: =IF(OR(G28>0, H28>0),($H$7+SUM($G$12:G28))-SUM($H$12:H28),"") -> 
I29: =IF(OR(G29>0, H29>0),($H$7+SUM($G$12:G29))-SUM($H$12:H29),"") -> 
I30: =IF(OR(G30>0, H30>0),($H$7+SUM($G$12:G30))-SUM($H$12:H30),"") -> 
I31: =IF(OR(G31>0, H31>0),($H$7+SUM($G$12:G31))-SUM($H$12:H31),"") -> 
I32: =IF(OR(G32>0, H32>0),($H$7+SUM($G$12:G32))-SUM($H$12:H32),"") -> 
I33: =IF(OR(G33>0, H33>0),($H$7+SUM($G$12:G33))-SUM($H$12:H33),"") -> 
I34: =IF(OR(G34>0, H34>0),($H$7+SUM($G$12:G34))-SUM($H$12:H34),"") -> 
I35: =IF(OR(G35>0, H35>0),($H$7+SUM($G$12:G35))-SUM($H$12:H35),"") -> 
I36: =IF(OR(G36>0, H36>0),($H$7+SUM($G$12:G36))-SUM($H$12:H36),"") -> 
I37: =IF(OR(G37>0, H37>0),($H$7+SUM($G$12:G37))-SUM($H$12:H37),"") -> 
I38: =IF(OR(G38>0, H38>0),($H$7+SUM($G$12:G38))-SUM($H$12:H38),"") -> 
I39: =IF(OR(G39>0, H39>0),($H$7+SUM($G$12:G39))-SUM($H$12:H39),"") -> 
I40: =IF(OR(G40>0, H40>0),($H$7+SUM($G$12:G40))-SUM($H$12:H40),"") -> 
I41: =IF(OR(G41>0, H41>0),($H$7+SUM($G$12:G41))-SUM($H$12:H41),"") -> 
I42: =IF(OR(G42>0, H42>0),($H$7+SUM($G$12:G42))-SUM($H$12:H42),"") -> 
I43: =IF(OR(G43>0, H43>0),($H$7+SUM($G$12:G43))-SUM($H$12:H43),"") -> 
I44: =IF(OR(G44>0, H44>0),($H$7+SUM($G$12:G44))-SUM($H$12:H44),"") -> 
I45: =IF(OR(G45>0, H45>0),($H$7+SUM($G$12:G45))-SUM($H$12:H45),"") -> 
I46: =IF(OR(G46>0, H46>0),($H$7+SUM($G$12:G46))-SUM($H$12:H46),"") -> 
I47: =IF(OR(G47>0, H47>0),($H$7+SUM($G$12:G47))-SUM($H$12:H47),"") -> 
I48: =IF(OR(G48>0, H48>0),($H$7+SUM($G$12:G48))-SUM($H$12:H48),"") -> 
I49: =IF(OR(G49>0, H49>0),($H$7+SUM($G$12:G49))-SUM($H$12:H49),"") -> 
I50: =IF(OR(G50>0, H50>0),($H$7+SUM($G$12:G50))-SUM($H$12:H50),"") -> 
I51: =IF(OR(G51>0, H51>0),($H$7+SUM($G$12:G51))-SUM($H$12:H51),"") -> 
I52: =IF(OR(G52>0, H52>0),($H$7+SUM($G$12:G52))-SUM($H$12:H52),"") -> 
I53: =IF(OR(G53>0, H53>0),($H$7+SUM($G$12:G53))-SUM($H$12:H53),"") -> 
I54: =IF(OR(G54>0, H54>0),($H$7+SUM($G$12:G54))-SUM($H$12:H54),"") -> 
I55: =IF(OR(G55>0, H55>0),($H$7+SUM($G$12:G55))-SUM($H$12:H55),"") -> 
I56: =IF(OR(G56>0, H56>0),($H$7+SUM($G$12:G56))-SUM($H$12:H56),"") -> 
I57: =IF(OR(G57>0, H57>0),($H$7+SUM($G$12:G57))-SUM($H$12:H57),"") -> 
I58: =IF(OR(G58>0, H58>0),($H$7+SUM($G$12:G58))-SUM($H$12:H58),"") -> 
I59: =IF(OR(G59>0, H59>0),($H$7+SUM($G$12:G59))-SUM($H$12:H59),"") -> 
I60: =IF(OR(G60>0, H60>0),($H$7+SUM($G$12:G60))-SUM($H$12:H60),"") -> 
I61: =IF(OR(G61>0, H61>0),($H$7+SUM($G$12:G61))-SUM($H$12:H61),"") -> 
I62: =IF(OR(G62>0, H62>0),($H$7+SUM($G$12:G62))-SUM($H$12:H62),"") -> 
I63: =IF(OR(G63>0, H63>0),($H$7+SUM($G$12:G63))-SUM($H$12:H63),"") -> 
I64: =IF(OR(G64>0, H64>0),($H$7+SUM($G$12:G64))-SUM($H$12:H64),"") -> 
I65: =IF(OR(G65>0, H65>0),($H$7+SUM($G$12:G65))-SUM($H$12:H65),"") -> 
I66: =IF(OR(G66>0, H66>0),($H$7+SUM($G$12:G66))-SUM($H$12:H66),"") -> 
I67: =IF(OR(G67>0, H67>0),($H$7+SUM($G$12:G67))-SUM($H$12:H67),"") -> 
I68: =IF(OR(G68>0, H68>0),($H$7+SUM($G$12:G68))-SUM($H$12:H68),"") -> 
I69: =IF(OR(G69>0, H69>0),($H$7+SUM($G$12:G69))-SUM($H$12:H69),"") -> 
I70: =IF(OR(G70>0, H70>0),($H$7+SUM($G$12:G70))-SUM($H$12:H70),"") -> 
I71: =IF(OR(G71>0, H71>0),($H$7+SUM($G$12:G71))-SUM($H$12:H71),"") -> 
I72: =IF(OR(G72>0, H72>0),($H$7+SUM($G$12:G72))-SUM($H$12:H72),"") -> 
I73: =IF(OR(G73>0, H73>0),($H$7+SUM($G$12:G73))-SUM($H$12:H73),"") -> 
I74: =IF(OR(G74>0, H74>0),($H$7+SUM($G$12:G74))-SUM($H$12:H74),"") -> 
I75: =IF(OR(G75>0, H75>0),($H$7+SUM($G$12:G75))-SUM($H$12:H75),"") -> 
I76: =IF(OR(G76>0, H76>0),($H$7+SUM($G$12:G76))-SUM($H$12:H76),"") -> 
I77: =IF(OR(G77>0, H77>0),($H$7+SUM($G$12:G77))-SUM($H$12:H77),"") -> 
I78: =IF(OR(G78>0, H78>0),($H$7+SUM($G$12:G78))-SUM($H$12:H78),"") -> 
I79: =IF(OR(G79>0, H79>0),($H$7+SUM($G$12:G79))-SUM($H$12:H79),"") -> 
I80: =IF(OR(G80>0, H80>0),($H$7+SUM($G$12:G80))-SUM($H$12:H80),"") -> 
I81: =IF(OR(G81>0, H81>0),($H$7+SUM($G$12:G81))-SUM($H$12:H81),"") -> 
I82: =IF(OR(G82>0, H82>0),($H$7+SUM($G$12:G82))-SUM($H$12:H82),"") -> 
I83: =IF(OR(G83>0, H83>0),($H$7+SUM($G$12:G83))-SUM($H$12:H83),"") -> 
I84: =IF(OR(G84>0, H84>0),($H$7+SUM($G$12:G84))-SUM($H$12:H84),"") -> 
I85: =IF(OR(G85>0, H85>0),($H$7+SUM($G$12:G85))-SUM($H$12:H85),"") -> 
I86: =IF(OR(G86>0, H86>0),($H$7+SUM($G$12:G86))-SUM($H$12:H86),"") -> 
I87: =IF(OR(G87>0, H87>0),($H$7+SUM($G$12:G87))-SUM($H$12:H87),"") -> 
I88: =IF(OR(G88>0, H88>0),($H$7+SUM($G$12:G88))-SUM($H$12:H88),"") -> 
I89: =IF(OR(G89>0, H89>0),($H$7+SUM($G$12:G89))-SUM($H$12:H89),"") -> 
I90: =IF(OR(G90>0, H90>0),($H$7+SUM($G$12:G90))-SUM($H$12:H90),"") -> 
I91: =IF(OR(G91>0, H91>0),($H$7+SUM($G$12:G91))-SUM($H$12:H91),"") -> 
I92: =IF(OR(G92>0, H92>0),($H$7+SUM($G$12:G92))-SUM($H$12:H92),"") -> 
I93: =IF(OR(G93>0, H93>0),($H$7+SUM($G$12:G93))-SUM($H$12:H93),"") -> 
I94: =IF(OR(G94>0, H94>0),($H$7+SUM($G$12:G94))-SUM($H$12:H94),"") -> 
I95: =IF(OR(G95>0, H95>0),($H$7+SUM($G$12:G95))-SUM($H$12:H95),"") -> 
I96: =IF(OR(G96>0, H96>0),($H$7+SUM($G$12:G96))-SUM($H$12:H96),"") -> 
I97: =IF(OR(G97>0, H97>0),($H$7+SUM($G$12:G97))-SUM($H$12:H97),"") -> 
I98: =IF(OR(G98>0, H98>0),($H$7+SUM($G$12:G98))-SUM($H$12:H98),"") -> 
I99: =IF(OR(G99>0, H99>0),($H$7+SUM($G$12:G99))-SUM($H$12:H99),"") -> 
I100: =IF(OR(G100>0, H100>0),($H$7+SUM($G$12:G100))-SUM($H$12:H100),"") -> 
I101: =IF(OR(G101>0, H101>0),($H$7+SUM($G$12:G101))-SUM($H$12:H101),"") -> 
I102: =IF(OR(G102>0, H102>0),($H$7+SUM($G$12:G102))-SUM($H$12:H102),"") -> 
C104: Notas: | D104: Las cantidades emitidas en cheque y depositos, contienen IVA incluido | F104: Cobrado | G104: =SUM(G12:G102) -> 50000
F105: Gastado | G105: =SUM(H12:H102) -> 35000
F106: Saldo actual | G106: =H7+(G104-G105) -> 16000

Sheet Descripcion Mercantil
C1: FECHA | D1: DESCRIPCIÓN | E1: GASTOS | F1: TOTAL
B2: =COUNTIF(Mercantil!$H$12:$H$102, ">0") >= ROW() - 1 -> TRUE | C2: =IF($B2, INDIRECT("Mercantil!C" & SMALL(IF( Mercantil!$H$12:$H$102 = "", "", ROW(Mercantil!$H$12:$H$102)), ROW()-1)), "" ) -> 2014-07-07 | D2: =IF($B2, INDIRECT("Mercantil!D" & SMALL(IF( Mercantil!$H$12:$H$102 = "", "", ROW(Mercantil!$H$12:$H$102)), ROW()-1)), "" ) -> ggfgfh | E2: =IF($B2, INDIRECT("Mercantil!H" & SMALL(IF( Mercantil!$H$12:$H$102 = "", "", ROW(Mercantil!$H$12:$H$102)), ROW()-1)), "" ) -> 35000 | F2: =IF( B2, SUM($E$2:E2), "" ) -> 35000
B3: =COUNTIF(Mercantil!$H$12:$H$102, ">0") >= ROW() - 1 -> FALSE | C3: =IF($B3, INDIRECT("Mercantil!C" & SMALL(IF( Mercantil!$H$12:$H$102 = "", "", ROW(Mercantil!$H$12:$H$102)), ROW()-1)), "" ) ->  | D3: =IF($B3, INDIRECT("Mercantil!D" & SMALL(IF( Mercantil!$H$12:$H$102 = "", "", ROW(Mercantil!$H$12:$H$102)), ROW()-1)), "" ) ->  | E3: =IF($B3, INDIRECT("Mercantil!H" & SMALL(IF( Mercantil!$H$12:$H$102 = "", "", ROW(Mercantil!$H$12:$H$102)), ROW()-1)), "" ) ->  | F3: =IF( B3, SUM($E$2:E3), "" ) -> 
B4: =COUNTIF(Mercantil!$H$12:$H$102, ">0") >= ROW() - 1 -> FALSE | C4: =IF($B4, INDIRECT("Mercantil!C" & SMALL(IF( Mercantil!$H$12:$H$102 = "", "", ROW(Mercantil!$H$12:$H$102)), ROW()-1)), "" ) ->  | D4: =IF($B4, INDIRECT("Mercantil!D" & SMALL(IF( Mercantil!$H$12:$H$102 = "", "", ROW(Mercantil!$H$12:$H$102)), ROW()-1)), "" ) ->  | E4: =IF($B4, INDIRECT("Mercantil!H" & SMALL(IF( Mercantil!$H$12:$H$102 = "", "", ROW(Mercantil!$H$12:$H$102)), ROW()-1)), "" ) ->  | F4: =IF( B4, SUM($E$2:E4), "" ) -> 
B5: =COUNTIF(Mercantil!$H$12:$H$102, ">0") >= ROW() - 1 -> FALSE | C5: =IF($B5, INDIRECT("Mercantil!C" & SMALL(IF( Mercantil!$H$12:$H$102 = "", "", ROW(Mercantil!$H$12:$H$102)), ROW()-1)), "" ) ->  | D5: =IF($B5, INDIRECT("Mercantil!D" & SMALL(IF( Mercantil!$H$12:$H$102 = "", "", ROW(Mercantil!$H$12:$H$102)), ROW()-1)), "" ) ->  | E5: =IF($B5, INDIRECT("Mercantil!H" & SMALL(IF( Mercantil!$H$12:$H$102 = "", "", ROW(Mercantil!$H$12:$H$102)), ROW()-1)), "" ) ->  | F5: =IF( B5, SUM($E$2:E5), "" ) -> 
B6: =COUNTIF(Mercantil!$H$12:$H$102, ">0") >= ROW() - 1 -> FALSE | C6: =IF($B6, INDIRECT("Mercantil!C" & SMALL(IF( Mercantil!$H$12:$H$102 = "", "", ROW(Mercantil!$H$12:$H$102)), ROW()-1)), "" ) ->  | D6: =IF($B6, INDIRECT("Mercantil!D" & SMALL(IF( Mercantil!$H$12:$H$102 = "", "", ROW(Mercantil!$H$12:$H$102)), ROW()-1)), "" ) ->  | E6: =IF($B6, INDIRECT("Mercantil!H" & SMALL(IF( Mercantil!$H$12:$H$102 = "", "", ROW(Mercantil!$H$12:$H$102)), ROW()-1)), "" ) ->  | F6: =IF( B6, SUM($E$2:E6), "" ) -> 
B7: =COUNTIF(Mercantil!$H$12:$H$102, ">0") >= ROW() - 1 -> FALSE | C7: =IF($B7, INDIRECT("Mercantil!C" & SMALL(IF( Mercantil!$H$12:$H$102 = "", "", ROW(Mercantil!$H$12:$H$102)), ROW()-1)), "" ) ->  | D7: =IF($B7, INDIRECT("Mercantil!D" & SMALL(IF( Mercantil!$H$12:$H$102 = "", "", ROW(Mercantil!$H$12:$H$102)), ROW()-1)), "" ) ->  | E7: =IF($B7, INDIRECT("Mercantil!H" & SMALL(IF( Mercantil!$H$12:$H$102 = "", "", ROW(Mercantil!$H$12:$H$102)), ROW()-1)), "" ) ->  | F7: =IF( B7, SUM($E$2:E7), "" ) -> 
B8: =COUNTIF(Mercantil!$H$12:$H$102, ">0") >= ROW() - 1 -> FALSE | C8: =IF($B8, INDIRECT("Mercantil!C" & SMALL(IF( Mercantil!$H$12:$H$102 = "", "", ROW(Mercantil!$H$12:$H$102)), ROW()-1)), "" ) ->  | D8: =IF($B8, INDIRECT("Mercantil!D" & SMALL(IF( Mercantil!$H$12:$H$102 = "", "", ROW(Mercantil!$H$12:$H$102)), ROW()-1)), "" ) ->  | E8: =IF($B8, INDIRECT("Mercantil!H" & SMALL(IF( Mercantil!$H$12:$H$102 = "", "", ROW(Mercantil!$H$12:$H$102)), ROW()-1)), "" ) ->  | F8: =IF( B8, SUM($E$2:E8), "" ) -> 
B9: =COUNTIF(Mercantil!$H$12:$H$102, ">0") >= ROW() - 1 -> FALSE | C9: =IF($B9, INDIRECT("Mercantil!C" & SMALL(IF( Mercantil!$H$12:$H$102 = "", "", ROW(Mercantil!$H$12:$H$102)), ROW()-1)), "" ) ->  | D9: =IF($B9, INDIRECT("Mercantil!D" & SMALL(IF( Mercantil!$H$12:$H$102 = "", "", ROW(Mercantil!$H$12:$H$102)), ROW()-1)), "" ) ->  | E9: =IF($B9, INDIRECT("Mercantil!H" & SMALL(IF( Mercantil!$H$12:$H$102 = "", "", ROW(Mercantil!$H$12:$H$102)), ROW()-1)), "" ) ->  | F9: =IF( B9, SUM($E$2:E9), "" ) -> 
B10: =COUNTIF(Mercantil!$H$12:$H$102, ">0") >= ROW() - 1 -> FALSE | C10: =IF($B10, INDIRECT("Mercantil!C" & SMALL(IF( Mercantil!$H$12:$H$102 = "", "", ROW(Mercantil!$H$12:$H$102)), ROW()-1)), "" ) ->  | D10: =IF($B10, INDIRECT("Mercantil!D" & SMALL(IF( Mercantil!$H$12:$H$102 = "", "", ROW(Mercantil!$H$12:$H$102)), ROW()-1)), "" ) ->  | E10: =IF($B10, INDIRECT("Mercantil!H" & SMALL(IF( Mercantil!$H$12:$H$102 = "", "", ROW(Mercantil!$H$12:$H$102)), ROW()-1)), "" ) ->  | F10: =IF( B10, SUM($E$2:E10), "" ) -> 
B11: =COUNTIF(Mercantil!$H$12:$H$102, ">0") >= ROW() - 1 -> FALSE | C11: =IF($B11, INDIRECT("Mercantil!C" & SMALL(IF( Mercantil!$H$12:$H$102 = "", "", ROW(Mercantil!$H$12:$H$102)), ROW()-1)), "" ) ->  | D11: =IF($B11, INDIRECT("Mercantil!D" & SMALL(IF( Mercantil!$H$12:$H$102 = "", "", ROW(Mercantil!$H$12:$H$102)), ROW()-1)), "" ) ->  | E11: =IF($B11, INDIRECT("Mercantil!H" & SMALL(IF( Mercantil!$H$12:$H$102 = "", "", ROW(Mercantil!$H$12:$H$102)), ROW()-1)), "" ) ->  | F11: =IF( B11, SUM($E$2:E11), "" ) -> 
B12: =COUNTIF(Mercantil!$H$12:$H$102, ">0") >= ROW() - 1 -> FALSE | C12: =IF($B12, INDIRECT("Mercantil!C" & SMALL(IF( Mercantil!$H$12:$H$102 = "", "", ROW(Mercantil!$H$12:$H$102)), ROW()-1)), "" ) ->  | D12: =IF($B12, INDIRECT("Mercantil!D" & SMALL(IF( Mercantil!$H$12:$H$102 = "", "", ROW(Mercantil!$H$12:$H$102)), ROW()-1)), "" ) ->  | E12: =IF($B12, INDIRECT("Mercantil!H" & SMALL(IF( Mercantil!$H$12:$H$102 = "", "", ROW(Mercantil!$H$12:$H$102)), ROW()-1)), "" ) ->  | F12: =IF( B12, SUM($E$2:E12), "" ) -> 
B13: =COUNTIF(Mercantil!$H$12:$H$102, ">0") >= ROW() - 1 -> FALSE | C13: =IF($B13, INDIRECT("Mercantil!C" & SMALL(IF( Mercantil!$H$12:$H$102 = "", "", ROW(Mercantil!$H$12:$H$102)), ROW()-1)), "" ) ->  | D13: =IF($B13, INDIRECT("Mercantil!D" & SMALL(IF( Mercantil!$H$12:$H$102 = "", "", ROW(Mercantil!$H$12:$H$102)), ROW()-1)), "" ) ->  | E13: =IF($B13, INDIRECT("Mercantil!H" & SMALL(IF( Mercantil!$H$12:$H$102 = "", "", ROW(Mercantil!$H$12:$H$102)), ROW()-1)), "" ) ->  | F13: =IF( B13, SUM($E$2:E13), "" ) -> 
B14: =COUNTIF(Mercantil!$H$12:$H$102, ">0") >= ROW() - 1 -> FALSE | C14: =IF($B14, INDIRECT("Mercantil!C" & SMALL(IF( Mercantil!$H$12:$H$102 = "", "", ROW(Mercantil!$H$12:$H$102)), ROW()-1)), "" ) ->  | D14: =IF($B14, INDIRECT("Mercantil!D" & SMALL(IF( Mercantil!$H$12:$H$102 = "", "", ROW(Mercantil!$H$12:$H$102)), ROW()-1)), "" ) ->  | E14: =IF($B14, INDIRECT("Mercantil!H" & SMALL(IF( Mercantil!$H$12:$H$102 = "", "", ROW(Mercantil!$H$12:$H$102)), ROW()-1)), "" ) ->  | F14: =IF( B14, SUM($E$2:E14), "" ) -> 
B15: =COUNTIF(Mercantil!$H$12:$H$102, ">0") >= ROW() - 1 -> FALSE | C15: =IF($B15, INDIRECT("Mercantil!C" & SMALL(IF( Mercantil!$H$12:$H$102 = "", "", ROW(Mercantil!$H$12:$H$102)), ROW()-1)), "" ) ->  | D15: =IF($B15, INDIRECT("Mercantil!D" & SMALL(IF( Mercantil!$H$12:$H$102 = "", "", ROW(Mercantil!$H$12:$H$102)), ROW()-1)), "" ) ->  | E15: =IF($B15, INDIRECT("Mercantil!H" & SMALL(IF( Mercantil!$H$12:$H$102 = "", "", ROW(Mercantil!$H$12:$H$102)), ROW()-1)), "" ) ->  | F15: =IF( B15, SUM($E$2:E15), "" ) -> 
B16: =COUNTIF(Mercantil!$H$12:$H$102, ">0") >= ROW() - 1 -> FALSE | C16: =IF($B16, INDIRECT("Mercantil!C" & SMALL(IF( Mercantil!$H$12:$H$102 = "", "", ROW(Mercantil!$H$12:$H$102)), ROW()-1)), "" ) ->  | D16: =IF($B16, INDIRECT("Mercantil!D" & SMALL(IF( Mercantil!$H$12:$H$102 = "", "", ROW(Mercantil!$H$12:$H$102)), ROW()-1)), "" ) ->  | E16: =IF($B16, INDIRECT("Mercantil!H" & SMALL(IF( Mercantil!$H$12:$H$102 = "", "", ROW(Mercantil!$H$12:$H$102)), ROW()-1)), "" ) ->  | F16: =IF( B16, SUM($E$2:E16), "" ) -> 
B17: =COUNTIF(Mercantil!$H$12:$H$102, ">0") >= ROW() - 1 -> FALSE | C17: =IF($B17, INDIRECT("Mercantil!C" & SMALL(IF( Mercantil!$H$12:$H$102 = "", "", ROW(Mercantil!$H$12:$H$102)), ROW()-1)), "" ) ->  | D17: =IF($B17, INDIRECT("Mercantil!D" & SMALL(IF( Mercantil!$H$12:$H$102 = "", "", ROW(Mercantil!$H$12:$H$102)), ROW()-1)), "" ) ->  | E17: =IF($B17, INDIRECT("Mercantil!H" & SMALL(IF( Mercantil!$H$12:$H$102 = "", "", ROW(Mercantil!$H$12:$H$102)), ROW()-1)), "" ) ->  | F17: =IF( B17, SUM($E$2:E17), "" ) -> 
B18: =COUNTIF(Mercantil!$H$12:$H$102, ">0") >= ROW() - 1 -> FALSE | C18: =IF($B18, INDIRECT("Mercantil!C" & SMALL(IF( Mercantil!$H$12:$H$102 = "", "", ROW(Mercantil!$H$12:$H$102)), ROW()-1)), "" ) ->  | D18: =IF($B18, INDIRECT("Mercantil!D" & SMALL(IF( Mercantil!$H$12:$H$102 = "", "", ROW(Mercantil!$H$12:$H$102)), ROW()-1)), "" ) ->  | E18: =IF($B18, INDIRECT("Mercantil!H" & SMALL(IF( Mercantil!$H$12:$H$102 = "", "", ROW(Mercantil!$H$12:$H$102)), ROW()-1)), "" ) ->  | F18: =IF( B18, SUM($E$2:E18), "" ) -> 
B19: =COUNTIF(Mercantil!$H$12:$H$102, ">0") >= ROW() - 1 -> FALSE | C19: =IF($B19, INDIRECT("Mercantil!C" & SMALL(IF( Mercantil!$H$12:$H$102 = "", "", ROW(Mercantil!$H$12:$H$102)), ROW()-1)), "" ) ->  | D19: =IF($B19, INDIRECT("Mercantil!D" & SMALL(IF( Mercantil!$H$12:$H$102 = "", "", ROW(Mercantil!$H$12:$H$102)), ROW()-1)), "" ) ->  | E19: =IF($B19, INDIRECT("Mercantil!H" & SMALL(IF( Mercantil!$H$12:$H$102 = "", "", ROW(Mercantil!$H$12:$H$102)), ROW()-1)), "" ) ->  | F19: =IF( B19, SUM($E$2:E19), "" ) -> 
B20: =COUNTIF(Mercantil!$H$12:$H$102, ">0") >= ROW() - 1 -> FALSE | C20: =IF($B20, INDIRECT("Mercantil!C" & SMALL(IF( Mercantil!$H$12:$H$102 = "", "", ROW(Mercantil!$H$12:$H$102)), ROW()-1)), "" ) ->  | D20: =IF($B20, INDIRECT("Mercantil!D" & SMALL(IF( Mercantil!$H$12:$H$102 = "", "", ROW(Mercantil!$H$12:$H$102)), ROW()-1)), "" ) ->  | E20: =IF($B20, INDIRECT("Mercantil!H" & SMALL(IF( Mercantil!$H$12:$H$102 = "", "", ROW(Mercantil!$H$12:$H$102)), ROW()-1)), "" ) ->  | F20: =IF( B20, SUM($E$2:E20), "" ) -> 
B21: =COUNTIF(Mercantil!$H$12:$H$102, ">0") >= ROW() - 1 -> FALSE | C21: =IF($B21, INDIRECT("Mercantil!C" & SMALL(IF( Mercantil!$H$12:$H$102 = "", "", ROW(Mercantil!$H$12:$H$102)), ROW()-1)), "" ) ->  | D21: =IF($B21, INDIRECT("Mercantil!D" & SMALL(IF( Mercantil!$H$12:$H$102 = "", "", ROW(Mercantil!$H$12:$H$102)), ROW()-1)), "" ) ->  | E21: =IF($B21, INDIRECT("Mercantil!H" & SMALL(IF( Mercantil!$H$12:$H$102 = "", "", ROW(Mercantil!$H$12:$H$102)), ROW()-1)), "" ) ->  | F21: =IF( B21, SUM($E$2:E21), "" ) -> 
B22: =COUNTIF(Mercantil!$H$12:$H$102, ">0") >= ROW() - 1 -> FALSE | C22: =IF($B22, INDIRECT("Mercantil!C" & SMALL(IF( Mercantil!$H$12:$H$102 = "", "", ROW(Mercantil!$H$12:$H$102)), ROW()-1)), "" ) ->  | D22: =IF($B22, INDIRECT("Mercantil!D" & SMALL(IF( Mercantil!$H$12:$H$102 = "", "", ROW(Mercantil!$H$12:$H$102)), ROW()-1)), "" ) ->  | E22: =IF($B22, INDIRECT("Mercantil!H" & SMALL(IF( Mercantil!$H$12:$H$102 = "", "", ROW(Mercantil!$H$12:$H$102)), ROW()-1)), "" ) ->  | F22: =IF( B22, SUM($E$2:E22), "" ) -> 
B23: =COUNTIF(Mercantil!$H$12:$H$102, ">0") >= ROW() - 1 -> FALSE | C23: =IF($B23, INDIRECT("Mercantil!C" & SMALL(IF( Mercantil!$H$12:$H$102 = "", "", ROW(Mercantil!$H$12:$H$102)), ROW()-1)), "" ) ->  | D23: =IF($B23, INDIRECT("Mercantil!D" & SMALL(IF( Mercantil!$H$12:$H$102 = "", "", ROW(Mercantil!$H$12:$H$102)), ROW()-1)), "" ) ->  | E23: =IF($B23, INDIRECT("Mercantil!H" & SMALL(IF( Mercantil!$H$12:$H$102 = "", "", ROW(Mercantil!$H$12:$H$102)), ROW()-1)), "" ) ->  | F23: =IF( B23, SUM($E$2:E23), "" ) -> 
B24: =COUNTIF(Mercantil!$H$12:$H$102, ">0") >= ROW() - 1 -> FALSE | C24: =IF($B24, INDIRECT("Mercantil!C" & SMALL(IF( Mercantil!$H$12:$H$102 = "", "", ROW(Mercantil!$H$12:$H$102)), ROW()-1)), "" ) ->  | D24: =IF($B24, INDIRECT("Mercantil!D" & SMALL(IF( Mercantil!$H$12:$H$102 = "", "", ROW(Mercantil!$H$12:$H$102)), ROW()-1)), "" ) ->  | E24: =IF($B24, INDIRECT("Mercantil!H" & SMALL(IF( Mercantil!$H$12:$H$102 = "", "", ROW(Mercantil!$H$12:$H$102)), ROW()-1)), "" ) ->  | F24: =IF( B24, SUM($E$2:E24), "" ) -> 
B25: =COUNTIF(Mercantil!$H$12:$H$102, ">0") >= ROW() - 1 -> FALSE | C25: =IF($B25, INDIRECT("Mercantil!C" & SMALL(IF( Mercantil!$H$12:$H$102 = "", "", ROW(Mercantil!$H$12:$H$102)), ROW()-1)), "" ) ->  | D25: =IF($B25, INDIRECT("Mercantil!D" & SMALL(IF( Mercantil!$H$12:$H$102 = "", "", ROW(Mercantil!$H$12:$H$102)), ROW()-1)), "" ) ->  | E25: =IF($B25, INDIRECT("Mercantil!H" & SMALL(IF( Mercantil!$H$12:$H$102 = "", "", ROW(Mercantil!$H$12:$H$102)), ROW()-1)), "" ) ->  | F25: =IF( B25, SUM($E$2:E25), "" ) -> 
B26: =COUNTIF(Mercantil!$H$12:$H$102, ">0") >= ROW() - 1 -> FALSE | C26: =IF($B26, INDIRECT("Mercantil!C" & SMALL(IF( Mercantil!$H$12:$H$102 = "", "", ROW(Mercantil!$H$12:$H$102)), ROW()-1)), "" ) ->  | D26: =IF($B26, INDIRECT("Mercantil!D" & SMALL(IF( Mercantil!$H$12:$H$102 = "", "", ROW(Mercantil!$H$12:$H$102)), ROW()-1)), "" ) ->  | E26: =IF($B26, INDIRECT("Mercantil!H" & SMALL(IF( Mercantil!$H$12:$H$102 = "", "", ROW(Mercantil!$H$12:$H$102)), ROW()-1)), "" ) ->  | F26: =IF( B26, SUM($E$2:E26), "" ) -> 
B27: =COUNTIF(Mercantil!$H$12:$H$102, ">0") >= ROW() - 1 -> FALSE | C27: =IF($B27, INDIRECT("Mercantil!C" & SMALL(IF( Mercantil!$H$12:$H$102 = "", "", ROW(Mercantil!$H$12:$H$102)), ROW()-1)), "" ) ->  | D27: =IF($B27, INDIRECT("Mercantil!D" & SMALL(IF( Mercantil!$H$12:$H$102 = "", "", ROW(Mercantil!$H$12:$H$102)), ROW()-1)), "" ) ->  | E27: =IF($B27, INDIRECT("Mercantil!H" & SMALL(IF( Mercantil!$H$12:$H$102 = "", "", ROW(Mercantil!$H$12:$H$102)), ROW()-1)), "" ) ->  | F27: =IF( B27, SUM($E$2:E27), "" ) -> 
B28: =COUNTIF(Mercantil!$H$12:$H$102, ">0") >= ROW() - 1 -> FALSE | C28: =IF($B28, INDIRECT("Mercantil!C" & SMALL(IF( Mercantil!$H$12:$H$102 = "", "", ROW(Mercantil!$H$12:$H$102)), ROW()-1)), "" ) ->  | D28: =IF($B28, INDIRECT("Mercantil!D" & SMALL(IF( Mercantil!$H$12:$H$102 = "", "", ROW(Mercantil!$H$12:$H$102)), ROW()-1)), "" ) ->  | E28: =IF($B28, INDIRECT("Mercantil!H" & SMALL(IF( Mercantil!$H$12:$H$102 = "", "", ROW(Mercantil!$H$12:$H$102)), ROW()-1)), "" ) ->  | F28: =IF( B28, SUM($E$2:E28), "" ) -> 
B29: =COUNTIF(Mercantil!$H$12:$H$102, ">0") >= ROW() - 1 -> FALSE | C29: =IF($B29, INDIRECT("Mercantil!C" & SMALL(IF( Mercantil!$H$12:$H$102 = "", "", ROW(Mercantil!$H$12:$H$102)), ROW()-1)), "" ) ->  | D29: =IF($B29, INDIRECT("Mercantil!D" & SMALL(IF( Mercantil!$H$12:$H$102 = "", "", ROW(Mercantil!$H$12:$H$102)), ROW()-1)), "" ) ->  | E29: =IF($B29, INDIRECT("Mercantil!H" & SMALL(IF( Mercantil!$H$12:$H$102 = "", "", ROW(Mercantil!$H$12:$H$102)), ROW()-1)), "" ) ->  | F29: =IF( B29, SUM($E$2:E29), "" ) -> 
B30: =COUNTIF(Mercantil!$H$12:$H$102, ">0") >= ROW() - 1 -> FALSE | C30: =IF($B30, INDIRECT("Mercantil!C" & SMALL(IF( Mercantil!$H$12:$H$102 = "", "", ROW(Mercantil!$H$12:$H$102)), ROW()-1)), "" ) ->  | D30: =IF($B30, INDIRECT("Mercantil!D" & SMALL(IF( Mercantil!$H$12:$H$102 = "", "", ROW(Mercantil!$H$12:$H$102)), ROW()-1)), "" ) ->  | E30: =IF($B30, INDIRECT("Mercantil!H" & SMALL(IF( Mercantil!$H$12:$H$102 = "", "", ROW(Mercantil!$H$12:$H$102)), ROW()-1)), "" ) ->  | F30: =IF( B30, SUM($E$2:E30), "" ) -> 
B31: =COUNTIF(Mercantil!$H$12:$H$102, ">0") >= ROW() - 1 -> FALSE | C31: =IF($B31, INDIRECT("Mercantil!C" & SMALL(IF( Mercantil!$H$12:$H$102 = "", "", ROW(Mercantil!$H$12:$H$102)), ROW()-1)), "" ) ->  | D31: =IF($B31, INDIRECT("Mercantil!D" & SMALL(IF( Mercantil!$H$12:$H$102 = "", "", ROW(Mercantil!$H$12:$H$102)), ROW()-1)), "" ) ->  | E31: =IF($B31, INDIRECT("Mercantil!H" & SMALL(IF( Mercantil!$H$12:$H$102 = "", "", ROW(Mercantil!$H$12:$H$102)), ROW()-1)), "" ) ->  | F31: =IF( B31, SUM($E$2:E31), "" ) -> 
B32: =COUNTIF(Mercantil!$H$12:$H$102, ">0") >= ROW() - 1 -> FALSE | C32: =IF($B32, INDIRECT("Mercantil!C" & SMALL(IF( Mercantil!$H$12:$H$102 = "", "", ROW(Mercantil!$H$12:$H$102)), ROW()-1)), "" ) ->  | D32: =IF($B32, INDIRECT("Mercantil!D" & SMALL(IF( Mercantil!$H$12:$H$102 = "", "", ROW(Mercantil!$H$12:$H$102)), ROW()-1)), "" ) ->  | E32: =IF($B32, INDIRECT("Mercantil!H" & SMALL(IF( Mercantil!$H$12:$H$102 = "", "", ROW(Mercantil!$H$12:$H$102)), ROW()-1)), "" ) ->  | F32: =IF( B32, SUM($E$2:E32), "" ) -> 
B33: =COUNTIF(Mercantil!$H$12:$H$102, ">0") >= ROW() - 1 -> FALSE | C33: =IF($B33, INDIRECT("Mercantil!C" & SMALL(IF( Mercantil!$H$12:$H$102 = "", "", ROW(Mercantil!$H$12:$H$102)), ROW()-1)), "" ) ->  | D33: =IF($B33, INDIRECT("Mercantil!D" & SMALL(IF( Mercantil!$H$12:$H$102 = "", "", ROW(Mercantil!$H$12:$H$102)), ROW()-1)), "" ) ->  | E33: =IF($B33, INDIRECT("Mercantil!H" & SMALL(IF( Mercantil!$H$12:$H$102 = "", "", ROW(Mercantil!$H$12:$H$102)), ROW()-1)), "" ) ->  | F33: =IF( B33, SUM($E$2:E33), "" ) -> 
B34: =COUNTIF(Mercantil!$H$12:$H$102, ">0") >= ROW() - 1 -> FALSE | C34: =IF($B34, INDIRECT("Mercantil!C" & SMALL(IF( Mercantil!$H$12:$H$102 = "", "", ROW(Mercantil!$H$12:$H$102)), ROW()-1)), "" ) ->  | D34: =IF($B34, INDIRECT("Mercantil!D" & SMALL(IF( Mercantil!$H$12:$H$102 = "", "", ROW(Mercantil!$H$12:$H$102)), ROW()-1)), "" ) ->  | E34: =IF($B34, INDIRECT("Mercantil!H" & SMALL(IF( Mercantil!$H$12:$H$102 = "", "", ROW(Mercantil!$H$12:$H$102)), ROW()-1)), "" ) ->  | F34: =IF( B34, SUM($E$2:E34), "" ) -> 
B35: =COUNTIF(Mercantil!$H$12:$H$102, ">0") >= ROW() - 1 -> FALSE | C35: =IF($B35, INDIRECT("Mercantil!C" & SMALL(IF( Mercantil!$H$12:$H$102 = "", "", ROW(Mercantil!$H$12:$H$102)), ROW()-1)), "" ) ->  | D35: =IF($B35, INDIRECT("Mercantil!D" & SMALL(IF( Mercantil!$H$12:$H$102 = "", "", ROW(Mercantil!$H$12:$H$102)), ROW()-1)), "" ) ->  | E35: =IF($B35, INDIRECT("Mercantil!H" & SMALL(IF( Mercantil!$H$12:$H$102 = "", "", ROW(Mercantil!$H$12:$H$102)), ROW()-1)), "" ) ->  | F35: =IF( B35, SUM($E$2:E35), "" ) -> 
B36: =COUNTIF(Mercantil!$H$12:$H$102, ">0") >= ROW() - 1 -> FALSE | C36: =IF($B36, INDIRECT("Mercantil!C" & SMALL(IF( Mercantil!$H$12:$H$102 = "", "", ROW(Mercantil!$H$12:$H$102)), ROW()-1)), "" ) ->  | D36: =IF($B36, INDIRECT("Mercantil!D" & SMALL(IF( Mercantil!$H$12:$H$102 = "", "", ROW(Mercantil!$H$12:$H$102)), ROW()-1)), "" ) ->  | E36: =IF($B36, INDIRECT("Mercantil!H" & SMALL(IF( Mercantil!$H$12:$H$102 = "", "", ROW(Mercantil!$H$12:$H$102)), ROW()-1)), "" ) ->  | F36: =IF( B36, SUM($E$2:E36), "" ) -> 
B37: =COUNTIF(Mercantil!$H$12:$H$102, ">0") >= ROW() - 1 -> FALSE | C37: =IF($B37, INDIRECT("Mercantil!C" & SMALL(IF( Mercantil!$H$12:$H$102 = "", "", ROW(Mercantil!$H$12:$H$102)), ROW()-1)), "" ) ->  | D37: =IF($B37, INDIRECT("Mercantil!D" & SMALL(IF( Mercantil!$H$12:$H$102 = "", "", ROW(Mercantil!$H$12:$H$102)), ROW()-1)), "" ) ->  | E37: =IF($B37, INDIRECT("Mercantil!H" & SMALL(IF( Mercantil!$H$12:$H$102 = "", "", ROW(Mercantil!$H$12:$H$102)), ROW()-1)), "" ) ->  | F37: =IF( B37, SUM($E$2:E37), "" ) -> 
B38: =COUNTIF(Mercantil!$H$12:$H$102, ">0") >= ROW() - 1 -> FALSE | C38: =IF($B38, INDIRECT("Mercantil!C" & SMALL(IF( Mercantil!$H$12:$H$102 = "", "", ROW(Mercantil!$H$12:$H$102)), ROW()-1)), "" ) ->  | D38: =IF($B38, INDIRECT("Mercantil!D" & SMALL(IF( Mercantil!$H$12:$H$102 = "", "", ROW(Mercantil!$H$12:$H$102)), ROW()-1)), "" ) ->  | E38: =IF($B38, INDIRECT("Mercantil!H" & SMALL(IF( Mercantil!$H$12:$H$102 = "", "", ROW(Mercantil!$H$12:$H$102)), ROW()-1)), "" ) ->  | F38: =IF( B38, SUM($E$2:E38), "" ) -> 
B39: =COUNTIF(Mercantil!$H$12:$H$102, ">0") >= ROW() - 1 -> FALSE | C39: =IF($B39, INDIRECT("Mercantil!C" & SMALL(IF( Mercantil!$H$12:$H$102 = "", "", ROW(Mercantil!$H$12:$H$102)), ROW()-1)), "" ) ->  | D39: =IF($B39, INDIRECT("Mercantil!D" & SMALL(IF( Mercantil!$H$12:$H$102 = "", "", ROW(Mercantil!$H$12:$H$102)), ROW()-1)), "" ) ->  | E39: =IF($B39, INDIRECT("Mercantil!H" & SMALL(IF( Mercantil!$H$12:$H$102 = "", "", ROW(Mercantil!$H$12:$H$102)), ROW()-1)), "" ) ->  | F39: =IF( B39, SUM($E$2:E39), "" ) -> 
B40: =COUNTIF(Mercantil!$H$12:$H$102, ">0") >= ROW() - 1 -> FALSE | C40: =IF($B40, INDIRECT("Mercantil!C" & SMALL(IF( Mercantil!$H$12:$H$102 = "", "", ROW(Mercantil!$H$12:$H$102)), ROW()-1)), "" ) ->  | D40: =IF($B40, INDIRECT("Mercantil!D" & SMALL(IF( Mercantil!$H$12:$H$102 = "", "", ROW(Mercantil!$H$12:$H$102)), ROW()-1)), "" ) ->  | E40: =IF($B40, INDIRECT("Mercantil!H" & SMALL(IF( Mercantil!$H$12:$H$102 = "", "", ROW(Mercantil!$H$12:$H$102)), ROW()-1)), "" ) ->  | F40: =IF( B40, SUM($E$2:E40), "" ) -> 
B41: =COUNTIF(Mercantil!$H$12:$H$102, ">0") >= ROW() - 1 -> FALSE | C41: =IF($B41, INDIRECT("Mercantil!C" & SMALL(IF( Mercantil!$H$12:$H$102 = "", "", ROW(Mercantil!$H$12:$H$102)), ROW()-1)), "" ) ->  | D41: =IF($B41, INDIRECT("Mercantil!D" & SMALL(IF( Mercantil!$H$12:$H$102 = "", "", ROW(Mercantil!$H$12:$H$102)), ROW()-1)), "" ) ->  | E41: =IF($B41, INDIRECT("Mercantil!H" & SMALL(IF( Mercantil!$H$12:$H$102 = "", "", ROW(Mercantil!$H$12:$H$102)), ROW()-1)), "" ) ->  | F41: =IF( B41, SUM($E$2:E41), "" ) -> 
B42: =COUNTIF(Mercantil!$H$12:$H$102, ">0") >= ROW() - 1 -> FALSE | C42: =IF($B42, INDIRECT("Mercantil!C" & SMALL(IF( Mercantil!$H$12:$H$102 = "", "", ROW(Mercantil!$H$12:$H$102)), ROW()-1)), "" ) ->  | D42: =IF($B42, INDIRECT("Mercantil!D" & SMALL(IF( Mercantil!$H$12:$H$102 = "", "", ROW(Mercantil!$H$12:$H$102)), ROW()-1)), "" ) ->  | E42: =IF($B42, INDIRECT("Mercantil!H" & SMALL(IF( Mercantil!$H$12:$H$102 = "", "", ROW(Mercantil!$H$12:$H$102)), ROW()-1)), "" ) ->  | F42: =IF( B42, SUM($E$2:E42), "" ) -> 
B43: =COUNTIF(Mercantil!$H$12:$H$102, ">0") >= ROW() - 1 -> FALSE | C43: =IF($B43, INDIRECT("Mercantil!C" & SMALL(IF( Mercantil!$H$12:$H$102 = "", "", ROW(Mercantil!$H$12:$H$102)), ROW()-1)), "" ) ->  | D43: =IF($B43, INDIRECT("Mercantil!D" & SMALL(IF( Mercantil!$H$12:$H$102 = "", "", ROW(Mercantil!$H$12:$H$102)), ROW()-1)), "" ) ->  | E43: =IF($B43, INDIRECT("Mercantil!H" & SMALL(IF( Mercantil!$H$12:$H$102 = "", "", ROW(Mercantil!$H$12:$H$102)), ROW()-1)), "" ) ->  | F43: =IF( B43, SUM($E$2:E43), "" ) -> 
B44: =COUNTIF(Mercantil!$H$12:$H$102, ">0") >= ROW() - 1 -> FALSE | C44: =IF($B44, INDIRECT("Mercantil!C" & SMALL(IF( Mercantil!$H$12:$H$102 = "", "", ROW(Mercantil!$H$12:$H$102)), ROW()-1)), "" ) ->  | D44: =IF($B44, INDIRECT("Mercantil!D" & SMALL(IF( Mercantil!$H$12:$H$102 = "", "", ROW(Mercantil!$H$12:$H$102)), ROW()-1)), "" ) ->  | E44: =IF($B44, INDIRECT("Mercantil!H" & SMALL(IF( Mercantil!$H$12:$H$102 = "", "", ROW(Mercantil!$H$12:$H$102)), ROW()-1)), "" ) ->  | F44: =IF( B44, SUM($E$2:E44), "" ) -> 
B45: =COUNTIF(Mercantil!$H$12:$H$102, ">0") >= ROW() - 1 -> FALSE | C45: =IF($B45, INDIRECT("Mercantil!C" & SMALL(IF( Mercantil!$H$12:$H$102 = "", "", ROW(Mercantil!$H$12:$H$102)), ROW()-1)), "" ) ->  | D45: =IF($B45, INDIRECT("Mercantil!D" & SMALL(IF( Mercantil!$H$12:$H$102 = "", "", ROW(Mercantil!$H$12:$H$102)), ROW()-1)), "" ) ->  | E45: =IF($B45, INDIRECT("Mercantil!H" & SMALL(IF( Mercantil!$H$12:$H$102 = "", "", ROW(Mercantil!$H$12:$H$102)), ROW()-1)), "" ) ->  | F45: =IF( B45, SUM($E$2:E45), "" ) -> 
B46: =COUNTIF(Mercantil!$H$12:$H$102, ">0") >= ROW() - 1 -> FALSE | C46: =IF($B46, INDIRECT("Mercantil!C" & SMALL(IF( Mercantil!$H$12:$H$102 = "", "", ROW(Mercantil!$H$12:$H$102)), ROW()-1)), "" ) ->  | D46: =IF($B46, INDIRECT("Mercantil!D" & SMALL(IF( Mercantil!$H$12:$H$102 = "", "", ROW(Mercantil!$H$12:$H$102)), ROW()-1)), "" ) ->  | E46: =IF($B46, INDIRECT("Mercantil!H" & SMALL(IF( Mercantil!$H$12:$H$102 = "", "", ROW(Mercantil!$H$12:$H$102)), ROW()-1)), "" ) ->  | F46: =IF( B46, SUM($E$2:E46), "" ) -> 
B47: =COUNTIF(Mercantil!$H$12:$H$102, ">0") >= ROW() - 1 -> FALSE | C47: =IF($B47, INDIRECT("Mercantil!C" & SMALL(IF( Mercantil!$H$12:$H$102 = "", "", ROW(Mercantil!$H$12:$H$102)), ROW()-1)), "" ) ->  | D47: =IF($B47, INDIRECT("Mercantil!D" & SMALL(IF( Mercantil!$H$12:$H$102 = "", "", ROW(Mercantil!$H$12:$H$102)), ROW()-1)), "" ) ->  | E47: =IF($B47, INDIRECT("Mercantil!H" & SMALL(IF( Mercantil!$H$12:$H$102 = "", "", ROW(Mercantil!$H$12:$H$102)), ROW()-1)), "" ) ->  | F47: =IF( B47, SUM($E$2:E47), "" ) -> 
B48: =COUNTIF(Mercantil!$H$12:$H$102, ">0") >= ROW() - 1 -> FALSE | C48: =IF($B48, INDIRECT("Mercantil!C" & SMALL(IF( Mercantil!$H$12:$H$102 = "", "", ROW(Mercantil!$H$12:$H$102)), ROW()-1)), "" ) ->  | D48: =IF($B48, INDIRECT("Mercantil!D" & SMALL(IF( Mercantil!$H$12:$H$102 = "", "", ROW(Mercantil!$H$12:$H$102)), ROW()-1)), "" ) ->  | E48: =IF($B48, INDIRECT("Mercantil!H" & SMALL(IF( Mercantil!$H$12:$H$102 = "", "", ROW(Mercantil!$H$12:$H$102)), ROW()-1)), "" ) ->  | F48: =IF( B48, SUM($E$2:E48), "" ) -> 
B49: =COUNTIF(Mercantil!$H$12:$H$102, ">0") >= ROW() - 1 -> FALSE | C49: =IF($B49, INDIRECT("Mercantil!C" & SMALL(IF( Mercantil!$H$12:$H$102 = "", "", ROW(Mercantil!$H$12:$H$102)), ROW()-1)), "" ) ->  | D49: =IF($B49, INDIRECT("Mercantil!D" & SMALL(IF( Mercantil!$H$12:$H$102 = "", "", ROW(Mercantil!$H$12:$H$102)), ROW()-1)), "" ) ->  | E49: =IF($B49, INDIRECT("Mercantil!H" & SMALL(IF( Mercantil!$H$12:$H$102 = "", "", ROW(Mercantil!$H$12:$H$102)), ROW()-1)), "" ) ->  | F49: =IF( B49, SUM($E$2:E49), "" ) -> 
B50: =COUNTIF(Mercantil!$H$12:$H$102, ">0") >= ROW() - 1 -> FALSE | C50: =IF($B50, INDIRECT("Mercantil!C" & SMALL(IF( Mercantil!$H$12:$H$102 = "", "", ROW(Mercantil!$H$12:$H$102)), ROW()-1)), "" ) ->  | D50: =IF($B50, INDIRECT("Mercantil!D" & SMALL(IF( Mercantil!$H$12:$H$102 = "", "", ROW(Mercantil!$H$12:$H$102)), ROW()-1)), "" ) ->  | E50: =IF($B50, INDIRECT("Mercantil!H" & SMALL(IF( Mercantil!$H$12:$H$102 = "", "", ROW(Mercantil!$H$12:$H$102)), ROW()-1)), "" ) ->  | F50: =IF( B50, SUM($E$2:E50), "" ) -> 
B51: =COUNTIF(Mercantil!$H$12:$H$102, ">0") >= ROW() - 1 -> FALSE | C51: =IF($B51, INDIRECT("Mercantil!C" & SMALL(IF( Mercantil!$H$12:$H$102 = "", "", ROW(Mercantil!$H$12:$H$102)), ROW()-1)), "" ) ->  | D51: =IF($B51, INDIRECT("Mercantil!D" & SMALL(IF( Mercantil!$H$12:$H$102 = "", "", ROW(Mercantil!$H$12:$H$102)), ROW()-1)), "" ) ->  | E51: =IF($B51, INDIRECT("Mercantil!H" & SMALL(IF( Mercantil!$H$12:$H$102 = "", "", ROW(Mercantil!$H$12:$H$102)), ROW()-1)), "" ) ->  | F51: =IF( B51, SUM($E$2:E51), "" ) -> 
B52: =COUNTIF(Mercantil!$H$12:$H$102, ">0") >= ROW() - 1 -> FALSE | C52: =IF($B52, INDIRECT("Mercantil!C" & SMALL(IF( Mercantil!$H$12:$H$102 = "", "", ROW(Mercantil!$H$12:$H$102)), ROW()-1)), "" ) ->  | D52: =IF($B52, INDIRECT("Mercantil!D" & SMALL(IF( Mercantil!$H$12:$H$102 = "", "", ROW(Mercantil!$H$12:$H$102)), ROW()-1)), "" ) ->  | E52: =IF($B52, INDIRECT("Mercantil!H" & SMALL(IF( Mercantil!$H$12:$H$102 = "", "", ROW(Mercantil!$H$12:$H$102)), ROW()-1)), "" ) ->  | F52: =IF( B52, SUM($E$2:E52), "" ) -> 
B53: =COUNTIF(Mercantil!$H$12:$H$102, ">0") >= ROW() - 1 -> FALSE | C53: =IF($B53, INDIRECT("Mercantil!C" & SMALL(IF( Mercantil!$H$12:$H$102 = "", "", ROW(Mercantil!$H$12:$H$102)), ROW()-1)), "" ) ->  | D53: =IF($B53, INDIRECT("Mercantil!D" & SMALL(IF( Mercantil!$H$12:$H$102 = "", "", ROW(Mercantil!$H$12:$H$102)), ROW()-1)), "" ) ->  | E53: =IF($B53, INDIRECT("Mercantil!H" & SMALL(IF( Mercantil!$H$12:$H$102 = "", "", ROW(Mercantil!$H$12:$H$102)), ROW()-1)), "" ) ->  | F53: =IF( B53, SUM($E$2:E53), "" ) -> 
B54: =COUNTIF(Mercantil!$H$12:$H$102, ">0") >= ROW() - 1 -> FALSE | C54: =IF($B54, INDIRECT("Mercantil!C" & SMALL(IF( Mercantil!$H$12:$H$102 = "", "", ROW(Mercantil!$H$12:$H$102)), ROW()-1)), "" ) ->  | D54: =IF($B54, INDIRECT("Mercantil!D" & SMALL(IF( Mercantil!$H$12:$H$102 = "", "", ROW(Mercantil!$H$12:$H$102)), ROW()-1)), "" ) ->  | E54: =IF($B54, INDIRECT("Mercantil!H" & SMALL(IF( Mercantil!$H$12:$H$102 = "", "", ROW(Mercantil!$H$12:$H$102)), ROW()-1)), "" ) ->  | F54: =IF( B54, SUM($E$2:E54), "" ) -> 
B55: =COUNTIF(Mercantil!$H$12:$H$102, ">0") >= ROW() - 1 -> FALSE | C55: =IF($B55, INDIRECT("Mercantil!C" & SMALL(IF( Mercantil!$H$12:$H$102 = "", "", ROW(Mercantil!$H$12:$H$102)), ROW()-1)), "" ) ->  | D55: =IF($B55, INDIRECT("Mercantil!D" & SMALL(IF( Mercantil!$H$12:$H$102 = "", "", ROW(Mercantil!$H$12:$H$102)), ROW()-1)), "" ) ->  | E55: =IF($B55, INDIRECT("Mercantil!H" & SMALL(IF( Mercantil!$H$12:$H$102 = "", "", ROW(Mercantil!$H$12:$H$102)), ROW()-1)), "" ) ->  | F55: =IF( B55, SUM($E$2:E55), "" ) -> 
B56: =COUNTIF(Mercantil!$H$12:$H$102, ">0") >= ROW() - 1 -> FALSE | C56: =IF($B56, INDIRECT("Mercantil!C" & SMALL(IF( Mercantil!$H$12:$H$102 = "", "", ROW(Mercantil!$H$12:$H$102)), ROW()-1)), "" ) ->  | D56: =IF($B56, INDIRECT("Mercantil!D" & SMALL(IF( Mercantil!$H$12:$H$102 = "", "", ROW(Mercantil!$H$12:$H$102)), ROW()-1)), "" ) ->  | E56: =IF($B56, INDIRECT("Mercantil!H" & SMALL(IF( Mercantil!$H$12:$H$102 = "", "", ROW(Mercantil!$H$12:$H$102)), ROW()-1)), "" ) ->  | F56: =IF( B56, SUM($E$2:E56), "" ) -> 
B57: =COUNTIF(Mercantil!$H$12:$H$102, ">0") >= ROW() - 1 -> FALSE | C57: =IF($B57, INDIRECT("Mercantil!C" & SMALL(IF( Mercantil!$H$12:$H$102 = "", "", ROW(Mercantil!$H$12:$H$102)), ROW()-1)), "" ) ->  | D57: =IF($B57, INDIRECT("Mercantil!D" & SMALL(IF( Mercantil!$H$12:$H$102 = "", "", ROW(Mercantil!$H$12:$H$102)), ROW()-1)), "" ) ->  | E57: =IF($B57, INDIRECT("Mercantil!H" & SMALL(IF( Mercantil!$H$12:$H$102 = "", "", ROW(Mercantil!$H$12:$H$102)), ROW()-1)), "" ) ->  | F57: =IF( B57, SUM($E$2:E57), "" ) -> 
B58: =COUNTIF(Mercantil!$H$12:$H$102, ">0") >= ROW() - 1 -> FALSE | C58: =IF($B58, INDIRECT("Mercantil!C" & SMALL(IF( Mercantil!$H$12:$H$102 = "", "", ROW(Mercantil!$H$12:$H$102)), ROW()-1)), "" ) ->  | D58: =IF($B58, INDIRECT("Mercantil!D" & SMALL(IF( Mercantil!$H$12:$H$102 = "", "", ROW(Mercantil!$H$12:$H$102)), ROW()-1)), "" ) ->  | E58: =IF($B58, INDIRECT("Mercantil!H" & SMALL(IF( Mercantil!$H$12:$H$102 = "", "", ROW(Mercantil!$H$12:$H$102)), ROW()-1)), "" ) ->  | F58: =IF( B58, SUM($E$2:E58), "" ) -> 
B59: =COUNTIF(Mercantil!$H$12:$H$102, ">0") >= ROW() - 1 -> FALSE | C59: =IF($B59, INDIRECT("Mercantil!C" & SMALL(IF( Mercantil!$H$12:$H$102 = "", "", ROW(Mercantil!$H$12:$H$102)), ROW()-1)), "" ) ->  | D59: =IF($B59, INDIRECT("Mercantil!D" & SMALL(IF( Mercantil!$H$12:$H$102 = "", "", ROW(Mercantil!$H$12:$H$102)), ROW()-1)), "" ) ->  | E59: =IF($B59, INDIRECT("Mercantil!H" & SMALL(IF( Mercantil!$H$12:$H$102 = "", "", ROW(Mercantil!$H$12:$H$102)), ROW()-1)), "" ) ->  | F59: =IF( B59, SUM($E$2:E59), "" ) -> 
B60: =COUNTIF(Mercantil!$H$12:$H$102, ">0") >= ROW() - 1 -> FALSE | C60: =IF($B60, INDIRECT("Mercantil!C" & SMALL(IF( Mercantil!$H$12:$H$102 = "", "", ROW(Mercantil!$H$12:$H$102)), ROW()-1)), "" ) ->  | D60: =IF($B60, INDIRECT("Mercantil!D" & SMALL(IF( Mercantil!$H$12:$H$102 = "", "", ROW(Mercantil!$H$12:$H$102)), ROW()-1)), "" ) ->  | E60: =IF($B60, INDIRECT("Mercantil!H" & SMALL(IF( Mercantil!$H$12:$H$102 = "", "", ROW(Mercantil!$H$12:$H$102)), ROW()-1)), "" ) ->  | F60: =IF( B60, SUM($E$2:E60), "" ) -> 
B61: =COUNTIF(Mercantil!$H$12:$H$102, ">0") >= ROW() - 1 -> FALSE | C61: =IF($B61, INDIRECT("Mercantil!C" & SMALL(IF( Mercantil!$H$12:$H$102 = "", "", ROW(Mercantil!$H$12:$H$102)), ROW()-1)), "" ) ->  | D61: =IF($B61, INDIRECT("Mercantil!D" & SMALL(IF( Mercantil!$H$12:$H$102 = "", "", ROW(Mercantil!$H$12:$H$102)), ROW()-1)), "" ) ->  | E61: =IF($B61, INDIRECT("Mercantil!H" & SMALL(IF( Mercantil!$H$12:$H$102 = "", "", ROW(Mercantil!$H$12:$H$102)), ROW()-1)), "" ) ->  | F61: =IF( B61, SUM($E$2:E61), "" ) -> 
B62: =COUNTIF(Mercantil!$H$12:$H$102, ">0") >= ROW() - 1 -> FALSE | C62: =IF($B62, INDIRECT("Mercantil!C" & SMALL(IF( Mercantil!$H$12:$H$102 = "", "", ROW(Mercantil!$H$12:$H$102)), ROW()-1)), "" ) ->  | D62: =IF($B62, INDIRECT("Mercantil!D" & SMALL(IF( Mercantil!$H$12:$H$102 = "", "", ROW(Mercantil!$H$12:$H$102)), ROW()-1)), "" ) ->  | E62: =IF($B62, INDIRECT("Mercantil!H" & SMALL(IF( Mercantil!$H$12:$H$102 = "", "", ROW(Mercantil!$H$12:$H$102)), ROW()-1)), "" ) ->  | F62: =IF( B62, SUM($E$2:E62), "" ) -> 
B63: =COUNTIF(Mercantil!$H$12:$H$102, ">0") >= ROW() - 1 -> FALSE | C63: =IF($B63, INDIRECT("Mercantil!C" & SMALL(IF( Mercantil!$H$12:$H$102 = "", "", ROW(Mercantil!$H$12:$H$102)), ROW()-1)), "" ) ->  | D63: =IF($B63, INDIRECT("Mercantil!D" & SMALL(IF( Mercantil!$H$12:$H$102 = "", "", ROW(Mercantil!$H$12:$H$102)), ROW()-1)), "" ) ->  | E63: =IF($B63, INDIRECT("Mercantil!H" & SMALL(IF( Mercantil!$H$12:$H$102 = "", "", ROW(Mercantil!$H$12:$H$102)), ROW()-1)), "" ) ->  | F63: =IF( B63, SUM($E$2:E63), "" ) -> 
B64: =COUNTIF(Mercantil!$H$12:$H$102, ">0") >= ROW() - 1 -> FALSE | C64: =IF($B64, INDIRECT("Mercantil!C" & SMALL(IF( Mercantil!$H$12:$H$102 = "", "", ROW(Mercantil!$H$12:$H$102)), ROW()-1)), "" ) ->  | D64: =IF($B64, INDIRECT("Mercantil!D" & SMALL(IF( Mercantil!$H$12:$H$102 = "", "", ROW(Mercantil!$H$12:$H$102)), ROW()-1)), "" ) ->  | E64: =IF($B64, INDIRECT("Mercantil!H" & SMALL(IF( Mercantil!$H$12:$H$102 = "", "", ROW(Mercantil!$H$12:$H$102)), ROW()-1)), "" ) ->  | F64: =IF( B64, SUM($E$2:E64), "" ) -> 
B65: =COUNTIF(Mercantil!$H$12:$H$102, ">0") >= ROW() - 1 -> FALSE | C65: =IF($B65, INDIRECT("Mercantil!C" & SMALL(IF( Mercantil!$H$12:$H$102 = "", "", ROW(Mercantil!$H$12:$H$102)), ROW()-1)), "" ) ->  | D65: =IF($B65, INDIRECT("Mercantil!D" & SMALL(IF( Mercantil!$H$12:$H$102 = "", "", ROW(Mercantil!$H$12:$H$102)), ROW()-1)), "" ) ->  | E65: =IF($B65, INDIRECT("Mercantil!H" & SMALL(IF( Mercantil!$H$12:$H$102 = "", "", ROW(Mercantil!$H$12:$H$102)), ROW()-1)), "" ) ->  | F65: =IF( B65, SUM($E$2:E65), "" ) -> 
B66: =COUNTIF(Mercantil!$H$12:$H$102, ">0") >= ROW() - 1 -> FALSE | C66: =IF($B66, INDIRECT("Mercantil!C" & SMALL(IF( Mercantil!$H$12:$H$102 = "", "", ROW(Mercantil!$H$12:$H$102)), ROW()-1)), "" ) ->  | D66: =IF($B66, INDIRECT("Mercantil!D" & SMALL(IF( Mercantil!$H$12:$H$102 = "", "", ROW(Mercantil!$H$12:$H$102)), ROW()-1)), "" ) ->  | E66: =IF($B66, INDIRECT("Mercantil!H" & SMALL(IF( Mercantil!$H$12:$H$102 = "", "", ROW(Mercantil!$H$12:$H$102)), ROW()-1)), "" ) ->  | F66: =IF( B66, SUM($E$2:E66), "" ) -> 
B67: =COUNTIF(Mercantil!$H$12:$H$102, ">0") >= ROW() - 1 -> FALSE | C67: =IF($B67, INDIRECT("Mercantil!C" & SMALL(IF( Mercantil!$H$12:$H$102 = "", "", ROW(Mercantil!$H$12:$H$102)), ROW()-1)), "" ) ->  | D67: =IF($B67, INDIRECT("Mercantil!D" & SMALL(IF( Mercantil!$H$12:$H$102 = "", "", ROW(Mercantil!$H$12:$H$102)), ROW()-1)), "" ) ->  | E67: =IF($B67, INDIRECT("Mercantil!H" & SMALL(IF( Mercantil!$H$12:$H$102 = "", "", ROW(Mercantil!$H$12:$H$102)), ROW()-1)), "" ) ->  | F67: =IF( B67, SUM($E$2:E67), "" ) -> 
B68: =COUNTIF(Mercantil!$H$12:$H$102, ">0") >= ROW() - 1 -> FALSE | C68: =IF($B68, INDIRECT("Mercantil!C" & SMALL(IF( Mercantil!$H$12:$H$102 = "", "", ROW(Mercantil!$H$12:$H$102)), ROW()-1)), "" ) ->  | D68: =IF($B68, INDIRECT("Mercantil!D" & SMALL(IF( Mercantil!$H$12:$H$102 = "", "", ROW(Mercantil!$H$12:$H$102)), ROW()-1)), "" ) ->  | E68: =IF($B68, INDIRECT("Mercantil!H" & SMALL(IF( Mercantil!$H$12:$H$102 = "", "", ROW(Mercantil!$H$12:$H$102)), ROW()-1)), "" ) ->  | F68: =IF( B68, SUM($E$2:E68), "" ) -> 
B69: =COUNTIF(Mercantil!$H$12:$H$102, ">0") >= ROW() - 1 -> FALSE | C69: =IF($B69, INDIRECT("Mercantil!C" & SMALL(IF( Mercantil!$H$12:$H$102 = "", "", ROW(Mercantil!$H$12:$H$102)), ROW()-1)), "" ) ->  | D69: =IF($B69, INDIRECT("Mercantil!D" & SMALL(IF( Mercantil!$H$12:$H$102 = "", "", ROW(Mercantil!$H$12:$H$102)), ROW()-1)), "" ) ->  | E69: =IF($B69, INDIRECT("Mercantil!H" & SMALL(IF( Mercantil!$H$12:$H$102 = "", "", ROW(Mercantil!$H$12:$H$102)), ROW()-1)), "" ) ->  | F69: =IF( B69, SUM($E$2:E69), "" ) -> 
B70: =COUNTIF(Mercantil!$H$12:$H$102, ">0") >= ROW() - 1 -> FALSE | C70: =IF($B70, INDIRECT("Mercantil!C" & SMALL(IF( Mercantil!$H$12:$H$102 = "", "", ROW(Mercantil!$H$12:$H$102)), ROW()-1)), "" ) ->  | D70: =IF($B70, INDIRECT("Mercantil!D" & SMALL(IF( Mercantil!$H$12:$H$102 = "", "", ROW(Mercantil!$H$12:$H$102)), ROW()-1)), "" ) ->  | E70: =IF($B70, INDIRECT("Mercantil!H" & SMALL(IF( Mercantil!$H$12:$H$102 = "", "", ROW(Mercantil!$H$12:$H$102)), ROW()-1)), "" ) ->  | F70: =IF( B70, SUM($E$2:E70), "" ) -> 
B71: =COUNTIF(Mercantil!$H$12:$H$102, ">0") >= ROW() - 1 -> FALSE | C71: =IF($B71, INDIRECT("Mercantil!C" & SMALL(IF( Mercantil!$H$12:$H$102 = "", "", ROW(Mercantil!$H$12:$H$102)), ROW()-1)), "" ) ->  | D71: =IF($B71, INDIRECT("Mercantil!D" & SMALL(IF( Mercantil!$H$12:$H$102 = "", "", ROW(Mercantil!$H$12:$H$102)), ROW()-1)), "" ) ->  | E71: =IF($B71, INDIRECT("Mercantil!H" & SMALL(IF( Mercantil!$H$12:$H$102 = "", "", ROW(Mercantil!$H$12:$H$102)), ROW()-1)), "" ) ->  | F71: =IF( B71, SUM($E$2:E71), "" ) -> 
B72: =COUNTIF(Mercantil!$H$12:$H$102, ">0") >= ROW() - 1 -> FALSE | C72: =IF($B72, INDIRECT("Mercantil!C" & SMALL(IF( Mercantil!$H$12:$H$102 = "", "", ROW(Mercantil!$H$12:$H$102)), ROW()-1)), "" ) ->  | D72: =IF($B72, INDIRECT("Mercantil!D" & SMALL(IF( Mercantil!$H$12:$H$102 = "", "", ROW(Mercantil!$H$12:$H$102)), ROW()-1)), "" ) ->  | E72: =IF($B72, INDIRECT("Mercantil!H" & SMALL(IF( Mercantil!$H$12:$H$102 = "", "", ROW(Mercantil!$H$12:$H$102)), ROW()-1)), "" ) ->  | F72: =IF( B72, SUM($E$2:E72), "" ) -> 
B73: =COUNTIF(Mercantil!$H$12:$H$102, ">0") >= ROW() - 1 -> FALSE | C73: =IF($B73, INDIRECT("Mercantil!C" & SMALL(IF( Mercantil!$H$12:$H$102 = "", "", ROW(Mercantil!$H$12:$H$102)), ROW()-1)), "" ) ->  | D73: =IF($B73, INDIRECT("Mercantil!D" & SMALL(IF( Mercantil!$H$12:$H$102 = "", "", ROW(Mercantil!$H$12:$H$102)), ROW()-1)), "" ) ->  | E73: =IF($B73, INDIRECT("Mercantil!H" & SMALL(IF( Mercantil!$H$12:$H$102 = "", "", ROW(Mercantil!$H$12:$H$102)), ROW()-1)), "" ) ->  | F73: =IF( B73, SUM($E$2:E73), "" ) -> 
B74: =COUNTIF(Mercantil!$H$12:$H$102, ">0") >= ROW() - 1 -> FALSE | C74: =IF($B74, INDIRECT("Mercantil!C" & SMALL(IF( Mercantil!$H$12:$H$102 = "", "", ROW(Mercantil!$H$12:$H$102)), ROW()-1)), "" ) ->  | D74: =IF($B74, INDIRECT("Mercantil!D" & SMALL(IF( Mercantil!$H$12:$H$102 = "", "", ROW(Mercantil!$H$12:$H$102)), ROW()-1)), "" ) ->  | E74: =IF($B74, INDIRECT("Mercantil!H" & SMALL(IF( Mercantil!$H$12:$H$102 = "", "", ROW(Mercantil!$H$12:$H$102)), ROW()-1)), "" ) ->  | F74: =IF( B74, SUM($E$2:E74), "" ) -> 
B75: =COUNTIF(Mercantil!$H$12:$H$102, ">0") >= ROW() - 1 -> FALSE | C75: =IF($B75, INDIRECT("Mercantil!C" & SMALL(IF( Mercantil!$H$12:$H$102 = "", "", ROW(Mercantil!$H$12:$H$102)), ROW()-1)), "" ) ->  | D75: =IF($B75, INDIRECT("Mercantil!D" & SMALL(IF( Mercantil!$H$12:$H$102 = "", "", ROW(Mercantil!$H$12:$H$102)), ROW()-1)), "" ) ->  | E75: =IF($B75, INDIRECT("Mercantil!H" & SMALL(IF( Mercantil!$H$12:$H$102 = "", "", ROW(Mercantil!$H$12:$H$102)), ROW()-1)), "" ) ->  | F75: =IF( B75, SUM($E$2:E75), "" ) -> 
B76: =COUNTIF(Mercantil!$H$12:$H$102, ">0") >= ROW() - 1 -> FALSE | C76: =IF($B76, INDIRECT("Mercantil!C" & SMALL(IF( Mercantil!$H$12:$H$102 = "", "", ROW(Mercantil!$H$12:$H$102)), ROW()-1)), "" ) ->  | D76: =IF($B76, INDIRECT("Mercantil!D" & SMALL(IF( Mercantil!$H$12:$H$102 = "", "", ROW(Mercantil!$H$12:$H$102)), ROW()-1)), "" ) ->  | E76: =IF($B76, INDIRECT("Mercantil!H" & SMALL(IF( Mercantil!$H$12:$H$102 = "", "", ROW(Mercantil!$H$12:$H$102)), ROW()-1)), "" ) ->  | F76: =IF( B76, SUM($E$2:E76), "" ) -> 
B77: =COUNTIF(Mercantil!$H$12:$H$102, ">0") >= ROW() - 1 -> FALSE | C77: =IF($B77, INDIRECT("Mercantil!C" & SMALL(IF( Mercantil!$H$12:$H$102 = "", "", ROW(Mercantil!$H$12:$H$102)), ROW()-1)), "" ) ->  | D77: =IF($B77, INDIRECT("Mercantil!D" & SMALL(IF( Mercantil!$H$12:$H$102 = "", "", ROW(Mercantil!$H$12:$H$102)), ROW()-1)), "" ) ->  | E77: =IF($B77, INDIRECT("Mercantil!H" & SMALL(IF( Mercantil!$H$12:$H$102 = "", "", ROW(Mercantil!$H$12:$H$102)), ROW()-1)), "" ) ->  | F77: =IF( B77, SUM($E$2:E77), "" ) -> 
B78: =COUNTIF(Mercantil!$H$12:$H$102, ">0") >= ROW() - 1 -> FALSE | C78: =IF($B78, INDIRECT("Mercantil!C" & SMALL(IF( Mercantil!$H$12:$H$102 = "", "", ROW(Mercantil!$H$12:$H$102)), ROW()-1)), "" ) ->  | D78: =IF($B78, INDIRECT("Mercantil!D" & SMALL(IF( Mercantil!$H$12:$H$102 = "", "", ROW(Mercantil!$H$12:$H$102)), ROW()-1)), "" ) ->  | E78: =IF($B78, INDIRECT("Mercantil!H" & SMALL(IF( Mercantil!$H$12:$H$102 = "", "", ROW(Mercantil!$H$12:$H$102)), ROW()-1)), "" ) ->  | F78: =IF( B78, SUM($E$2:E78), "" ) -> 
B79: =COUNTIF(Mercantil!$H$12:$H$102, ">0") >= ROW() - 1 -> FALSE | C79: =IF($B79, INDIRECT("Mercantil!C" & SMALL(IF( Mercantil!$H$12:$H$102 = "", "", ROW(Mercantil!$H$12:$H$102)), ROW()-1)), "" ) ->  | D79: =IF($B79, INDIRECT("Mercantil!D" & SMALL(IF( Mercantil!$H$12:$H$102 = "", "", ROW(Mercantil!$H$12:$H$102)), ROW()-1)), "" ) ->  | E79: =IF($B79, INDIRECT("Mercantil!H" & SMALL(IF( Mercantil!$H$12:$H$102 = "", "", ROW(Mercantil!$H$12:$H$102)), ROW()-1)), "" ) ->  | F79: =IF( B79, SUM($E$2:E79), "" ) -> 
B80: =COUNTIF(Mercantil!$H$12:$H$102, ">0") >= ROW() - 1 -> FALSE | C80: =IF($B80, INDIRECT("Mercantil!C" & SMALL(IF( Mercantil!$H$12:$H$102 = "", "", ROW(Mercantil!$H$12:$H$102)), ROW()-1)), "" ) ->  | D80: =IF($B80, INDIRECT("Mercantil!D" & SMALL(IF( Mercantil!$H$12:$H$102 = "", "", ROW(Mercantil!$H$12:$H$102)), ROW()-1)), "" ) ->  | E80: =IF($B80, INDIRECT("Mercantil!H" & SMALL(IF( Mercantil!$H$12:$H$102 = "", "", ROW(Mercantil!$H$12:$H$102)), ROW()-1)), "" ) ->  | F80: =IF( B80, SUM($E$2:E80), "" ) -> 
B81: =COUNTIF(Mercantil!$H$12:$H$102, ">0") >= ROW() - 1 -> FALSE | C81: =IF($B81, INDIRECT("Mercantil!C" & SMALL(IF( Mercantil!$H$12:$H$102 = "", "", ROW(Mercantil!$H$12:$H$102)), ROW()-1)), "" ) ->  | D81: =IF($B81, INDIRECT("Mercantil!D" & SMALL(IF( Mercantil!$H$12:$H$102 = "", "", ROW(Mercantil!$H$12:$H$102)), ROW()-1)), "" ) ->  | E81: =IF($B81, INDIRECT("Mercantil!H" & SMALL(IF( Mercantil!$H$12:$H$102 = "", "", ROW(Mercantil!$H$12:$H$102)), ROW()-1)), "" ) ->  | F81: =IF( B81, SUM($E$2:E81), "" ) -> 
B82: =COUNTIF(Mercantil!$H$12:$H$102, ">0") >= ROW() - 1 -> FALSE | C82: =IF($B82, INDIRECT("Mercantil!C" & SMALL(IF( Mercantil!$H$12:$H$102 = "", "", ROW(Mercantil!$H$12:$H$102)), ROW()-1)), "" ) ->  | D82: =IF($B82, INDIRECT("Mercantil!D" & SMALL(IF( Mercantil!$H$12:$H$102 = "", "", ROW(Mercantil!$H$12:$H$102)), ROW()-1)), "" ) ->  | E82: =IF($B82, INDIRECT("Mercantil!H" & SMALL(IF( Mercantil!$H$12:$H$102 = "", "", ROW(Mercantil!$H$12:$H$102)), ROW()-1)), "" ) ->  | F82: =IF( B82, SUM($E$2:E82), "" ) -> 
B83: =COUNTIF(Mercantil!$H$12:$H$102, ">0") >= ROW() - 1 -> FALSE | C83: =IF($B83, INDIRECT("Mercantil!C" & SMALL(IF( Mercantil!$H$12:$H$102 = "", "", ROW(Mercantil!$H$12:$H$102)), ROW()-1)), "" ) ->  | D83: =IF($B83, INDIRECT("Mercantil!D" & SMALL(IF( Mercantil!$H$12:$H$102 = "", "", ROW(Mercantil!$H$12:$H$102)), ROW()-1)), "" ) ->  | E83: =IF($B83, INDIRECT("Mercantil!H" & SMALL(IF( Mercantil!$H$12:$H$102 = "", "", ROW(Mercantil!$H$12:$H$102)), ROW()-1)), "" ) ->  | F83: =IF( B83, SUM($E$2:E83), "" ) -> 
B84: =COUNTIF(Mercantil!$H$12:$H$102, ">0") >= ROW() - 1 -> FALSE | C84: =IF($B84, INDIRECT("Mercantil!C" & SMALL(IF( Mercantil!$H$12:$H$102 = "", "", ROW(Mercantil!$H$12:$H$102)), ROW()-1)), "" ) ->  | D84: =IF($B84, INDIRECT("Mercantil!D" & SMALL(IF( Mercantil!$H$12:$H$102 = "", "", ROW(Mercantil!$H$12:$H$102)), ROW()-1)), "" ) ->  | E84: =IF($B84, INDIRECT("Mercantil!H" & SMALL(IF( Mercantil!$H$12:$H$102 = "", "", ROW(Mercantil!$H$12:$H$102)), ROW()-1)), "" ) ->  | F84: =IF( B84, SUM($E$2:E84), "" ) -> 
B85: =COUNTIF(Mercantil!$H$12:$H$102, ">0") >= ROW() - 1 -> FALSE | C85: =IF($B85, INDIRECT("Mercantil!C" & SMALL(IF( Mercantil!$H$12:$H$102 = "", "", ROW(Mercantil!$H$12:$H$102)), ROW()-1)), "" ) ->  | D85: =IF($B85, INDIRECT("Mercantil!D" & SMALL(IF( Mercantil!$H$12:$H$102 = "", "", ROW(Mercantil!$H$12:$H$102)), ROW()-1)), "" ) ->  | E85: =IF($B85, INDIRECT("Mercantil!H" & SMALL(IF( Mercantil!$H$12:$H$102 = "", "", ROW(Mercantil!$H$12:$H$102)), ROW()-1)), "" ) ->  | F85: =IF( B85, SUM($E$2:E85), "" ) -> 
B86: =COUNTIF(Mercantil!$H$12:$H$102, ">0") >= ROW() - 1 -> FALSE | C86: =IF($B86, INDIRECT("Mercantil!C" & SMALL(IF( Mercantil!$H$12:$H$102 = "", "", ROW(Mercantil!$H$12:$H$102)), ROW()-1)), "" ) ->  | D86: =IF($B86, INDIRECT("Mercantil!D" & SMALL(IF( Mercantil!$H$12:$H$102 = "", "", ROW(Mercantil!$H$12:$H$102)), ROW()-1)), "" ) ->  | E86: =IF($B86, INDIRECT("Mercantil!H" & SMALL(IF( Mercantil!$H$12:$H$102 = "", "", ROW(Mercantil!$H$12:$H$102)), ROW()-1)), "" ) ->  | F86: =IF( B86, SUM($E$2:E86), "" ) -> 
B87: =COUNTIF(Mercantil!$H$12:$H$102, ">0") >= ROW() - 1 -> FALSE | C87: =IF($B87, INDIRECT("Mercantil!C" & SMALL(IF( Mercantil!$H$12:$H$102 = "", "", ROW(Mercantil!$H$12:$H$102)), ROW()-1)), "" ) ->  | D87: =IF($B87, INDIRECT("Mercantil!D" & SMALL(IF( Mercantil!$H$12:$H$102 = "", "", ROW(Mercantil!$H$12:$H$102)), ROW()-1)), "" ) ->  | E87: =IF($B87, INDIRECT("Mercantil!H" & SMALL(IF( Mercantil!$H$12:$H$102 = "", "", ROW(Mercantil!$H$12:$H$102)), ROW()-1)), "" ) ->  | F87: =IF( B87, SUM($E$2:E87), "" ) -> 
B88: =COUNTIF(Mercantil!$H$12:$H$102, ">0") >= ROW() - 1 -> FALSE | C88: =IF($B88, INDIRECT("Mercantil!C" & SMALL(IF( Mercantil!$H$12:$H$102 = "", "", ROW(Mercantil!$H$12:$H$102)), ROW()-1)), "" ) ->  | D88: =IF($B88, INDIRECT("Mercantil!D" & SMALL(IF( Mercantil!$H$12:$H$102 = "", "", ROW(Mercantil!$H$12:$H$102)), ROW()-1)), "" ) ->  | E88: =IF($B88, INDIRECT("Mercantil!H" & SMALL(IF( Mercantil!$H$12:$H$102 = "", "", ROW(Mercantil!$H$12:$H$102)), ROW()-1)), "" ) ->  | F88: =IF( B88, SUM($E$2:E88), "" ) -> 
B89: =COUNTIF(Mercantil!$H$12:$H$102, ">0") >= ROW() - 1 -> FALSE | C89: =IF($B89, INDIRECT("Mercantil!C" & SMALL(IF( Mercantil!$H$12:$H$102 = "", "", ROW(Mercantil!$H$12:$H$102)), ROW()-1)), "" ) ->  | D89: =IF($B89, INDIRECT("Mercantil!D" & SMALL(IF( Mercantil!$H$12:$H$102 = "", "", ROW(Mercantil!$H$12:$H$102)), ROW()-1)), "" ) ->  | E89: =IF($B89, INDIRECT("Mercantil!H" & SMALL(IF( Mercantil!$H$12:$H$102 = "", "", ROW(Mercantil!$H$12:$H$102)), ROW()-1)), "" ) ->  | F89: =IF( B89, SUM($E$2:E89), "" ) -> 
B90: =COUNTIF(Mercantil!$H$12:$H$102, ">0") >= ROW() - 1 -> FALSE | C90: =IF($B90, INDIRECT("Mercantil!C" & SMALL(IF( Mercantil!$H$12:$H$102 = "", "", ROW(Mercantil!$H$12:$H$102)), ROW()-1)), "" ) ->  | D90: =IF($B90, INDIRECT("Mercantil!D" & SMALL(IF( Mercantil!$H$12:$H$102 = "", "", ROW(Mercantil!$H$12:$H$102)), ROW()-1)), "" ) ->  | E90: =IF($B90, INDIRECT("Mercantil!H" & SMALL(IF( Mercantil!$H$12:$H$102 = "", "", ROW(Mercantil!$H$12:$H$102)), ROW()-1)), "" ) ->  | F90: =IF( B90, SUM($E$2:E90), "" ) -> 
B91: =COUNTIF(Mercantil!$H$12:$H$102, ">0") >= ROW() - 1 -> FALSE | C91: =IF($B91, INDIRECT("Mercantil!C" & SMALL(IF( Mercantil!$H$12:$H$102 = "", "", ROW(Mercantil!$H$12:$H$102)), ROW()-1)), "" ) ->  | D91: =IF($B91, INDIRECT("Mercantil!D" & SMALL(IF( Mercantil!$H$12:$H$102 = "", "", ROW(Mercantil!$H$12:$H$102)), ROW()-1)), "" ) ->  | E91: =IF($B91, INDIRECT("Mercantil!H" & SMALL(IF( Mercantil!$H$12:$H$102 = "", "", ROW(Mercantil!$H$12:$H$102)), ROW()-1)), "" ) ->  | F91: =IF( B91, SUM($E$2:E91), "" ) -> 
B92: =COUNTIF(Mercantil!$H$12:$H$102, ">0") >= ROW() - 1 -> FALSE | C92: =IF($B92, INDIRECT("Mercantil!C" & SMALL(IF( Mercantil!$H$12:$H$102 = "", "", ROW(Mercantil!$H$12:$H$102)), ROW()-1)), "" ) ->  | D92: =IF($B92, INDIRECT("Mercantil!D" & SMALL(IF( Mercantil!$H$12:$H$102 = "", "", ROW(Mercantil!$H$12:$H$102)), ROW()-1)), "" ) ->  | E92: =IF($B92, INDIRECT("Mercantil!H" & SMALL(IF( Mercantil!$H$12:$H$102 = "", "", ROW(Mercantil!$H$12:$H$102)), ROW()-1)), "" ) ->  | F92: =IF( B92, SUM($E$2:E92), "" ) -> 
B93: =COUNTIF(Mercantil!$H$12:$H$102, ">0") >= ROW() - 1 -> FALSE | C93: =IF($B93, INDIRECT("Mercantil!C" & SMALL(IF( Mercantil!$H$12:$H$102 = "", "", ROW(Mercantil!$H$12:$H$102)), ROW()-1)), "" ) ->  | D93: =IF($B93, INDIRECT("Mercantil!D" & SMALL(IF( Mercantil!$H$12:$H$102 = "", "", ROW(Mercantil!$H$12:$H$102)), ROW()-1)), "" ) ->  | E93: =IF($B93, INDIRECT("Mercantil!H" & SMALL(IF( Mercantil!$H$12:$H$102 = "", "", ROW(Mercantil!$H$12:$H$102)), ROW()-1)), "" ) ->  | F93: =IF( B93, SUM($E$2:E93), "" ) -> 
B94: =COUNTIF(Mercantil!$H$12:$H$102, ">0") >= ROW() - 1 -> FALSE | C94: =IF($B94, INDIRECT("Mercantil!C" & SMALL(IF( Mercantil!$H$12:$H$102 = "", "", ROW(Mercantil!$H$12:$H$102)), ROW()-1)), "" ) ->  | D94: =IF($B94, INDIRECT("Mercantil!D" & SMALL(IF( Mercantil!$H$12:$H$102 = "", "", ROW(Mercantil!$H$12:$H$102)), ROW()-1)), "" ) ->  | E94: =IF($B94, INDIRECT("Mercantil!H" & SMALL(IF( Mercantil!$H$12:$H$102 = "", "", ROW(Mercantil!$H$12:$H$102)), ROW()-1)), "" ) ->  | F94: =IF( B94, SUM($E$2:E94), "" ) -> 
B95: =COUNTIF(Mercantil!$H$12:$H$102, ">0") >= ROW() - 1 -> FALSE | C95: =IF($B95, INDIRECT("Mercantil!C" & SMALL(IF( Mercantil!$H$12:$H$102 = "", "", ROW(Mercantil!$H$12:$H$102)), ROW()-1)), "" ) ->  | D95: =IF($B95, INDIRECT("Mercantil!D" & SMALL(IF( Mercantil!$H$12:$H$102 = "", "", ROW(Mercantil!$H$12:$H$102)), ROW()-1)), "" ) ->  | E95: =IF($B95, INDIRECT("Mercantil!H" & SMALL(IF( Mercantil!$H$12:$H$102 = "", "", ROW(Mercantil!$H$12:$H$102)), ROW()-1)), "" ) ->  | F95: =IF( B95, SUM($E$2:E95), "" ) -> 
B96: =COUNTIF(Mercantil!$H$12:$H$102, ">0") >= ROW() - 1 -> FALSE | C96: =IF($B96, INDIRECT("Mercantil!C" & SMALL(IF( Mercantil!$H$12:$H$102 = "", "", ROW(Mercantil!$H$12:$H$102)), ROW()-1)), "" ) ->  | D96: =IF($B96, INDIRECT("Mercantil!D" & SMALL(IF( Mercantil!$H$12:$H$102 = "", "", ROW(Mercantil!$H$12:$H$102)), ROW()-1)), "" ) ->  | E96: =IF($B96, INDIRECT("Mercantil!H" & SMALL(IF( Mercantil!$H$12:$H$102 = "", "", ROW(Mercantil!$H$12:$H$102)), ROW()-1)), "" ) ->  | F96: =IF( B96, SUM($E$2:E96), "" ) -> 
B97: =COUNTIF(Mercantil!$H$12:$H$102, ">0") >= ROW() - 1 -> FALSE | C97: =IF($B97, INDIRECT("Mercantil!C" & SMALL(IF( Mercantil!$H$12:$H$102 = "", "", ROW(Mercantil!$H$12:$H$102)), ROW()-1)), "" ) ->  | D97: =IF($B97, INDIRECT("Mercantil!D" & SMALL(IF( Mercantil!$H$12:$H$102 = "", "", ROW(Mercantil!$H$12:$H$102)), ROW()-1)), "" ) ->  | E97: =IF($B97, INDIRECT("Mercantil!H" & SMALL(IF( Mercantil!$H$12:$H$102 = "", "", ROW(Mercantil!$H$12:$H$102)), ROW()-1)), "" ) ->  | F97: =IF( B97, SUM($E$2:E97), "" ) -> 
B98: =COUNTIF(Mercantil!$H$12:$H$102, ">0") >= ROW() - 1 -> FALSE | C98: =IF($B98, INDIRECT("Mercantil!C" & SMALL(IF( Mercantil!$H$12:$H$102 = "", "", ROW(Mercantil!$H$12:$H$102)), ROW()-1)), "" ) ->  | D98: =IF($B98, INDIRECT("Mercantil!D" & SMALL(IF( Mercantil!$H$12:$H$102 = "", "", ROW(Mercantil!$H$12:$H$102)), ROW()-1)), "" ) ->  | E98: =IF($B98, INDIRECT("Mercantil!H" & SMALL(IF( Mercantil!$H$12:$H$102 = "", "", ROW(Mercantil!$H$12:$H$102)), ROW()-1)), "" ) ->  | F98: =IF( B98, SUM($E$2:E98), "" ) -> 
B99: =COUNTIF(Mercantil!$H$12:$H$102, ">0") >= ROW() - 1 -> FALSE | C99: =IF($B99, INDIRECT("Mercantil!C" & SMALL(IF( Mercantil!$H$12:$H$102 = "", "", ROW(Mercantil!$H$12:$H$102)), ROW()-1)), "" ) ->  | D99: =IF($B99, INDIRECT("Mercantil!D" & SMALL(IF( Mercantil!$H$12:$H$102 = "", "", ROW(Mercantil!$H$12:$H$102)), ROW()-1)), "" ) ->  | E99: =IF($B99, INDIRECT("Mercantil!H" & SMALL(IF( Mercantil!$H$12:$H$102 = "", "", ROW(Mercantil!$H$12:$H$102)), ROW()-1)), "" ) ->  | F99: =IF( B99, SUM($E$2:E99), "" ) -> 
B100: =COUNTIF(Mercantil!$H$12:$H$102, ">0") >= ROW() - 1 -> FALSE | C100: =IF($B100, INDIRECT("Mercantil!C" & SMALL(IF( Mercantil!$H$12:$H$102 = "", "", ROW(Mercantil!$H$12:$H$102)), ROW()-1)), "" ) ->  | D100: =IF($B100, INDIRECT("Mercantil!D" & SMALL(IF( Mercantil!$H$12:$H$102 = "", "", ROW(Mercantil!$H$12:$H$102)), ROW()-1)), "" ) ->  | E100: =IF($B100, INDIRECT("Mercantil!H" & SMALL(IF( Mercantil!$H$12:$H$102 = "", "", ROW(Mercantil!$H$12:$H$102)), ROW()-1)), "" ) ->  | F100: =IF( B100, SUM($E$2:E100), "" ) -> 
B101: =COUNTIF(Mercantil!$H$12:$H$102, ">0") >= ROW() - 1 -> FALSE | C101: =IF($B101, INDIRECT("Mercantil!C" & SMALL(IF( Mercantil!$H$12:$H$102 = "", "", ROW(Mercantil!$H$12:$H$102)), ROW()-1)), "" ) ->  | D101: =IF($B101, INDIRECT("Mercantil!D" & SMALL(IF( Mercantil!$H$12:$H$102 = "", "", ROW(Mercantil!$H$12:$H$102)), ROW()-1)), "" ) ->  | E101: =IF($B101, INDIRECT("Mercantil!H" & SMALL(IF( Mercantil!$H$12:$H$102 = "", "", ROW(Mercantil!$H$12:$H$102)), ROW()-1)), "" ) ->  | F101: =IF( B101, SUM($E$2:E101), "" ) -> 
B102: =COUNTIF(Mercantil!$H$12:$H$102, ">0") >= ROW() - 1 -> FALSE | C102: =IF($B102, INDIRECT("Mercantil!C" & SMALL(IF( Mercantil!$H$12:$H$102 = "", "", ROW(Mercantil!$H$12:$H$102)), ROW()-1)), "" ) ->  | D102: =IF($B102, INDIRECT("Mercantil!D" & SMALL(IF( Mercantil!$H$12:$H$102 = "", "", ROW(Mercantil!$H$12:$H$102)), ROW()-1)), "" ) ->  | E102: =IF($B102, INDIRECT("Mercantil!H" & SMALL(IF( Mercantil!$H$12:$H$102 = "", "", ROW(Mercantil!$H$12:$H$102)), ROW()-1)), "" ) ->  | F102: =IF( B102, SUM($E$2:E102), "" ) -> 
B103: =COUNTIF(Mercantil!$H$12:$H$102, ">0") >= ROW() - 1 -> FALSE | C103: =IF($B103, INDIRECT("Mercantil!C" & SMALL(IF( Mercantil!$H$12:$H$102 = "", "", ROW(Mercantil!$H$12:$H$102)), ROW()-1)), "" ) ->  | D103: =IF($B103, INDIRECT("Mercantil!D" & SMALL(IF( Mercantil!$H$12:$H$102 = "", "", ROW(Mercantil!$H$12:$H$102)), ROW()-1)), "" ) ->  | E103: =IF($B103, INDIRECT("Mercantil!H" & SMALL(IF( Mercantil!$H$12:$H$102 = "", "", ROW(Mercantil!$H$12:$H$102)), ROW()-1)), "" ) ->  | F103: =IF( B103, SUM($E$2:E103), "" ) -> 
B104: =COUNTIF(Mercantil!$H$12:$H$102, ">0") >= ROW() - 1 -> FALSE | C104: =IF($B104, INDIRECT("Mercantil!C" & SMALL(IF( Mercantil!$H$12:$H$102 = "", "", ROW(Mercantil!$H$12:$H$102)), ROW()-1)), "" ) ->  | D104: =IF($B104, INDIRECT("Mercantil!D" & SMALL(IF( Mercantil!$H$12:$H$102 = "", "", ROW(Mercantil!$H$12:$H$102)), ROW()-1)), "" ) ->  | E104: =IF($B104, INDIRECT("Mercantil!H" & SMALL(IF( Mercantil!$H$12:$H$102 = "", "", ROW(Mercantil!$H$12:$H$102)), ROW()-1)), "" ) ->  | F104: =IF( B104, SUM($E$2:E104), "" ) -> 
B105: =COUNTIF(Mercantil!$H$12:$H$102, ">0") >= ROW() - 1 -> FALSE | C105: =IF($B105, INDIRECT("Mercantil!C" & SMALL(IF( Mercantil!$H$12:$H$102 = "", "", ROW(Mercantil!$H$12:$H$102)), ROW()-1)), "" ) ->  | D105: =IF($B105, INDIRECT("Mercantil!D" & SMALL(IF( Mercantil!$H$12:$H$102 = "", "", ROW(Mercantil!$H$12:$H$102)), ROW()-1)), "" ) ->  | E105: =IF($B105, INDIRECT("Mercantil!H" & SMALL(IF( Mercantil!$H$12:$H$102 = "", "", ROW(Mercantil!$H$12:$H$102)), ROW()-1)), "" ) ->  | F105: =IF( B105, SUM($E$2:E105), "" ) -> 
B106: =COUNTIF(Mercantil!$H$12:$H$102, ">0") >= ROW() - 1 -> FALSE | C106: =IF($B106, INDIRECT("Mercantil!C" & SMALL(IF( Mercantil!$H$12:$H$102 = "", "", ROW(Mercantil!$H$12:$H$102)), ROW()-1)), "" ) ->  | D106: =IF($B106, INDIRECT("Mercantil!D" & SMALL(IF( Mercantil!$H$12:$H$102 = "", "", ROW(Mercantil!$H$12:$H$102)), ROW()-1)), "" ) ->  | E106: =IF($B106, INDIRECT("Mercantil!H" & SMALL(IF( Mercantil!$H$12:$H$102 = "", "", ROW(Mercantil!$H$12:$H$102)), ROW()-1)), "" ) ->  | F106: =IF( B106, SUM($E$2:E106), "" ) -> 
B107: =COUNTIF(Mercantil!$H$12:$H$102, ">0") >= ROW() - 1 -> FALSE | C107: =IF($B107, INDIRECT("Mercantil!C" & SMALL(IF( Mercantil!$H$12:$H$102 = "", "", ROW(Mercantil!$H$12:$H$102)), ROW()-1)), "" ) ->  | D107: =IF($B107, INDIRECT("Mercantil!D" & SMALL(IF( Mercantil!$H$12:$H$102 = "", "", ROW(Mercantil!$H$12:$H$102)), ROW()-1)), "" ) ->  | E107: =IF($B107, INDIRECT("Mercantil!H" & SMALL(IF( Mercantil!$H$12:$H$102 = "", "", ROW(Mercantil!$H$12:$H$102)), ROW()-1)), "" ) ->  | F107: =IF( B107, SUM($E$2:E107), "" ) -> 
B108: =COUNTIF(Mercantil!$H$12:$H$102, ">0") >= ROW() - 1 -> FALSE | C108: =IF($B108, INDIRECT("Mercantil!C" & SMALL(IF( Mercantil!$H$12:$H$102 = "", "", ROW(Mercantil!$H$12:$H$102)), ROW()-1)), "" ) ->  | D108: =IF($B108, INDIRECT("Mercantil!D" & SMALL(IF( Mercantil!$H$12:$H$102 = "", "", ROW(Mercantil!$H$12:$H$102)), ROW()-1)), "" ) ->  | E108: =IF($B108, INDIRECT("Mercantil!H" & SMALL(IF( Mercantil!$H$12:$H$102 = "", "", ROW(Mercantil!$H$12:$H$102)), ROW()-1)), "" ) ->  | F108: =IF( B108, SUM($E$2:E108), "" ) -> 
B109: =COUNTIF(Mercantil!$H$12:$H$102, ">0") >= ROW() - 1 -> FALSE | C109: =IF($B109, INDIRECT("Mercantil!C" & SMALL(IF( Mercantil!$H$12:$H$102 = "", "", ROW(Mercantil!$H$12:$H$102)), ROW()-1)), "" ) ->  | D109: =IF($B109, INDIRECT("Mercantil!D" & SMALL(IF( Mercantil!$H$12:$H$102 = "", "", ROW(Mercantil!$H$12:$H$102)), ROW()-1)), "" ) ->  | E109: =IF($B109, INDIRECT("Mercantil!H" & SMALL(IF( Mercantil!$H$12:$H$102 = "", "", ROW(Mercantil!$H$12:$H$102)), ROW()-1)), "" ) ->  | F109: =IF( B109, SUM($E$2:E109), "" ) -> 
B110: =COUNTIF(Mercantil!$H$12:$H$102, ">0") >= ROW() - 1 -> FALSE | C110: =IF($B110, INDIRECT("Mercantil!C" & SMALL(IF( Mercantil!$H$12:$H$102 = "", "", ROW(Mercantil!$H$12:$H$102)), ROW()-1)), "" ) ->  | D110: =IF($B110, INDIRECT("Mercantil!D" & SMALL(IF( Mercantil!$H$12:$H$102 = "", "", ROW(Mercantil!$H$12:$H$102)), ROW()-1)), "" ) ->  | E110: =IF($B110, INDIRECT("Mercantil!H" & SMALL(IF( Mercantil!$H$12:$H$102 = "", "", ROW(Mercantil!$H$12:$H$102)), ROW()-1)), "" ) ->  | F110: =IF( B110, SUM($E$2:E110), "" ) -> 
B111: =COUNTIF(Mercantil!$H$12:$H$102, ">0") >= ROW() - 1 -> FALSE | C111: =IF($B111, INDIRECT("Mercantil!C" & SMALL(IF( Mercantil!$H$12:$H$102 = "", "", ROW(Mercantil!$H$12:$H$102)), ROW()-1)), "" ) ->  | D111: =IF($B111, INDIRECT("Mercantil!D" & SMALL(IF( Mercantil!$H$12:$H$102 = "", "", ROW(Mercantil!$H$12:$H$102)), ROW()-1)), "" ) ->  | E111: =IF($B111, INDIRECT("Mercantil!H" & SMALL(IF( Mercantil!$H$12:$H$102 = "", "", ROW(Mercantil!$H$12:$H$102)), ROW()-1)), "" ) ->  | F111: =IF( B111, SUM($E$2:E111), "" ) -> 
B112: =COUNTIF(Mercantil!$H$12:$H$102, ">0") >= ROW() - 1 -> FALSE | C112: =IF($B112, INDIRECT("Mercantil!C" & SMALL(IF( Mercantil!$H$12:$H$102 = "", "", ROW(Mercantil!$H$12:$H$102)), ROW()-1)), "" ) ->  | D112: =IF($B112, INDIRECT("Mercantil!D" & SMALL(IF( Mercantil!$H$12:$H$102 = "", "", ROW(Mercantil!$H$12:$H$102)), ROW()-1)), "" ) ->  | E112: =IF($B112, INDIRECT("Mercantil!H" & SMALL(IF( Mercantil!$H$12:$H$102 = "", "", ROW(Mercantil!$H$12:$H$102)), ROW()-1)), "" ) ->  | F112: =IF( B112, SUM($E$2:E112), "" ) -> 
B113: =COUNTIF(Mercantil!$H$12:$H$102, ">0") >= ROW() - 1 -> FALSE | C113: =IF($B113, INDIRECT("Mercantil!C" & SMALL(IF( Mercantil!$H$12:$H$102 = "", "", ROW(Mercantil!$H$12:$H$102)), ROW()-1)), "" ) ->  | D113: =IF($B113, INDIRECT("Mercantil!D" & SMALL(IF( Mercantil!$H$12:$H$102 = "", "", ROW(Mercantil!$H$12:$H$102)), ROW()-1)), "" ) ->  | E113: =IF($B113, INDIRECT("Mercantil!H" & SMALL(IF( Mercantil!$H$12:$H$102 = "", "", ROW(Mercantil!$H$12:$H$102)), ROW()-1)), "" ) ->  | F113: =IF( B113, SUM($E$2:E113), "" ) -> 
B114: =COUNTIF(Mercantil!$H$12:$H$102, ">0") >= ROW() - 1 -> FALSE | C114: =IF($B114, INDIRECT("Mercantil!C" & SMALL(IF( Mercantil!$H$12:$H$102 = "", "", ROW(Mercantil!$H$12:$H$102)), ROW()-1)), "" ) ->  | D114: =IF($B114, INDIRECT("Mercantil!D" & SMALL(IF( Mercantil!$H$12:$H$102 = "", "", ROW(Mercantil!$H$12:$H$102)), ROW()-1)), "" ) ->  | E114: =IF($B114, INDIRECT("Mercantil!H" & SMALL(IF( Mercantil!$H$12:$H$102 = "", "", ROW(Mercantil!$H$12:$H$102)), ROW()-1)), "" ) ->  | F114: =IF( B114, SUM($E$2:E114), "" ) -> 
B115: =COUNTIF(Mercantil!$H$12:$H$102, ">0") >= ROW() - 1 -> FALSE | C115: =IF($B115, INDIRECT("Mercantil!C" & SMALL(IF( Mercantil!$H$12:$H$102 = "", "", ROW(Mercantil!$H$12:$H$102)), ROW()-1)), "" ) ->  | D115: =IF($B115, INDIRECT("Mercantil!D" & SMALL(IF( Mercantil!$H$12:$H$102 = "", "", ROW(Mercantil!$H$12:$H$102)), ROW()-1)), "" ) ->  | E115: =IF($B115, INDIRECT("Mercantil!H" & SMALL(IF( Mercantil!$H$12:$H$102 = "", "", ROW(Mercantil!$H$12:$H$102)), ROW()-1)), "" ) ->  | F115: =IF( B115, SUM($E$2:E115), "" ) -> 
B116: =COUNTIF(Mercantil!$H$12:$H$102, ">0") >= ROW() - 1 -> FALSE | C116: =IF($B116, INDIRECT("Mercantil!C" & SMALL(IF( Mercantil!$H$12:$H$102 = "", "", ROW(Mercantil!$H$12:$H$102)), ROW()-1)), "" ) ->  | D116: =IF($B116, INDIRECT("Mercantil!D" & SMALL(IF( Mercantil!$H$12:$H$102 = "", "", ROW(Mercantil!$H$12:$H$102)), ROW()-1)), "" ) ->  | E116: =IF($B116, INDIRECT("Mercantil!H" & SMALL(IF( Mercantil!$H$12:$H$102 = "", "", ROW(Mercantil!$H$12:$H$102)), ROW()-1)), "" ) ->  | F116: =IF( B116, SUM($E$2:E116), "" ) -> 
B117: =COUNTIF(Mercantil!$H$12:$H$102, ">0") >= ROW() - 1 -> FALSE | C117: =IF($B117, INDIRECT("Mercantil!C" & SMALL(IF( Mercantil!$H$12:$H$102 = "", "", ROW(Mercantil!$H$12:$H$102)), ROW()-1)), "" ) ->  | D117: =IF($B117, INDIRECT("Mercantil!D" & SMALL(IF( Mercantil!$H$12:$H$102 = "", "", ROW(Mercantil!$H$12:$H$102)), ROW()-1)), "" ) ->  | E117: =IF($B117, INDIRECT("Mercantil!H" & SMALL(IF( Mercantil!$H$12:$H$102 = "", "", ROW(Mercantil!$H$12:$H$102)), ROW()-1)), "" ) ->  | F117: =IF( B117, SUM($E$2:E117), "" ) -> 
B118: =COUNTIF(Mercantil!$H$12:$H$102, ">0") >= ROW() - 1 -> FALSE | C118: =IF($B118, INDIRECT("Mercantil!C" & SMALL(IF( Mercantil!$H$12:$H$102 = "", "", ROW(Mercantil!$H$12:$H$102)), ROW()-1)), "" ) ->  | D118: =IF($B118, INDIRECT("Mercantil!D" & SMALL(IF( Mercantil!$H$12:$H$102 = "", "", ROW(Mercantil!$H$12:$H$102)), ROW()-1)), "" ) ->  | E118: =IF($B118, INDIRECT("Mercantil!H" & SMALL(IF( Mercantil!$H$12:$H$102 = "", "", ROW(Mercantil!$H$12:$H$102)), ROW()-1)), "" ) ->  | F118: =IF( B118, SUM($E$2:E118), "" ) -> 
B119: =COUNTIF(Mercantil!$H$12:$H$102, ">0") >= ROW() - 1 -> FALSE | C119: =IF($B119, INDIRECT("Mercantil!C" & SMALL(IF( Mercantil!$H$12:$H$102 = "", "", ROW(Mercantil!$H$12:$H$102)), ROW()-1)), "" ) ->  | D119: =IF($B119, INDIRECT("Mercantil!D" & SMALL(IF( Mercantil!$H$12:$H$102 = "", "", ROW(Mercantil!$H$12:$H$102)), ROW()-1)), "" ) ->  | E119: =IF($B119, INDIRECT("Mercantil!H" & SMALL(IF( Mercantil!$H$12:$H$102 = "", "", ROW(Mercantil!$H$12:$H$102)), ROW()-1)), "" ) ->  | F119: =IF( B119, SUM($E$2:E119), "" ) -> 
B120: =COUNTIF(Mercantil!$H$12:$H$102, ">0") >= ROW() - 1 -> FALSE | C120: =IF($B120, INDIRECT("Mercantil!C" & SMALL(IF( Mercantil!$H$12:$H$102 = "", "", ROW(Mercantil!$H$12:$H$102)), ROW()-1)), "" ) ->  | D120: =IF($B120, INDIRECT("Mercantil!D" & SMALL(IF( Mercantil!$H$12:$H$102 = "", "", ROW(Mercantil!$H$12:$H$102)), ROW()-1)), "" ) ->  | E120: =IF($B120, INDIRECT("Mercantil!H" & SMALL(IF( Mercantil!$H$12:$H$102 = "", "", ROW(Mercantil!$H$12:$H$102)), ROW()-1)), "" ) ->  | F120: =IF( B120, SUM($E$2:E120), "" ) -> 
B121: =COUNTIF(Mercantil!$H$12:$H$102, ">0") >= ROW() - 1 -> FALSE | C121: =IF($B121, INDIRECT("Mercantil!C" & SMALL(IF( Mercantil!$H$12:$H$102 = "", "", ROW(Mercantil!$H$12:$H$102)), ROW()-1)), "" ) ->  | D121: =IF($B121, INDIRECT("Mercantil!D" & SMALL(IF( Mercantil!$H$12:$H$102 = "", "", ROW(Mercantil!$H$12:$H$102)), ROW()-1)), "" ) ->  | E121: =IF($B121, INDIRECT("Mercantil!H" & SMALL(IF( Mercantil!$H$12:$H$102 = "", "", ROW(Mercantil!$H$12:$H$102)), ROW()-1)), "" ) ->  | F121: =IF( B121, SUM($E$2:E121), "" ) -> 
B122: =COUNTIF(Mercantil!$H$12:$H$102, ">0") >= ROW() - 1 -> FALSE | C122: =IF($B122, INDIRECT("Mercantil!C" & SMALL(IF( Mercantil!$H$12:$H$102 = "", "", ROW(Mercantil!$H$12:$H$102)), ROW()-1)), "" ) ->  | D122: =IF($B122, INDIRECT("Mercantil!D" & SMALL(IF( Mercantil!$H$12:$H$102 = "", "", ROW(Mercantil!$H$12:$H$102)), ROW()-1)), "" ) ->  | E122: =IF($B122, INDIRECT("Mercantil!H" & SMALL(IF( Mercantil!$H$12:$H$102 = "", "", ROW(Mercantil!$H$12:$H$102)), ROW()-1)), "" ) ->  | F122: =IF( B122, SUM($E$2:E122), "" ) -> 
B123: =COUNTIF(Mercantil!$H$12:$H$102, ">0") >= ROW() - 1 -> FALSE | C123: =IF($B123, INDIRECT("Mercantil!C" & SMALL(IF( Mercantil!$H$12:$H$102 = "", "", ROW(Mercantil!$H$12:$H$102)), ROW()-1)), "" ) ->  | D123: =IF($B123, INDIRECT("Mercantil!D" & SMALL(IF( Mercantil!$H$12:$H$102 = "", "", ROW(Mercantil!$H$12:$H$102)), ROW()-1)), "" ) ->  | E123: =IF($B123, INDIRECT("Mercantil!H" & SMALL(IF( Mercantil!$H$12:$H$102 = "", "", ROW(Mercantil!$H$12:$H$102)), ROW()-1)), "" ) ->  | F123: =IF( B123, SUM($E$2:E123), "" ) -> 
B124: =COUNTIF(Mercantil!$H$12:$H$102, ">0") >= ROW() - 1 -> FALSE | C124: =IF($B124, INDIRECT("Mercantil!C" & SMALL(IF( Mercantil!$H$12:$H$102 = "", "", ROW(Mercantil!$H$12:$H$102)), ROW()-1)), "" ) ->  | D124: =IF($B124, INDIRECT("Mercantil!D" & SMALL(IF( Mercantil!$H$12:$H$102 = "", "", ROW(Mercantil!$H$12:$H$102)), ROW()-1)), "" ) ->  | E124: =IF($B124, INDIRECT("Mercantil!H" & SMALL(IF( Mercantil!$H$12:$H$102 = "", "", ROW(Mercantil!$H$12:$H$102)), ROW()-1)), "" ) ->  | F124: =IF( B124, SUM($E$2:E124), "" ) -> 
B125: =COUNTIF(Mercantil!$H$12:$H$102, ">0") >= ROW() - 1 -> FALSE | C125: =IF($B125, INDIRECT("Mercantil!C" & SMALL(IF( Mercantil!$H$12:$H$102 = "", "", ROW(Mercantil!$H$12:$H$102)), ROW()-1)), "" ) ->  | D125: =IF($B125, INDIRECT("Mercantil!D" & SMALL(IF( Mercantil!$H$12:$H$102 = "", "", ROW(Mercantil!$H$12:$H$102)), ROW()-1)), "" ) ->  | E125: =IF($B125, INDIRECT("Mercantil!H" & SMALL(IF( Mercantil!$H$12:$H$102 = "", "", ROW(Mercantil!$H$12:$H$102)), ROW()-1)), "" ) ->  | F125: =IF( B125, SUM($E$2:E125), "" ) -> 
B126: =COUNTIF(Mercantil!$H$12:$H$102, ">0") >= ROW() - 1 -> FALSE | C126: =IF($B126, INDIRECT("Mercantil!C" & SMALL(IF( Mercantil!$H$12:$H$102 = "", "", ROW(Mercantil!$H$12:$H$102)), ROW()-1)), "" ) ->  | D126: =IF($B126, INDIRECT("Mercantil!D" & SMALL(IF( Mercantil!$H$12:$H$102 = "", "", ROW(Mercantil!$H$12:$H$102)), ROW()-1)), "" ) ->  | E126: =IF($B126, INDIRECT("Mercantil!H" & SMALL(IF( Mercantil!$H$12:$H$102 = "", "", ROW(Mercantil!$H$12:$H$102)), ROW()-1)), "" ) ->  | F126: =IF( B126, SUM($E$2:E126), "" ) -> 
B127: =COUNTIF(Mercantil!$H$12:$H$102, ">0") >= ROW() - 1 -> FALSE | C127: =IF($B127, INDIRECT("Mercantil!C" & SMALL(IF( Mercantil!$H$12:$H$102 = "", "", ROW(Mercantil!$H$12:$H$102)), ROW()-1)), "" ) ->  | D127: =IF($B127, INDIRECT("Mercantil!D" & SMALL(IF( Mercantil!$H$12:$H$102 = "", "", ROW(Mercantil!$H$12:$H$102)), ROW()-1)), "" ) ->  | E127: =IF($B127, INDIRECT("Mercantil!H" & SMALL(IF( Mercantil!$H$12:$H$102 = "", "", ROW(Mercantil!$H$12:$H$102)), ROW()-1)), "" ) ->  | F127: =IF( B127, SUM($E$2:E127), "" ) -> 
B128: =COUNTIF(Mercantil!$H$12:$H$102, ">0") >= ROW() - 1 -> FALSE | C128: =IF($B128, INDIRECT("Mercantil!C" & SMALL(IF( Mercantil!$H$12:$H$102 = "", "", ROW(Mercantil!$H$12:$H$102)), ROW()-1)), "" ) ->  | D128: =IF($B128, INDIRECT("Mercantil!D" & SMALL(IF( Mercantil!$H$12:$H$102 = "", "", ROW(Mercantil!$H$12:$H$102)), ROW()-1)), "" ) ->  | E128: =IF($B128, INDIRECT("Mercantil!H" & SMALL(IF( Mercantil!$H$12:$H$102 = "", "", ROW(Mercantil!$H$12:$H$102)), ROW()-1)), "" ) ->  | F128: =IF( B128, SUM($E$2:E128), "" ) -> 
B129: =COUNTIF(Mercantil!$H$12:$H$102, ">0") >= ROW() - 1 -> FALSE | C129: =IF($B129, INDIRECT("Mercantil!C" & SMALL(IF( Mercantil!$H$12:$H$102 = "", "", ROW(Mercantil!$H$12:$H$102)), ROW()-1)), "" ) ->  | D129: =IF($B129, INDIRECT("Mercantil!D" & SMALL(IF( Mercantil!$H$12:$H$102 = "", "", ROW(Mercantil!$H$12:$H$102)), ROW()-1)), "" ) ->  | E129: =IF($B129, INDIRECT("Mercantil!H" & SMALL(IF( Mercantil!$H$12:$H$102 = "", "", ROW(Mercantil!$H$12:$H$102)), ROW()-1)), "" ) ->  | F129: =IF( B129, SUM($E$2:E129), "" ) -> 
B130: =COUNTIF(Mercantil!$H$12:$H$102, ">0") >= ROW() - 1 -> FALSE | C130: =IF($B130, INDIRECT("Mercantil!C" & SMALL(IF( Mercantil!$H$12:$H$102 = "", "", ROW(Mercantil!$H$12:$H$102)), ROW()-1)), "" ) ->  | D130: =IF($B130, INDIRECT("Mercantil!D" & SMALL(IF( Mercantil!$H$12:$H$102 = "", "", ROW(Mercantil!$H$12:$H$102)), ROW()-1)), "" ) ->  | E130: =IF($B130, INDIRECT("Mercantil!H" & SMALL(IF( Mercantil!$H$12:$H$102 = "", "", ROW(Mercantil!$H$12:$H$102)), ROW()-1)), "" ) ->  | F130: =IF( B130, SUM($E$2:E130), "" ) -> 
B131: =COUNTIF(Mercantil!$H$12:$H$102, ">0") >= ROW() - 1 -> FALSE | C131: =IF($B131, INDIRECT("Mercantil!C" & SMALL(IF( Mercantil!$H$12:$H$102 = "", "", ROW(Mercantil!$H$12:$H$102)), ROW()-1)), "" ) ->  | D131: =IF($B131, INDIRECT("Mercantil!D" & SMALL(IF( Mercantil!$H$12:$H$102 = "", "", ROW(Mercantil!$H$12:$H$102)), ROW()-1)), "" ) ->  | E131: =IF($B131, INDIRECT("Mercantil!H" & SMALL(IF( Mercantil!$H$12:$H$102 = "", "", ROW(Mercantil!$H$12:$H$102)), ROW()-1)), "" ) ->  | F131: =IF( B131, SUM($E$2:E131), "" ) -> 
B132: =COUNTIF(Mercantil!$H$12:$H$102, ">0") >= ROW() - 1 -> FALSE | C132: =IF($B132, INDIRECT("Mercantil!C" & SMALL(IF( Mercantil!$H$12:$H$102 = "", "", ROW(Mercantil!$H$12:$H$102)), ROW()-1)), "" ) ->  | D132: =IF($B132, INDIRECT("Mercantil!D" & SMALL(IF( Mercantil!$H$12:$H$102 = "", "", ROW(Mercantil!$H$12:$H$102)), ROW()-1)), "" ) ->  | E132: =IF($B132, INDIRECT("Mercantil!H" & SMALL(IF( Mercantil!$H$12:$H$102 = "", "", ROW(Mercantil!$H$12:$H$102)), ROW()-1)), "" ) ->  | F132: =IF( B132, SUM($E$2:E132), "" ) -> 
B133: =COUNTIF(Mercantil!$H$12:$H$102, ">0") >= ROW() - 1 -> FALSE | C133: =IF($B133, INDIRECT("Mercantil!C" & SMALL(IF( Mercantil!$H$12:$H$102 = "", "", ROW(Mercantil!$H$12:$H$102)), ROW()-1)), "" ) ->  | D133: =IF($B133, INDIRECT("Mercantil!D" & SMALL(IF( Mercantil!$H$12:$H$102 = "", "", ROW(Mercantil!$H$12:$H$102)), ROW()-1)), "" ) ->  | E133: =IF($B133, INDIRECT("Mercantil!H" & SMALL(IF( Mercantil!$H$12:$H$102 = "", "", ROW(Mercantil!$H$12:$H$102)), ROW()-1)), "" ) ->  | F133: =IF( B133, SUM($E$2:E133), "" ) -> 
B134: =COUNTIF(Mercantil!$H$12:$H$102, ">0") >= ROW() - 1 -> FALSE | C134: =IF($B134, INDIRECT("Mercantil!C" & SMALL(IF( Mercantil!$H$12:$H$102 = "", "", ROW(Mercantil!$H$12:$H$102)), ROW()-1)), "" ) ->  | D134: =IF($B134, INDIRECT("Mercantil!D" & SMALL(IF( Mercantil!$H$12:$H$102 = "", "", ROW(Mercantil!$H$12:$H$102)), ROW()-1)), "" ) ->  | E134: =IF($B134, INDIRECT("Mercantil!H" & SMALL(IF( Mercantil!$H$12:$H$102 = "", "", ROW(Mercantil!$H$12:$H$102)), ROW()-1)), "" ) ->  | F134: =IF( B134, SUM($E$2:E134), "" ) -> 
B135: =COUNTIF(Mercantil!$H$12:$H$102, ">0") >= ROW() - 1 -> FALSE | C135: =IF($B135, INDIRECT("Mercantil!C" & SMALL(IF( Mercantil!$H$12:$H$102 = "", "", ROW(Mercantil!$H$12:$H$102)), ROW()-1)), "" ) ->  | D135: =IF($B135, INDIRECT("Mercantil!D" & SMALL(IF( Mercantil!$H$12:$H$102 = "", "", ROW(Mercantil!$H$12:$H$102)), ROW()-1)), "" ) ->  | E135: =IF($B135, INDIRECT("Mercantil!H" & SMALL(IF( Mercantil!$H$12:$H$102 = "", "", ROW(Mercantil!$H$12:$H$102)), ROW()-1)), "" ) ->  | F135: =IF( B135, SUM($E$2:E135), "" ) -> 
B136: =COUNTIF(Mercantil!$H$12:$H$102, ">0") >= ROW() - 1 -> FALSE | C136: =IF($B136, INDIRECT("Mercantil!C" & SMALL(IF( Mercantil!$H$12:$H$102 = "", "", ROW(Mercantil!$H$12:$H$102)), ROW()-1)), "" ) ->  | D136: =IF($B136, INDIRECT("Mercantil!D" & SMALL(IF( Mercantil!$H$12:$H$102 = "", "", ROW(Mercantil!$H$12:$H$102)), ROW()-1)), "" ) ->  | E136: =IF($B136, INDIRECT("Mercantil!H" & SMALL(IF( Mercantil!$H$12:$H$102 = "", "", ROW(Mercantil!$H$12:$H$102)), ROW()-1)), "" ) ->  | F136: =IF( B136, SUM($E$2:E136), "" ) -> 
B137: =COUNTIF(Mercantil!$H$12:$H$102, ">0") >= ROW() - 1 -> FALSE | C137: =IF($B137, INDIRECT("Mercantil!C" & SMALL(IF( Mercantil!$H$12:$H$102 = "", "", ROW(Mercantil!$H$12:$H$102)), ROW()-1)), "" ) ->  | D137: =IF($B137, INDIRECT("Mercantil!D" & SMALL(IF( Mercantil!$H$12:$H$102 = "", "", ROW(Mercantil!$H$12:$H$102)), ROW()-1)), "" ) ->  | E137: =IF($B137, INDIRECT("Mercantil!H" & SMALL(IF( Mercantil!$H$12:$H$102 = "", "", ROW(Mercantil!$H$12:$H$102)), ROW()-1)), "" ) ->  | F137: =IF( B137, SUM($E$2:E137), "" ) -> 
B138: =COUNTIF(Mercantil!$H$12:$H$102, ">0") >= ROW() - 1 -> FALSE | C138: =IF($B138, INDIRECT("Mercantil!C" & SMALL(IF( Mercantil!$H$12:$H$102 = "", "", ROW(Mercantil!$H$12:$H$102)), ROW()-1)), "" ) ->  | D138: =IF($B138, INDIRECT("Mercantil!D" & SMALL(IF( Mercantil!$H$12:$H$102 = "", "", ROW(Mercantil!$H$12:$H$102)), ROW()-1)), "" ) ->  | E138: =IF($B138, INDIRECT("Mercantil!H" & SMALL(IF( Mercantil!$H$12:$H$102 = "", "", ROW(Mercantil!$H$12:$H$102)), ROW()-1)), "" ) ->  | F138: =IF( B138, SUM($E$2:E138), "" ) -> 
B139: =COUNTIF(Mercantil!$H$12:$H$102, ">0") >= ROW() - 1 -> FALSE | C139: =IF($B139, INDIRECT("Mercantil!C" & SMALL(IF( Mercantil!$H$12:$H$102 = "", "", ROW(Mercantil!$H$12:$H$102)), ROW()-1)), "" ) ->  | D139: =IF($B139, INDIRECT("Mercantil!D" & SMALL(IF( Mercantil!$H$12:$H$102 = "", "", ROW(Mercantil!$H$12:$H$102)), ROW()-1)), "" ) ->  | E139: =IF($B139, INDIRECT("Mercantil!H" & SMALL(IF( Mercantil!$H$12:$H$102 = "", "", ROW(Mercantil!$H$12:$H$102)), ROW()-1)), "" ) ->  | F139: =IF( B139, SUM($E$2:E139), "" ) -> 
B140: =COUNTIF(Mercantil!$H$12:$H$102, ">0") >= ROW() - 1 -> FALSE | C140: =IF($B140, INDIRECT("Mercantil!C" & SMALL(IF( Mercantil!$H$12:$H$102 = "", "", ROW(Mercantil!$H$12:$H$102)), ROW()-1)), "" ) ->  | D140: =IF($B140, INDIRECT("Mercantil!D" & SMALL(IF( Mercantil!$H$12:$H$102 = "", "", ROW(Mercantil!$H$12:$H$102)), ROW()-1)), "" ) ->  | E140: =IF($B140, INDIRECT("Mercantil!H" & SMALL(IF( Mercantil!$H$12:$H$102 = "", "", ROW(Mercantil!$H$12:$H$102)), ROW()-1)), "" ) ->  | F140: =IF( B140, SUM($E$2:E140), "" ) -> 
B141: =COUNTIF(Mercantil!$H$12:$H$102, ">0") >= ROW() - 1 -> FALSE | C141: =IF($B141, INDIRECT("Mercantil!C" & SMALL(IF( Mercantil!$H$12:$H$102 = "", "", ROW(Mercantil!$H$12:$H$102)), ROW()-1)), "" ) ->  | D141: =IF($B141, INDIRECT("Mercantil!D" & SMALL(IF( Mercantil!$H$12:$H$102 = "", "", ROW(Mercantil!$H$12:$H$102)), ROW()-1)), "" ) ->  | E141: =IF($B141, INDIRECT("Mercantil!H" & SMALL(IF( Mercantil!$H$12:$H$102 = "", "", ROW(Mercantil!$H$12:$H$102)), ROW()-1)), "" ) ->  | F141: =IF( B141, SUM($E$2:E141), "" ) -> 
B142: =COUNTIF(Mercantil!$H$12:$H$102, ">0") >= ROW() - 1 -> FALSE | C142: =IF($B142, INDIRECT("Mercantil!C" & SMALL(IF( Mercantil!$H$12:$H$102 = "", "", ROW(Mercantil!$H$12:$H$102)), ROW()-1)), "" ) ->  | D142: =IF($B142, INDIRECT("Mercantil!D" & SMALL(IF( Mercantil!$H$12:$H$102 = "", "", ROW(Mercantil!$H$12:$H$102)), ROW()-1)), "" ) ->  | E142: =IF($B142, INDIRECT("Mercantil!H" & SMALL(IF( Mercantil!$H$12:$H$102 = "", "", ROW(Mercantil!$H$12:$H$102)), ROW()-1)), "" ) ->  | F142: =IF( B142, SUM($E$2:E142), "" ) -> 
B143: =COUNTIF(Mercantil!$H$12:$H$102, ">0") >= ROW() - 1 -> FALSE | C143: =IF($B143, INDIRECT("Mercantil!C" & SMALL(IF( Mercantil!$H$12:$H$102 = "", "", ROW(Mercantil!$H$12:$H$102)), ROW()-1)), "" ) ->  | D143: =IF($B143, INDIRECT("Mercantil!D" & SMALL(IF( Mercantil!$H$12:$H$102 = "", "", ROW(Mercantil!$H$12:$H$102)), ROW()-1)), "" ) ->  | E143: =IF($B143, INDIRECT("Mercantil!H" & SMALL(IF( Mercantil!$H$12:$H$102 = "", "", ROW(Mercantil!$H$12:$H$102)), ROW()-1)), "" ) ->  | F143: =IF( B143, SUM($E$2:E143), "" ) -> 
B144: =COUNTIF(Mercantil!$H$12:$H$102, ">0") >= ROW() - 1 -> FALSE | C144: =IF($B144, INDIRECT("Mercantil!C" & SMALL(IF( Mercantil!$H$12:$H$102 = "", "", ROW(Mercantil!$H$12:$H$102)), ROW()-1)), "" ) ->  | D144: =IF($B144, INDIRECT("Mercantil!D" & SMALL(IF( Mercantil!$H$12:$H$102 = "", "", ROW(Mercantil!$H$12:$H$102)), ROW()-1)), "" ) ->  | E144: =IF($B144, INDIRECT("Mercantil!H" & SMALL(IF( Mercantil!$H$12:$H$102 = "", "", ROW(Mercantil!$H$12:$H$102)), ROW()-1)), "" ) ->  | F144: =IF( B144, SUM($E$2:E144), "" ) -> 
B145: =COUNTIF(Mercantil!$H$12:$H$102, ">0") >= ROW() - 1 -> FALSE | C145: =IF($B145, INDIRECT("Mercantil!C" & SMALL(IF( Mercantil!$H$12:$H$102 = "", "", ROW(Mercantil!$H$12:$H$102)), ROW()-1)), "" ) ->  | D145: =IF($B145, INDIRECT("Mercantil!D" & SMALL(IF( Mercantil!$H$12:$H$102 = "", "", ROW(Mercantil!$H$12:$H$102)), ROW()-1)), "" ) ->  | E145: =IF($B145, INDIRECT("Mercantil!H" & SMALL(IF( Mercantil!$H$12:$H$102 = "", "", ROW(Mercantil!$H$12:$H$102)), ROW()-1)), "" ) ->  | F145: =IF( B145, SUM($E$2:E145), "" ) -> 
B146: =COUNTIF(Mercantil!$H$12:$H$102, ">0") >= ROW() - 1 -> FALSE | C146: =IF($B146, INDIRECT("Mercantil!C" & SMALL(IF( Mercantil!$H$12:$H$102 = "", "", ROW(Mercantil!$H$12:$H$102)), ROW()-1)), "" ) ->  | D146: =IF($B146, INDIRECT("Mercantil!D" & SMALL(IF( Mercantil!$H$12:$H$102 = "", "", ROW(Mercantil!$H$12:$H$102)), ROW()-1)), "" ) ->  | E146: =IF($B146, INDIRECT("Mercantil!H" & SMALL(IF( Mercantil!$H$12:$H$102 = "", "", ROW(Mercantil!$H$12:$H$102)), ROW()-1)), "" ) ->  | F146: =IF( B146, SUM($E$2:E146), "" ) -> 
B147: =COUNTIF(Mercantil!$H$12:$H$102, ">0") >= ROW() - 1 -> FALSE | C147: =IF($B147, INDIRECT("Mercantil!C" & SMALL(IF( Mercantil!$H$12:$H$102 = "", "", ROW(Mercantil!$H$12:$H$102)), ROW()-1)), "" ) ->  | D147: =IF($B147, INDIRECT("Mercantil!D" & SMALL(IF( Mercantil!$H$12:$H$102 = "", "", ROW(Mercantil!$H$12:$H$102)), ROW()-1)), "" ) ->  | E147: =IF($B147, INDIRECT("Mercantil!H" & SMALL(IF( Mercantil!$H$12:$H$102 = "", "", ROW(Mercantil!$H$12:$H$102)), ROW()-1)), "" ) ->  | F147: =IF( B147, SUM($E$2:E147), "" ) -> 
B148: =COUNTIF(Mercantil!$H$12:$H$102, ">0") >= ROW() - 1 -> FALSE | C148: =IF($B148, INDIRECT("Mercantil!C" & SMALL(IF( Mercantil!$H$12:$H$102 = "", "", ROW(Mercantil!$H$12:$H$102)), ROW()-1)), "" ) ->  | D148: =IF($B148, INDIRECT("Mercantil!D" & SMALL(IF( Mercantil!$H$12:$H$102 = "", "", ROW(Mercantil!$H$12:$H$102)), ROW()-1)), "" ) ->  | E148: =IF($B148, INDIRECT("Mercantil!H" & SMALL(IF( Mercantil!$H$12:$H$102 = "", "", ROW(Mercantil!$H$12:$H$102)), ROW()-1)), "" ) ->  | F148: =IF( B148, SUM($E$2:E148), "" ) -> 
B149: =COUNTIF(Mercantil!$H$12:$H$102, ">0") >= ROW() - 1 -> FALSE | C149: =IF($B149, INDIRECT("Mercantil!C" & SMALL(IF( Mercantil!$H$12:$H$102 = "", "", ROW(Mercantil!$H$12:$H$102)), ROW()-1)), "" ) ->  | D149: =IF($B149, INDIRECT("Mercantil!D" & SMALL(IF( Mercantil!$H$12:$H$102 = "", "", ROW(Mercantil!$H$12:$H$102)), ROW()-1)), "" ) ->  | E149: =IF($B149, INDIRECT("Mercantil!H" & SMALL(IF( Mercantil!$H$12:$H$102 = "", "", ROW(Mercantil!$H$12:$H$102)), ROW()-1)), "" ) ->  | F149: =IF( B149, SUM($E$2:E149), "" ) -> 
B150: =COUNTIF(Mercantil!$H$12:$H$102, ">0") >= ROW() - 1 -> FALSE | C150: =IF($B150, INDIRECT("Mercantil!C" & SMALL(IF( Mercantil!$H$12:$H$102 = "", "", ROW(Mercantil!$H$12:$H$102)), ROW()-1)), "" ) ->  | D150: =IF($B150, INDIRECT("Mercantil!D" & SMALL(IF( Mercantil!$H$12:$H$102 = "", "", ROW(Mercantil!$H$12:$H$102)), ROW()-1)), "" ) ->  | E150: =IF($B150, INDIRECT("Mercantil!H" & SMALL(IF( Mercantil!$H$12:$H$102 = "", "", ROW(Mercantil!$H$12:$H$102)), ROW()-1)), "" ) ->  | F150: =IF( B150, SUM($E$2:E150), "" ) -> 
B151: =COUNTIF(Mercantil!$H$12:$H$102, ">0") >= ROW() - 1 -> FALSE | C151: =IF($B151, INDIRECT("Mercantil!C" & SMALL(IF( Mercantil!$H$12:$H$102 = "", "", ROW(Mercantil!$H$12:$H$102)), ROW()-1)), "" ) ->  | D151: =IF($B151, INDIRECT("Mercantil!D" & SMALL(IF( Mercantil!$H$12:$H$102 = "", "", ROW(Mercantil!$H$12:$H$102)), ROW()-1)), "" ) ->  | E151: =IF($B151, INDIRECT("Mercantil!H" & SMALL(IF( Mercantil!$H$12:$H$102 = "", "", ROW(Mercantil!$H$12:$H$102)), ROW()-1)), "" ) ->  | F151: =IF( B151, SUM($E$2:E151), "" ) -> 
B152: =COUNTIF(Mercantil!$H$12:$H$102, ">0") >= ROW() - 1 -> FALSE | C152: =IF($B152, INDIRECT("Mercantil!C" & SMALL(IF( Mercantil!$H$12:$H$102 = "", "", ROW(Mercantil!$H$12:$H$102)), ROW()-1)), "" ) ->  | D152: =IF($B152, INDIRECT("Mercantil!D" & SMALL(IF( Mercantil!$H$12:$H$102 = "", "", ROW(Mercantil!$H$12:$H$102)), ROW()-1)), "" ) ->  | E152: =IF($B152, INDIRECT("Mercantil!H" & SMALL(IF( Mercantil!$H$12:$H$102 = "", "", ROW(Mercantil!$H$12:$H$102)), ROW()-1)), "" ) ->  | F152: =IF( B152, SUM($E$2:E152), "" ) -> 
B153: =COUNTIF(Mercantil!$H$12:$H$102, ">0") >= ROW() - 1 -> FALSE | C153: =IF($B153, INDIRECT("Mercantil!C" & SMALL(IF( Mercantil!$H$12:$H$102 = "", "", ROW(Mercantil!$H$12:$H$102)), ROW()-1)), "" ) ->  | D153: =IF($B153, INDIRECT("Mercantil!D" & SMALL(IF( Mercantil!$H$12:$H$102 = "", "", ROW(Mercantil!$H$12:$H$102)), ROW()-1)), "" ) ->  | E153: =IF($B153, INDIRECT("Mercantil!H" & SMALL(IF( Mercantil!$H$12:$H$102 = "", "", ROW(Mercantil!$H$12:$H$102)), ROW()-1)), "" ) ->  | F153: =IF( B153, SUM($E$2:E153), "" ) -> 
B154: =COUNTIF(Mercantil!$H$12:$H$102, ">0") >= ROW() - 1 -> FALSE | C154: =IF($B154, INDIRECT("Mercantil!C" & SMALL(IF( Mercantil!$H$12:$H$102 = "", "", ROW(Mercantil!$H$12:$H$102)), ROW()-1)), "" ) ->  | D154: =IF($B154, INDIRECT("Mercantil!D" & SMALL(IF( Mercantil!$H$12:$H$102 = "", "", ROW(Mercantil!$H$12:$H$102)), ROW()-1)), "" ) ->  | E154: =IF($B154, INDIRECT("Mercantil!H" & SMALL(IF( Mercantil!$H$12:$H$102 = "", "", ROW(Mercantil!$H$12:$H$102)), ROW()-1)), "" ) ->  | F154: =IF( B154, SUM($E$2:E154), "" ) -> 
B155: =COUNTIF(Mercantil!$H$12:$H$102, ">0") >= ROW() - 1 -> FALSE | C155: =IF($B155, INDIRECT("Mercantil!C" & SMALL(IF( Mercantil!$H$12:$H$102 = "", "", ROW(Mercantil!$H$12:$H$102)), ROW()-1)), "" ) ->  | D155: =IF($B155, INDIRECT("Mercantil!D" & SMALL(IF( Mercantil!$H$12:$H$102 = "", "", ROW(Mercantil!$H$12:$H$102)), ROW()-1)), "" ) ->  | E155: =IF($B155, INDIRECT("Mercantil!H" & SMALL(IF( Mercantil!$H$12:$H$102 = "", "", ROW(Mercantil!$H$12:$H$102)), ROW()-1)), "" ) ->  | F155: =IF( B155, SUM($E$2:E155), "" ) -> 
B156: =COUNTIF(Mercantil!$H$12:$H$102, ">0") >= ROW() - 1 -> FALSE | C156: =IF($B156, INDIRECT("Mercantil!C" & SMALL(IF( Mercantil!$H$12:$H$102 = "", "", ROW(Mercantil!$H$12:$H$102)), ROW()-1)), "" ) ->  | D156: =IF($B156, INDIRECT("Mercantil!D" & SMALL(IF( Mercantil!$H$12:$H$102 = "", "", ROW(Mercantil!$H$12:$H$102)), ROW()-1)), "" ) ->  | E156: =IF($B156, INDIRECT("Mercantil!H" & SMALL(IF( Mercantil!$H$12:$H$102 = "", "", ROW(Mercantil!$H$12:$H$102)), ROW()-1)), "" ) ->  | F156: =IF( B156, SUM($E$2:E156), "" ) -> 
B157: =COUNTIF(Mercantil!$H$12:$H$102, ">0") >= ROW() - 1 -> FALSE | C157: =IF($B157, INDIRECT("Mercantil!C" & SMALL(IF( Mercantil!$H$12:$H$102 = "", "", ROW(Mercantil!$H$12:$H$102)), ROW()-1)), "" ) ->  | D157: =IF($B157, INDIRECT("Mercantil!D" & SMALL(IF( Mercantil!$H$12:$H$102 = "", "", ROW(Mercantil!$H$12:$H$102)), ROW()-1)), "" ) ->  | E157: =IF($B157, INDIRECT("Mercantil!H" & SMALL(IF( Mercantil!$H$12:$H$102 = "", "", ROW(Mercantil!$H$12:$H$102)), ROW()-1)), "" ) ->  | F157: =IF( B157, SUM($E$2:E157), "" ) -> 
B158: =COUNTIF(Mercantil!$H$12:$H$102, ">0") >= ROW() - 1 -> FALSE | C158: =IF($B158, INDIRECT("Mercantil!C" & SMALL(IF( Mercantil!$H$12:$H$102 = "", "", ROW(Mercantil!$H$12:$H$102)), ROW()-1)), "" ) ->  | D158: =IF($B158, INDIRECT("Mercantil!D" & SMALL(IF( Mercantil!$H$12:$H$102 = "", "", ROW(Mercantil!$H$12:$H$102)), ROW()-1)), "" ) ->  | E158: =IF($B158, INDIRECT("Mercantil!H" & SMALL(IF( Mercantil!$H$12:$H$102 = "", "", ROW(Mercantil!$H$12:$H$102)), ROW()-1)), "" ) ->  | F158: =IF( B158, SUM($E$2:E158), "" ) -> 
B159: =COUNTIF(Mercantil!$H$12:$H$102, ">0") >= ROW() - 1 -> FALSE | C159: =IF($B159, INDIRECT("Mercantil!C" & SMALL(IF( Mercantil!$H$12:$H$102 = "", "", ROW(Mercantil!$H$12:$H$102)), ROW()-1)), "" ) ->  | D159: =IF($B159, INDIRECT("Mercantil!D" & SMALL(IF( Mercantil!$H$12:$H$102 = "", "", ROW(Mercantil!$H$12:$H$102)), ROW()-1)), "" ) ->  | E159: =IF($B159, INDIRECT("Mercantil!H" & SMALL(IF( Mercantil!$H$12:$H$102 = "", "", ROW(Mercantil!$H$12:$H$102)), ROW()-1)), "" ) ->  | F159: =IF( B159, SUM($E$2:E159), "" ) -> 
B160: =COUNTIF(Mercantil!$H$12:$H$102, ">0") >= ROW() - 1 -> FALSE | C160: =IF($B160, INDIRECT("Mercantil!C" & SMALL(IF( Mercantil!$H$12:$H$102 = "", "", ROW(Mercantil!$H$12:$H$102)), ROW()-1)), "" ) ->  | D160: =IF($B160, INDIRECT("Mercantil!D" & SMALL(IF( Mercantil!$H$12:$H$102 = "", "", ROW(Mercantil!$H$12:$H$102)), ROW()-1)), "" ) ->  | E160: =IF($B160, INDIRECT("Mercantil!H" & SMALL(IF( Mercantil!$H$12:$H$102 = "", "", ROW(Mercantil!$H$12:$H$102)), ROW()-1)), "" ) ->  | F160: =IF( B160, SUM($E$2:E160), "" ) -> 
B161: =COUNTIF(Mercantil!$H$12:$H$102, ">0") >= ROW() - 1 -> FALSE | C161: =IF($B161, INDIRECT("Mercantil!C" & SMALL(IF( Mercantil!$H$12:$H$102 = "", "", ROW(Mercantil!$H$12:$H$102)), ROW()-1)), "" ) ->  | D161: =IF($B161, INDIRECT("Mercantil!D" & SMALL(IF( Mercantil!$H$12:$H$102 = "", "", ROW(Mercantil!$H$12:$H$102)), ROW()-1)), "" ) ->  | E161: =IF($B161, INDIRECT("Mercantil!H" & SMALL(IF( Mercantil!$H$12:$H$102 = "", "", ROW(Mercantil!$H$12:$H$102)), ROW()-1)), "" ) ->  | F161: =IF( B161, SUM($E$2:E161), "" ) -> 
B162: =COUNTIF(Mercantil!$H$12:$H$102, ">0") >= ROW() - 1 -> FALSE | C162: =IF($B162, INDIRECT("Mercantil!C" & SMALL(IF( Mercantil!$H$12:$H$102 = "", "", ROW(Mercantil!$H$12:$H$102)), ROW()-1)), "" ) ->  | D162: =IF($B162, INDIRECT("Mercantil!D" & SMALL(IF( Mercantil!$H$12:$H$102 = "", "", ROW(Mercantil!$H$12:$H$102)), ROW()-1)), "" ) ->  | E162: =IF($B162, INDIRECT("Mercantil!H" & SMALL(IF( Mercantil!$H$12:$H$102 = "", "", ROW(Mercantil!$H$12:$H$102)), ROW()-1)), "" ) ->  | F162: =IF( B162, SUM($E$2:E162), "" ) -> 
B163: =COUNTIF(Mercantil!$H$12:$H$102, ">0") >= ROW() - 1 -> FALSE | C163: =IF($B163, INDIRECT("Mercantil!C" & SMALL(IF( Mercantil!$H$12:$H$102 = "", "", ROW(Mercantil!$H$12:$H$102)), ROW()-1)), "" ) ->  | D163: =IF($B163, INDIRECT("Mercantil!D" & SMALL(IF( Mercantil!$H$12:$H$102 = "", "", ROW(Mercantil!$H$12:$H$102)), ROW()-1)), "" ) ->  | E163: =IF($B163, INDIRECT("Mercantil!H" & SMALL(IF( Mercantil!$H$12:$H$102 = "", "", ROW(Mercantil!$H$12:$H$102)), ROW()-1)), "" ) ->  | F163: =IF( B163, SUM($E$2:E163), "" ) -> 
B164: =COUNTIF(Mercantil!$H$12:$H$102, ">0") >= ROW() - 1 -> FALSE | C164: =IF($B164, INDIRECT("Mercantil!C" & SMALL(IF( Mercantil!$H$12:$H$102 = "", "", ROW(Mercantil!$H$12:$H$102)), ROW()-1)), "" ) ->  | D164: =IF($B164, INDIRECT("Mercantil!D" & SMALL(IF( Mercantil!$H$12:$H$102 = "", "", ROW(Mercantil!$H$12:$H$102)), ROW()-1)), "" ) ->  | E164: =IF($B164, INDIRECT("Mercantil!H" & SMALL(IF( Mercantil!$H$12:$H$102 = "", "", ROW(Mercantil!$H$12:$H$102)), ROW()-1)), "" ) ->  | F164: =IF( B164, SUM($E$2:E164), "" ) -> 
B165: =COUNTIF(Mercantil!$H$12:$H$102, ">0") >= ROW() - 1 -> FALSE | C165: =IF($B165, INDIRECT("Mercantil!C" & SMALL(IF( Mercantil!$H$12:$H$102 = "", "", ROW(Mercantil!$H$12:$H$102)), ROW()-1)), "" ) ->  | D165: =IF($B165, INDIRECT("Mercantil!D" & SMALL(IF( Mercantil!$H$12:$H$102 = "", "", ROW(Mercantil!$H$12:$H$102)), ROW()-1)), "" ) ->  | E165: =IF($B165, INDIRECT("Mercantil!H" & SMALL(IF( Mercantil!$H$12:$H$102 = "", "", ROW(Mercantil!$H$12:$H$102)), ROW()-1)), "" ) ->  | F165: =IF( B165, SUM($E$2:E165), "" ) -> 
B166: =COUNTIF(Mercantil!$H$12:$H$102, ">0") >= ROW() - 1 -> FALSE | C166: =IF($B166, INDIRECT("Mercantil!C" & SMALL(IF( Mercantil!$H$12:$H$102 = "", "", ROW(Mercantil!$H$12:$H$102)), ROW()-1)), "" ) ->  | D166: =IF($B166, INDIRECT("Mercantil!D" & SMALL(IF( Mercantil!$H$12:$H$102 = "", "", ROW(Mercantil!$H$12:$H$102)), ROW()-1)), "" ) ->  | E166: =IF($B166, INDIRECT("Mercantil!H" & SMALL(IF( Mercantil!$H$12:$H$102 = "", "", ROW(Mercantil!$H$12:$H$102)), ROW()-1)), "" ) ->  | F166: =IF( B166, SUM($E$2:E166), "" ) -> 
B167: =COUNTIF(Mercantil!$H$12:$H$102, ">0") >= ROW() - 1 -> FALSE | C167: =IF($B167, INDIRECT("Mercantil!C" & SMALL(IF( Mercantil!$H$12:$H$102 = "", "", ROW(Mercantil!$H$12:$H$102)), ROW()-1)), "" ) ->  | D167: =IF($B167, INDIRECT("Mercantil!D" & SMALL(IF( Mercantil!$H$12:$H$102 = "", "", ROW(Mercantil!$H$12:$H$102)), ROW()-1)), "" ) ->  | E167: =IF($B167, INDIRECT("Mercantil!H" & SMALL(IF( Mercantil!$H$12:$H$102 = "", "", ROW(Mercantil!$H$12:$H$102)), ROW()-1)), "" ) ->  | F167: =IF( B167, SUM($E$2:E167), "" ) -> 
B168: =COUNTIF(Mercantil!$H$12:$H$102, ">0") >= ROW() - 1 -> FALSE | C168: =IF($B168, INDIRECT("Mercantil!C" & SMALL(IF( Mercantil!$H$12:$H$102 = "", "", ROW(Mercantil!$H$12:$H$102)), ROW()-1)), "" ) ->  | D168: =IF($B168, INDIRECT("Mercantil!D" & SMALL(IF( Mercantil!$H$12:$H$102 = "", "", ROW(Mercantil!$H$12:$H$102)), ROW()-1)), "" ) ->  | E168: =IF($B168, INDIRECT("Mercantil!H" & SMALL(IF( Mercantil!$H$12:$H$102 = "", "", ROW(Mercantil!$H$12:$H$102)), ROW()-1)), "" ) ->  | F168: =IF( B168, SUM($E$2:E168), "" ) -> 
B169: =COUNTIF(Mercantil!$H$12:$H$102, ">0") >= ROW() - 1 -> FALSE | C169: =IF($B169, INDIRECT("Mercantil!C" & SMALL(IF( Mercantil!$H$12:$H$102 = "", "", ROW(Mercantil!$H$12:$H$102)), ROW()-1)), "" ) ->  | D169: =IF($B169, INDIRECT("Mercantil!D" & SMALL(IF( Mercantil!$H$12:$H$102 = "", "", ROW(Mercantil!$H$12:$H$102)), ROW()-1)), "" ) ->  | E169: =IF($B169, INDIRECT("Mercantil!H" & SMALL(IF( Mercantil!$H$12:$H$102 = "", "", ROW(Mercantil!$H$12:$H$102)), ROW()-1)), "" ) ->  | F169: =IF( B169, SUM($E$2:E169), "" ) -> 
B170: =COUNTIF(Mercantil!$H$12:$H$102, ">0") >= ROW() - 1 -> FALSE | C170: =IF($B170, INDIRECT("Mercantil!C" & SMALL(IF( Mercantil!$H$12:$H$102 = "", "", ROW(Mercantil!$H$12:$H$102)), ROW()-1)), "" ) ->  | D170: =IF($B170, INDIRECT("Mercantil!D" & SMALL(IF( Mercantil!$H$12:$H$102 = "", "", ROW(Mercantil!$H$12:$H$102)), ROW()-1)), "" ) ->  | E170: =IF($B170, INDIRECT("Mercantil!H" & SMALL(IF( Mercantil!$H$12:$H$102 = "", "", ROW(Mercantil!$H$12:$H$102)), ROW()-1)), "" ) ->  | F170: =IF( B170, SUM($E$2:E170), "" ) -> 
B171: =COUNTIF(Mercantil!$H$12:$H$102, ">0") >= ROW() - 1 -> FALSE | C171: =IF($B171, INDIRECT("Mercantil!C" & SMALL(IF( Mercantil!$H$12:$H$102 = "", "", ROW(Mercantil!$H$12:$H$102)), ROW()-1)), "" ) ->  | D171: =IF($B171, INDIRECT("Mercantil!D" & SMALL(IF( Mercantil!$H$12:$H$102 = "", "", ROW(Mercantil!$H$12:$H$102)), ROW()-1)), "" ) ->  | E171: =IF($B171, INDIRECT("Mercantil!H" & SMALL(IF( Mercantil!$H$12:$H$102 = "", "", ROW(Mercantil!$H$12:$H$102)), ROW()-1)), "" ) ->  | F171: =IF( B171, SUM($E$2:E171), "" ) -> 
B172: =COUNTIF(Mercantil!$H$12:$H$102, ">0") >= ROW() - 1 -> FALSE | C172: =IF($B172, INDIRECT("Mercantil!C" & SMALL(IF( Mercantil!$H$12:$H$102 = "", "", ROW(Mercantil!$H$12:$H$102)), ROW()-1)), "" ) ->  | D172: =IF($B172, INDIRECT("Mercantil!D" & SMALL(IF( Mercantil!$H$12:$H$102 = "", "", ROW(Mercantil!$H$12:$H$102)), ROW()-1)), "" ) ->  | E172: =IF($B172, INDIRECT("Mercantil!H" & SMALL(IF( Mercantil!$H$12:$H$102 = "", "", ROW(Mercantil!$H$12:$H$102)), ROW()-1)), "" ) ->  | F172: =IF( B172, SUM($E$2:E172), "" ) -> 
B173: =COUNTIF(Mercantil!$H$12:$H$102, ">0") >= ROW() - 1 -> FALSE | C173: =IF($B173, INDIRECT("Mercantil!C" & SMALL(IF( Mercantil!$H$12:$H$102 = "", "", ROW(Mercantil!$H$12:$H$102)), ROW()-1)), "" ) ->  | D173: =IF($B173, INDIRECT("Mercantil!D" & SMALL(IF( Mercantil!$H$12:$H$102 = "", "", ROW(Mercantil!$H$12:$H$102)), ROW()-1)), "" ) ->  | E173: =IF($B173, INDIRECT("Mercantil!H" & SMALL(IF( Mercantil!$H$12:$H$102 = "", "", ROW(Mercantil!$H$12:$H$102)), ROW()-1)), "" ) ->  | F173: =IF( B173, SUM($E$2:E173), "" ) -> 
B174: =COUNTIF(Mercantil!$H$12:$H$102, ">0") >= ROW() - 1 -> FALSE | C174: =IF($B174, INDIRECT("Mercantil!C" & SMALL(IF( Mercantil!$H$12:$H$102 = "", "", ROW(Mercantil!$H$12:$H$102)), ROW()-1)), "" ) ->  | D174: =IF($B174, INDIRECT("Mercantil!D" & SMALL(IF( Mercantil!$H$12:$H$102 = "", "", ROW(Mercantil!$H$12:$H$102)), ROW()-1)), "" ) ->  | E174: =IF($B174, INDIRECT("Mercantil!H" & SMALL(IF( Mercantil!$H$12:$H$102 = "", "", ROW(Mercantil!$H$12:$H$102)), ROW()-1)), "" ) ->  | F174: =IF( B174, SUM($E$2:E174), "" ) -> 
B175: =COUNTIF(Mercantil!$H$12:$H$102, ">0") >= ROW() - 1 -> FALSE | C175: =IF($B175, INDIRECT("Mercantil!C" & SMALL(IF( Mercantil!$H$12:$H$102 = "", "", ROW(Mercantil!$H$12:$H$102)), ROW()-1)), "" ) ->  | D175: =IF($B175, INDIRECT("Mercantil!D" & SMALL(IF( Mercantil!$H$12:$H$102 = "", "", ROW(Mercantil!$H$12:$H$102)), ROW()-1)), "" ) ->  | E175: =IF($B175, INDIRECT("Mercantil!H" & SMALL(IF( Mercantil!$H$12:$H$102 = "", "", ROW(Mercantil!$H$12:$H$102)), ROW()-1)), "" ) ->  | F175: =IF( B175, SUM($E$2:E175), "" ) -> 
B176: =COUNTIF(Mercantil!$H$12:$H$102, ">0") >= ROW() - 1 -> FALSE | C176: =IF($B176, INDIRECT("Mercantil!C" & SMALL(IF( Mercantil!$H$12:$H$102 = "", "", ROW(Mercantil!$H$12:$H$102)), ROW()-1)), "" ) ->  | D176: =IF($B176, INDIRECT("Mercantil!D" & SMALL(IF( Mercantil!$H$12:$H$102 = "", "", ROW(Mercantil!$H$12:$H$102)), ROW()-1)), "" ) ->  | E176: =IF($B176, INDIRECT("Mercantil!H" & SMALL(IF( Mercantil!$H$12:$H$102 = "", "", ROW(Mercantil!$H$12:$H$102)), ROW()-1)), "" ) ->  | F176: =IF( B176, SUM($E$2:E176), "" ) -> 
B177: =COUNTIF(Mercantil!$H$12:$H$102, ">0") >= ROW() - 1 -> FALSE | C177: =IF($B177, INDIRECT("Mercantil!C" & SMALL(IF( Mercantil!$H$12:$H$102 = "", "", ROW(Mercantil!$H$12:$H$102)), ROW()-1)), "" ) ->  | D177: =IF($B177, INDIRECT("Mercantil!D" & SMALL(IF( Mercantil!$H$12:$H$102 = "", "", ROW(Mercantil!$H$12:$H$102)), ROW()-1)), "" ) ->  | E177: =IF($B177, INDIRECT("Mercantil!H" & SMALL(IF( Mercantil!$H$12:$H$102 = "", "", ROW(Mercantil!$H$12:$H$102)), ROW()-1)), "" ) ->  | F177: =IF( B177, SUM($E$2:E177), "" ) -> 
B178: =COUNTIF(Mercantil!$H$12:$H$102, ">0") >= ROW() - 1 -> FALSE | C178: =IF($B178, INDIRECT("Mercantil!C" & SMALL(IF( Mercantil!$H$12:$H$102 = "", "", ROW(Mercantil!$H$12:$H$102)), ROW()-1)), "" ) ->  | D178: =IF($B178, INDIRECT("Mercantil!D" & SMALL(IF( Mercantil!$H$12:$H$102 = "", "", ROW(Mercantil!$H$12:$H$102)), ROW()-1)), "" ) ->  | E178: =IF($B178, INDIRECT("Mercantil!H" & SMALL(IF( Mercantil!$H$12:$H$102 = "", "", ROW(Mercantil!$H$12:$H$102)), ROW()-1)), "" ) ->  | F178: =IF( B178, SUM($E$2:E178), "" ) -> 
B179: =COUNTIF(Mercantil!$H$12:$H$102, ">0") >= ROW() - 1 -> FALSE | C179: =IF($B179, INDIRECT("Mercantil!C" & SMALL(IF( Mercantil!$H$12:$H$102 = "", "", ROW(Mercantil!$H$12:$H$102)), ROW()-1)), "" ) ->  | D179: =IF($B179, INDIRECT("Mercantil!D" & SMALL(IF( Mercantil!$H$12:$H$102 = "", "", ROW(Mercantil!$H$12:$H$102)), ROW()-1)), "" ) ->  | E179: =IF($B179, INDIRECT("Mercantil!H" & SMALL(IF( Mercantil!$H$12:$H$102 = "", "", ROW(Mercantil!$H$12:$H$102)), ROW()-1)), "" ) ->  | F179: =IF( B179, SUM($E$2:E179), "" ) -> 
B180: =COUNTIF(Mercantil!$H$12:$H$102, ">0") >= ROW() - 1 -> FALSE | C180: =IF($B180, INDIRECT("Mercantil!C" & SMALL(IF( Mercantil!$H$12:$H$102 = "", "", ROW(Mercantil!$H$12:$H$102)), ROW()-1)), "" ) ->  | D180: =IF($B180, INDIRECT("Mercantil!D" & SMALL(IF( Mercantil!$H$12:$H$102 = "", "", ROW(Mercantil!$H$12:$H$102)), ROW()-1)), "" ) ->  | E180: =IF($B180, INDIRECT("Mercantil!H" & SMALL(IF( Mercantil!$H$12:$H$102 = "", "", ROW(Mercantil!$H$12:$H$102)), ROW()-1)), "" ) ->  | F180: =IF( B180, SUM($E$2:E180), "" ) -> 
B181: =COUNTIF(Mercantil!$H$12:$H$102, ">0") >= ROW() - 1 -> FALSE | C181: =IF($B181, INDIRECT("Mercantil!C" & SMALL(IF( Mercantil!$H$12:$H$102 = "", "", ROW(Mercantil!$H$12:$H$102)), ROW()-1)), "" ) ->  | D181: =IF($B181, INDIRECT("Mercantil!D" & SMALL(IF( Mercantil!$H$12:$H$102 = "", "", ROW(Mercantil!$H$12:$H$102)), ROW()-1)), "" ) ->  | E181: =IF($B181, INDIRECT("Mercantil!H" & SMALL(IF( Mercantil!$H$12:$H$102 = "", "", ROW(Mercantil!$H$12:$H$102)), ROW()-1)), "" ) ->  | F181: =IF( B181, SUM($E$2:E181), "" ) -> 
B182: =COUNTIF(Mercantil!$H$12:$H$102, ">0") >= ROW() - 1 -> FALSE | C182: =IF($B182, INDIRECT("Mercantil!C" & SMALL(IF( Mercantil!$H$12:$H$102 = "", "", ROW(Mercantil!$H$12:$H$102)), ROW()-1)), "" ) ->  | D182: =IF($B182, INDIRECT("Mercantil!D" & SMALL(IF( Mercantil!$H$12:$H$102 = "", "", ROW(Mercantil!$H$12:$H$102)), ROW()-1)), "" ) ->  | E182: =IF($B182, INDIRECT("Mercantil!H" & SMALL(IF( Mercantil!$H$12:$H$102 = "", "", ROW(Mercantil!$H$12:$H$102)), ROW()-1)), "" ) ->  | F182: =IF( B182, SUM($E$2:E182), "" ) -> 
B183: =COUNTIF(Mercantil!$H$12:$H$102, ">0") >= ROW() - 1 -> FALSE | C183: =IF($B183, INDIRECT("Mercantil!C" & SMALL(IF( Mercantil!$H$12:$H$102 = "", "", ROW(Mercantil!$H$12:$H$102)), ROW()-1)), "" ) ->  | D183: =IF($B183, INDIRECT("Mercantil!D" & SMALL(IF( Mercantil!$H$12:$H$102 = "", "", ROW(Mercantil!$H$12:$H$102)), ROW()-1)), "" ) ->  | E183: =IF($B183, INDIRECT("Mercantil!H" & SMALL(IF( Mercantil!$H$12:$H$102 = "", "", ROW(Mercantil!$H$12:$H$102)), ROW()-1)), "" ) ->  | F183: =IF( B183, SUM($E$2:E183), "" ) -> 
B184: =COUNTIF(Mercantil!$H$12:$H$102, ">0") >= ROW() - 1 -> FALSE | C184: =IF($B184, INDIRECT("Mercantil!C" & SMALL(IF( Mercantil!$H$12:$H$102 = "", "", ROW(Mercantil!$H$12:$H$102)), ROW()-1)), "" ) ->  | D184: =IF($B184, INDIRECT("Mercantil!D" & SMALL(IF( Mercantil!$H$12:$H$102 = "", "", ROW(Mercantil!$H$12:$H$102)), ROW()-1)), "" ) ->  | E184: =IF($B184, INDIRECT("Mercantil!H" & SMALL(IF( Mercantil!$H$12:$H$102 = "", "", ROW(Mercantil!$H$12:$H$102)), ROW()-1)), "" ) ->  | F184: =IF( B184, SUM($E$2:E184), "" ) -> 
B185: =COUNTIF(Mercantil!$H$12:$H$102, ">0") >= ROW() - 1 -> FALSE | C185: =IF($B185, INDIRECT("Mercantil!C" & SMALL(IF( Mercantil!$H$12:$H$102 = "", "", ROW(Mercantil!$H$12:$H$102)), ROW()-1)), "" ) ->  | D185: =IF($B185, INDIRECT("Mercantil!D" & SMALL(IF( Mercantil!$H$12:$H$102 = "", "", ROW(Mercantil!$H$12:$H$102)), ROW()-1)), "" ) ->  | E185: =IF($B185, INDIRECT("Mercantil!H" & SMALL(IF( Mercantil!$H$12:$H$102 = "", "", ROW(Mercantil!$H$12:$H$102)), ROW()-1)), "" ) ->  | F185: =IF( B185, SUM($E$2:E185), "" ) -> 
B186: =COUNTIF(Mercantil!$H$12:$H$102, ">0") >= ROW() - 1 -> FALSE | C186: =IF($B186, INDIRECT("Mercantil!C" & SMALL(IF( Mercantil!$H$12:$H$102 = "", "", ROW(Mercantil!$H$12:$H$102)), ROW()-1)), "" ) ->  | D186: =IF($B186, INDIRECT("Mercantil!D" & SMALL(IF( Mercantil!$H$12:$H$102 = "", "", ROW(Mercantil!$H$12:$H$102)), ROW()-1)), "" ) ->  | E186: =IF($B186, INDIRECT("Mercantil!H" & SMALL(IF( Mercantil!$H$12:$H$102 = "", "", ROW(Mercantil!$H$12:$H$102)), ROW()-1)), "" ) ->  | F186: =IF( B186, SUM($E$2:E186), "" ) -> 
B187: =COUNTIF(Mercantil!$H$12:$H$102, ">0") >= ROW() - 1 -> FALSE | C187: =IF($B187, INDIRECT("Mercantil!C" & SMALL(IF( Mercantil!$H$12:$H$102 = "", "", ROW(Mercantil!$H$12:$H$102)), ROW()-1)), "" ) ->  | D187: =IF($B187, INDIRECT("Mercantil!D" & SMALL(IF( Mercantil!$H$12:$H$102 = "", "", ROW(Mercantil!$H$12:$H$102)), ROW()-1)), "" ) ->  | E187: =IF($B187, INDIRECT("Mercantil!H" & SMALL(IF( Mercantil!$H$12:$H$102 = "", "", ROW(Mercantil!$H$12:$H$102)), ROW()-1)), "" ) ->  | F187: =IF( B187, SUM($E$2:E187), "" ) -> 
B188: =COUNTIF(Mercantil!$H$12:$H$102, ">0") >= ROW() - 1 -> FALSE | C188: =IF($B188, INDIRECT("Mercantil!C" & SMALL(IF( Mercantil!$H$12:$H$102 = "", "", ROW(Mercantil!$H$12:$H$102)), ROW()-1)), "" ) ->  | D188: =IF($B188, INDIRECT("Mercantil!D" & SMALL(IF( Mercantil!$H$12:$H$102 = "", "", ROW(Mercantil!$H$12:$H$102)), ROW()-1)), "" ) ->  | E188: =IF($B188, INDIRECT("Mercantil!H" & SMALL(IF( Mercantil!$H$12:$H$102 = "", "", ROW(Mercantil!$H$12:$H$102)), ROW()-1)), "" ) ->  | F188: =IF( B188, SUM($E$2:E188), "" ) -> 
B189: =COUNTIF(Mercantil!$H$12:$H$102, ">0") >= ROW() - 1 -> FALSE | C189: =IF($B189, INDIRECT("Mercantil!C" & SMALL(IF( Mercantil!$H$12:$H$102 = "", "", ROW(Mercantil!$H$12:$H$102)), ROW()-1)), "" ) ->  | D189: =IF($B189, INDIRECT("Mercantil!D" & SMALL(IF( Mercantil!$H$12:$H$102 = "", "", ROW(Mercantil!$H$12:$H$102)), ROW()-1)), "" ) ->  | E189: =IF($B189, INDIRECT("Mercantil!H" & SMALL(IF( Mercantil!$H$12:$H$102 = "", "", ROW(Mercantil!$H$12:$H$102)), ROW()-1)), "" ) ->  | F189: =IF( B189, SUM($E$2:E189), "" ) -> 
B190: =COUNTIF(Mercantil!$H$12:$H$102, ">0") >= ROW() - 1 -> FALSE | C190: =IF($B190, INDIRECT("Mercantil!C" & SMALL(IF( Mercantil!$H$12:$H$102 = "", "", ROW(Mercantil!$H$12:$H$102)), ROW()-1)), "" ) ->  | D190: =IF($B190, INDIRECT("Mercantil!D" & SMALL(IF( Mercantil!$H$12:$H$102 = "", "", ROW(Mercantil!$H$12:$H$102)), ROW()-1)), "" ) ->  | E190: =IF($B190, INDIRECT("Mercantil!H" & SMALL(IF( Mercantil!$H$12:$H$102 = "", "", ROW(Mercantil!$H$12:$H$102)), ROW()-1)), "" ) ->  | F190: =IF( B190, SUM($E$2:E190), "" ) -> 
B191: =COUNTIF(Mercantil!$H$12:$H$102, ">0") >= ROW() - 1 -> FALSE | C191: =IF($B191, INDIRECT("Mercantil!C" & SMALL(IF( Mercantil!$H$12:$H$102 = "", "", ROW(Mercantil!$H$12:$H$102)), ROW()-1)), "" ) ->  | D191: =IF($B191, INDIRECT("Mercantil!D" & SMALL(IF( Mercantil!$H$12:$H$102 = "", "", ROW(Mercantil!$H$12:$H$102)), ROW()-1)), "" ) ->  | E191: =IF($B191, INDIRECT("Mercantil!H" & SMALL(IF( Mercantil!$H$12:$H$102 = "", "", ROW(Mercantil!$H$12:$H$102)), ROW()-1)), "" ) ->  | F191: =IF( B191, SUM($E$2:E191), "" ) -> 
B192: =COUNTIF(Mercantil!$H$12:$H$102, ">0") >= ROW() - 1 -> FALSE | C192: =IF($B192, INDIRECT("Mercantil!C" & SMALL(IF( Mercantil!$H$12:$H$102 = "", "", ROW(Mercantil!$H$12:$H$102)), ROW()-1)), "" ) ->  | D192: =IF($B192, INDIRECT("Mercantil!D" & SMALL(IF( Mercantil!$H$12:$H$102 = "", "", ROW(Mercantil!$H$12:$H$102)), ROW()-1)), "" ) ->  | E192: =IF($B192, INDIRECT("Mercantil!H" & SMALL(IF( Mercantil!$H$12:$H$102 = "", "", ROW(Mercantil!$H$12:$H$102)), ROW()-1)), "" ) ->  | F192: =IF( B192, SUM($E$2:E192), "" ) -> 
B193: =COUNTIF(Mercantil!$H$12:$H$102, ">0") >= ROW() - 1 -> FALSE | C193: =IF($B193, INDIRECT("Mercantil!C" & SMALL(IF( Mercantil!$H$12:$H$102 = "", "", ROW(Mercantil!$H$12:$H$102)), ROW()-1)), "" ) ->  | D193: =IF($B193, INDIRECT("Mercantil!D" & SMALL(IF( Mercantil!$H$12:$H$102 = "", "", ROW(Mercantil!$H$12:$H$102)), ROW()-1)), "" ) ->  | E193: =IF($B193, INDIRECT("Mercantil!H" & SMALL(IF( Mercantil!$H$12:$H$102 = "", "", ROW(Mercantil!$H$12:$H$102)), ROW()-1)), "" ) ->  | F193: =IF( B193, SUM($E$2:E193), "" ) -> 
B194: =COUNTIF(Mercantil!$H$12:$H$102, ">0") >= ROW() - 1 -> FALSE | C194: =IF($B194, INDIRECT("Mercantil!C" & SMALL(IF( Mercantil!$H$12:$H$102 = "", "", ROW(Mercantil!$H$12:$H$102)), ROW()-1)), "" ) ->  | D194: =IF($B194, INDIRECT("Mercantil!D" & SMALL(IF( Mercantil!$H$12:$H$102 = "", "", ROW(Mercantil!$H$12:$H$102)), ROW()-1)), "" ) ->  | E194: =IF($B194, INDIRECT("Mercantil!H" & SMALL(IF( Mercantil!$H$12:$H$102 = "", "", ROW(Mercantil!$H$12:$H$102)), ROW()-1)), "" ) ->  | F194: =IF( B194, SUM($E$2:E194), "" ) -> 
B195: =COUNTIF(Mercantil!$H$12:$H$102, ">0") >= ROW() - 1 -> FALSE | C195: =IF($B195, INDIRECT("Mercantil!C" & SMALL(IF( Mercantil!$H$12:$H$102 = "", "", ROW(Mercantil!$H$12:$H$102)), ROW()-1)), "" ) ->  | D195: =IF($B195, INDIRECT("Mercantil!D" & SMALL(IF( Mercantil!$H$12:$H$102 = "", "", ROW(Mercantil!$H$12:$H$102)), ROW()-1)), "" ) ->  | E195: =IF($B195, INDIRECT("Mercantil!H" & SMALL(IF( Mercantil!$H$12:$H$102 = "", "", ROW(Mercantil!$H$12:$H$102)), ROW()-1)), "" ) ->  | F195: =IF( B195, SUM($E$2:E195), "" ) -> 
B196: =COUNTIF(Mercantil!$H$12:$H$102, ">0") >= ROW() - 1 -> FALSE | C196: =IF($B196, INDIRECT("Mercantil!C" & SMALL(IF( Mercantil!$H$12:$H$102 = "", "", ROW(Mercantil!$H$12:$H$102)), ROW()-1)), "" ) ->  | D196: =IF($B196, INDIRECT("Mercantil!D" & SMALL(IF( Mercantil!$H$12:$H$102 = "", "", ROW(Mercantil!$H$12:$H$102)), ROW()-1)), "" ) ->  | E196: =IF($B196, INDIRECT("Mercantil!H" & SMALL(IF( Mercantil!$H$12:$H$102 = "", "", ROW(Mercantil!$H$12:$H$102)), ROW()-1)), "" ) ->  | F196: =IF( B196, SUM($E$2:E196), "" ) -> 
B197: =COUNTIF(Mercantil!$H$12:$H$102, ">0") >= ROW() - 1 -> FALSE | C197: =IF($B197, INDIRECT("Mercantil!C" & SMALL(IF( Mercantil!$H$12:$H$102 = "", "", ROW(Mercantil!$H$12:$H$102)), ROW()-1)), "" ) ->  | D197: =IF($B197, INDIRECT("Mercantil!D" & SMALL(IF( Mercantil!$H$12:$H$102 = "", "", ROW(Mercantil!$H$12:$H$102)), ROW()-1)), "" ) ->  | E197: =IF($B197, INDIRECT("Mercantil!H" & SMALL(IF( Mercantil!$H$12:$H$102 = "", "", ROW(Mercantil!$H$12:$H$102)), ROW()-1)), "" ) ->  | F197: =IF( B197, SUM($E$2:E197), "" ) -> 
B198: =COUNTIF(Mercantil!$H$12:$H$102, ">0") >= ROW() - 1 -> FALSE | C198: =IF($B198, INDIRECT("Mercantil!C" & SMALL(IF( Mercantil!$H$12:$H$102 = "", "", ROW(Mercantil!$H$12:$H$102)), ROW()-1)), "" ) ->  | D198: =IF($B198, INDIRECT("Mercantil!D" & SMALL(IF( Mercantil!$H$12:$H$102 = "", "", ROW(Mercantil!$H$12:$H$102)), ROW()-1)), "" ) ->  | E198: =IF($B198, INDIRECT("Mercantil!H" & SMALL(IF( Mercantil!$H$12:$H$102 = "", "", ROW(Mercantil!$H$12:$H$102)), ROW()-1)), "" ) ->  | F198: =IF( B198, SUM($E$2:E198), "" ) -> 
B199: =COUNTIF(Mercantil!$H$12:$H$102, ">0") >= ROW() - 1 -> FALSE | C199: =IF($B199, INDIRECT("Mercantil!C" & SMALL(IF( Mercantil!$H$12:$H$102 = "", "", ROW(Mercantil!$H$12:$H$102)), ROW()-1)), "" ) ->  | D199: =IF($B199, INDIRECT("Mercantil!D" & SMALL(IF( Mercantil!$H$12:$H$102 = "", "", ROW(Mercantil!$H$12:$H$102)), ROW()-1)), "" ) ->  | E199: =IF($B199, INDIRECT("Mercantil!H" & SMALL(IF( Mercantil!$H$12:$H$102 = "", "", ROW(Mercantil!$H$12:$H$102)), ROW()-1)), "" ) ->  | F199: =IF( B199, SUM($E$2:E199), "" ) -> 
B200: =COUNTIF(Mercantil!$H$12:$H$102, ">0") >= ROW() - 1 -> FALSE | C200: =IF($B200, INDIRECT("Mercantil!C" & SMALL(IF( Mercantil!$H$12:$H$102 = "", "", ROW(Mercantil!$H$12:$H$102)), ROW()-1)), "" ) ->  | D200: =IF($B200, INDIRECT("Mercantil!D" & SMALL(IF( Mercantil!$H$12:$H$102 = "", "", ROW(Mercantil!$H$12:$H$102)), ROW()-1)), "" ) ->  | E200: =IF($B200, INDIRECT("Mercantil!H" & SMALL(IF( Mercantil!$H$12:$H$102 = "", "", ROW(Mercantil!$H$12:$H$102)), ROW()-1)), "" ) ->  | F200: =IF( B200, SUM($E$2:E200), "" ) -> 
... 48 more rows

Sheet Fondo_Comun
C3: Joao Marques | H3: Hoja de balance
C6: Descripción | F6: Balance inicial a partir de: 01/01/2013
C7: Cobros y gastos del año 2013 | H7: 1000
G8: Deposito en Mercantil al 31/12/12 En Fondo Comun al 30/12/12 Total = 1000,00
C11: Fecha | D11: Descripción del elemento | G11: Cobros | H11: Gastos | I11: Balance
C12: 2014-06-02 | D12: fgdfgdgd | G12: 35000 | I12: =IF(OR(G12>0, H12>0),($H$7+SUM($G$12:G12))-SUM($H$12:H12),"") -> 36000
C13: 2014-06-04 | D13: xcvxv | H13: 35000 | I13: =IF(OR(G13>0, H13>0),($H$7+SUM($G$12:G13))-SUM($H$12:H13),"") -> 1000
C14: 2014-06-07 | D14: dfdgfdgd | G14: 67000 | I14: =IF(OR(G14>0, H14>0),($H$7+SUM($G$12:G14))-SUM($H$12:H14),"") -> 68000
C15: 2014-06-09 | D15: fgddfgdfgdfgdf | H15: 28563.35 | I15: =IF(OR(G15>0, H15>0),($H$7+SUM($G$12:G15))-SUM($H$12:H15),"") -> 39436.65
I16: =IF(OR(G16>0, H16>0),($H$7+SUM($G$12:G16))-SUM($H$12:H16),"") -> 
I17: =IF(OR(G17>0, H17>0),($H$7+SUM($G$12:G17))-SUM($H$12:H17),"") -> 
I18: =IF(OR(G18>0, H18>0),($H$7+SUM($G$12:G18))-SUM($H$12:H18),"") -> 
I19: =IF(OR(G19>0, H19>0),($H$7+SUM($G$12:G19))-SUM($H$12:H19),"") -> 
I20: =IF(OR(G20>0, H20>0),($H$7+SUM($G$12:G20))-SUM($H$12:H20),"") -> 
I21: =IF(OR(G21>0, H21>0),($H$7+SUM($G$12:G21))-SUM($H$12:H21),"") -> 
I22: =IF(OR(G22>0, H22>0),($H$7+SUM($G$12:G22))-SUM($H$12:H22),"") -> 
I23: =IF(OR(G23>0, H23>0),($H$7+SUM($G$12:G23))-SUM($H$12:H23),"") -> 
I24: =IF(OR(G24>0, H24>0),($H$7+SUM($G$12:G24))-SUM($H$12:H24),"") -> 
I25: =IF(OR(G25>0, H25>0),($H$7+SUM($G$12:G25))-SUM($H$12:H25),"") -> 
I26: =IF(OR(G26>0, H26>0),($H$7+SUM($G$12:G26))-SUM($H$12:H26),"") -> 
I27: =IF(OR(G27>0, H27>0),($H$7+SUM($G$12:G27))-SUM($H$12:H27),"") -> 
I28: =IF(OR(G28>0, H28>0),($H$7+SUM($G$12:G28))-SUM($H$12:H28),"") -> 
I29: =IF(OR(G29>0, H29>0),($H$7+SUM($G$12:G29))-SUM($H$12:H29),"") -> 
I30: =IF(OR(G30>0, H30>0),($H$7+SUM($G$12:G30))-SUM($H$12:H30),"") -> 
I31: =IF(OR(G31>0, H31>0),($H$7+SUM($G$12:G31))-SUM($H$12:H31),"") -> 
I32: =IF(OR(G32>0, H32>0),($H$7+SUM($G$12:G32))-SUM($H$12:H32),"") -> 
I33: =IF(OR(G33>0, H33>0),($H$7+SUM($G$12:G33))-SUM($H$12:H33),"") -> 
I34: =IF(OR(G34>0, H34>0),($H$7+SUM($G$12:G34))-SUM($H$12:H34),"") -> 
I35: =IF(OR(G35>0, H35>0),($H$7+SUM($G$12:G35))-SUM($H$12:H35),"") -> 
I36: =IF(OR(G36>0, H36>0),($H$7+SUM($G$12:G36))-SUM($H$12:H36),"") -> 
I37: =IF(OR(G37>0, H37>0),($H$7+SUM($G$12:G37))-SUM($H$12:H37),"") -> 
I38: =IF(OR(G38>0, H38>0),($H$7+SUM($G$12:G38))-SUM($H$12:H38),"") -> 
I39: =IF(OR(G39>0, H39>0),($H$7+SUM($G$12:G39))-SUM($H$12:H39),"") -> 
I40: =IF(OR(G40>0, H40>0),($H$7+SUM($G$12:G40))-SUM($H$12:H40),"") -> 
I41: =IF(OR(G41>0, H41>0),($H$7+SUM($G$12:G41))-SUM($H$12:H41),"") -> 
I42: =IF(OR(G42>0, H42>0),($H$7+SUM($G$12:G42))-SUM($H$12:H42),"") -> 
I43: =IF(OR(G43>0, H43>0),($H$7+SUM($G$12:G43))-SUM($H$12:H43),"") -> 
I44: =IF(OR(G44>0, H44>0),($H$7+SUM($G$12:G44))-SUM($H$12:H44),"") -> 
I45: =IF(OR(G45>0, H45>0),($H$7+SUM($G$12:G45))-SUM($H$12:H45),"") -> 
I46: =IF(OR(G46>0, H46>0),($H$7+SUM($G$12:G46))-SUM($H$12:H46),"") -> 
I47: =IF(OR(G47>0, H47>0),($H$7+SUM($G$12:G47))-SUM($H$12:H47),"") -> 
I48: =IF(OR(G48>0, H48>0),($H$7+SUM($G$12:G48))-SUM($H$12:H48),"") -> 
I49: =IF(OR(G49>0, H49>0),($H$7+SUM($G$12:G49))-SUM($H$12:H49),"") -> 
I50: =IF(OR(G50>0, H50>0),($H$7+SUM($G$12:G50))-SUM($H$12:H50),"") -> 
I51: =IF(OR(G51>0, H51>0),($H$7+SUM($G$12:G51))-SUM($H$12:H51),"") -> 
I52: =IF(OR(G52>0, H52>0),($H$7+SUM($G$12:G52))-SUM($H$12:H52),"") -> 
I53: =IF(OR(G53>0, H53>0),($H$7+SUM($G$12:G53))-SUM($H$12:H53),"") -> 
I54: =IF(OR(G54>0, H54>0),($H$7+SUM($G$12:G54))-SUM($H$12:H54),"") -> 
I55: =IF(OR(G55>0, H55>0),($H$7+SUM($G$12:G55))-SUM($H$12:H55),"") -> 
I56: =IF(OR(G56>0, H56>0),($H$7+SUM($G$12:G56))-SUM($H$12:H56),"") -> 
I57: =IF(OR(G57>0, H57>0),($H$7+SUM($G$12:G57))-SUM($H$12:H57),"") -> 
I58: =IF(OR(G58>0, H58>0),($H$7+SUM($G$12:G58))-SUM($H$12:H58),"") -> 
I59: =IF(OR(G59>0, H59>0),($H$7+SUM($G$12:G59))-SUM($H$12:H59),"") -> 
I60: =IF(OR(G60>0, H60>0),($H$7+SUM($G$12:G60))-SUM($H$12:H60),"") -> 
I61: =IF(OR(G61>0, H61>0),($H$7+SUM($G$12:G61))-SUM($H$12:H61),"") -> 
I62: =IF(OR(G62>0, H62>0),($H$7+SUM($G$12:G62))-SUM($H$12:H62),"") -> 
I63: =IF(OR(G63>0, H63>0),($H$7+SUM($G$12:G63))-SUM($H$12:H63),"") -> 
I64: =IF(OR(G64>0, H64>0),($H$7+SUM($G$12:G64))-SUM($H$12:H64),"") -> 
I65: =IF(OR(G65>0, H65>0),($H$7+SUM($G$12:G65))-SUM($H$12:H65),"") -> 
I66: =IF(OR(G66>0, H66>0),($H$7+SUM($G$12:G66))-SUM($H$12:H66),"") -> 
I67: =IF(OR(G67>0, H67>0),($H$7+SUM($G$12:G67))-SUM($H$12:H67),"") -> 
I68: =IF(OR(G68>0, H68>0),($H$7+SUM($G$12:G68))-SUM($H$12:H68),"") -> 
I69: =IF(OR(G69>0, H69>0),($H$7+SUM($G$12:G69))-SUM($H$12:H69),"") -> 
I70: =IF(OR(G70>0, H70>0),($H$7+SUM($G$12:G70))-SUM($H$12:H70),"") -> 
I71: =IF(OR(G71>0, H71>0),($H$7+SUM($G$12:G71))-SUM($H$12:H71),"") -> 
I72: =IF(OR(G72>0, H72>0),($H$7+SUM($G$12:G72))-SUM($H$12:H72),"") -> 
I73: =IF(OR(G73>0, H73>0),($H$7+SUM($G$12:G73))-SUM($H$12:H73),"") -> 
I74: =IF(OR(G74>0, H74>0),($H$7+SUM($G$12:G74))-SUM($H$12:H74),"") -> 
I75: =IF(OR(G75>0, H75>0),($H$7+SUM($G$12:G75))-SUM($H$12:H75),"") -> 
I76: =IF(OR(G76>0, H76>0),($H$7+SUM($G$12:G76))-SUM($H$12:H76),"") -> 
I77: =IF(OR(G77>0, H77>0),($H$7+SUM($G$12:G77))-SUM($H$12:H77),"") -> 
I78: =IF(OR(G78>0, H78>0),($H$7+SUM($G$12:G78))-SUM($H$12:H78),"") -> 
I79: =IF(OR(G79>0, H79>0),($H$7+SUM($G$12:G79))-SUM($H$12:H79),"") -> 
I80: =IF(OR(G80>0, H80>0),($H$7+SUM($G$12:G80))-SUM($H$12:H80),"") -> 
I81: =IF(OR(G81>0, H81>0),($H$7+SUM($G$12:G81))-SUM($H$12:H81),"") -> 
I82: =IF(OR(G82>0, H82>0),($H$7+SUM($G$12:G82))-SUM($H$12:H82),"") -> 
I83: =IF(OR(G83>0, H83>0),($H$7+SUM($G$12:G83))-SUM($H$12:H83),"") -> 
I84: =IF(OR(G84>0, H84>0),($H$7+SUM($G$12:G84))-SUM($H$12:H84),"") -> 
I85: =IF(OR(G85>0, H85>0),($H$7+SUM($G$12:G85))-SUM($H$12:H85),"") -> 
I86: =IF(OR(G86>0, H86>0),($H$7+SUM($G$12:G86))-SUM($H$12:H86),"") -> 
I87: =IF(OR(G87>0, H87>0),($H$7+SUM($G$12:G87))-SUM($H$12:H87),"") -> 
I88: =IF(OR(G88>0, H88>0),($H$7+SUM($G$12:G88))-SUM($H$12:H88),"") -> 
I89: =IF(OR(G89>0, H89>0),($H$7+SUM($G$12:G89))-SUM($H$12:H89),"") -> 
I90: =IF(OR(G90>0, H90>0),($H$7+SUM($G$12:G90))-SUM($H$12:H90),"") -> 
I91: =IF(OR(G91>0, H91>0),($H$7+SUM($G$12:G91))-SUM($H$12:H91),"") -> 
I92: =IF(OR(G92>0, H92>0),($H$7+SUM($G$12:G92))-SUM($H$12:H92),"") -> 
I93: =IF(OR(G93>0, H93>0),($H$7+SUM($G$12:G93))-SUM($H$12:H93),"") -> 
I94: =IF(OR(G94>0, H94>0),($H$7+SUM($G$12:G94))-SUM($H$12:H94),"") -> 
I95: =IF(OR(G95>0, H95>0),($H$7+SUM($G$12:G95))-SUM($H$12:H95),"") -> 
I96: =IF(OR(G96>0, H96>0),($H$7+SUM($G$12:G96))-SUM($H$12:H96),"") -> 
I97: =IF(OR(G97>0, H97>0),($H$7+SUM($G$12:G97))-SUM($H$12:H97),"") -> 
I98: =IF(OR(G98>0, H98>0),($H$7+SUM($G$12:G98))-SUM($H$12:H98),"") -> 
I99: =IF(OR(G99>0, H99>0),($H$7+SUM($G$12:G99))-SUM($H$12:H99),"") -> 
I100: =IF(OR(G100>0, H100>0),($H$7+SUM($G$12:G100))-SUM($H$12:H100),"") -> 
I101: =IF(OR(G101>0, H101>0),($H$7+SUM($G$12:G101))-SUM($H$12:H101),"") -> 
I102: =IF(OR(G102>0, H102>0),($H$7+SUM($G$12:G102))-SUM($H$12:H102),"") -> 
C104: Notas: | D104: Las cantidades emitidas en cheque y depositos, contienen IVA incluido | F104: Cobrado | G104: =SUM(G12:G102) -> 102000
F105: Gastado | G105: =SUM(H12:H102) -> 63563.35
F106: Saldo actual | G106: =H7+(G104-G105) -> 39436.65

Sheet Descripcion Fondo
C1: FECHA | D1: DESCRIPCIÓN | E1: GASTOS | F1: TOTAL
B2: =COUNTIF(Fondo_Comun!$H$12:$H$102, ">0") >= ROW() - 1 -> TRUE | C2: =IF($B2, INDIRECT("Fondo_Comun!C" & SMALL(IF( Fondo_Comun!$H$12:$H$102 = "", "", ROW(Fondo_Comun!$H$12:$H$102)), ROW()-1)), "" ) -> 2014-06-04 | D2: =IF($B2, INDIRECT("Fondo_Comun!D" & SMALL(IF( Fondo_Comun!$H$12:$H$102 = "", "", ROW(Fondo_Comun!$H$12:$H$102)), ROW()-1)), "" ) -> xcvxv | E2: =IF($B2, INDIRECT("Fondo_Comun!H" & SMALL(IF( Fondo_Comun!$H$12:$H$102 = "", "", ROW(Fondo_Comun!$H$12:$H$102)), ROW()-1)), "" ) -> 35000 | F2: =IF( B2, SUM($E$2:E2), "" ) -> 35000
B3: =COUNTIF(Fondo_Comun!$H$12:$H$102, ">0") >= ROW() - 1 -> TRUE | C3: =IF($B3, INDIRECT("Fondo_Comun!C" & SMALL(IF( Fondo_Comun!$H$12:$H$102 = "", "", ROW(Fondo_Comun!$H$12:$H$102)), ROW()-1)), "" ) -> 2014-06-09 | D3: =IF($B3, INDIRECT("Fondo_Comun!D" & SMALL(IF( Fondo_Comun!$H$12:$H$102 = "", "", ROW(Fondo_Comun!$H$12:$H$102)), ROW()-1)), "" ) -> fgddfgdfgdfgdf | E3: =IF($B3, INDIRECT("Fondo_Comun!H" & SMALL(IF( Fondo_Comun!$H$12:$H$102 = "", "", ROW(Fondo_Comun!$H$12:$H$102)), ROW()-1)), "" ) -> 28563.35 | F3: =IF( B3, SUM($E$2:E3), "" ) -> 63563.35
B4: =COUNTIF(Fondo_Comun!$H$12:$H$102, ">0") >= ROW() - 1 -> FALSE | C4: =IF($B4, INDIRECT("Fondo_Comun!C" & SMALL(IF( Fondo_Comun!$H$12:$H$102 = "", "", ROW(Fondo_Comun!$H$12:$H$102)), ROW()-1)), "" ) ->  | D4: =IF($B4, INDIRECT("Fondo_Comun!D" & SMALL(IF( Fondo_Comun!$H$12:$H$102 = "", "", ROW(Fondo_Comun!$H$12:$H$102)), ROW()-1)), "" ) ->  | E4: =IF($B4, INDIRECT("Fondo_Comun!H" & SMALL(IF( Fondo_Comun!$H$12:$H$102 = "", "", ROW(Fondo_Comun!$H$12:$H$102)), ROW()-1)), "" ) ->  | F4: =IF( B4, SUM($E$2:E4), "" ) -> 
B5: =COUNTIF(Fondo_Comun!$H$12:$H$102, ">0") >= ROW() - 1 -> FALSE | C5: =IF($B5, INDIRECT("Fondo_Comun!C" & SMALL(IF( Fondo_Comun!$H$12:$H$102 = "", "", ROW(Fondo_Comun!$H$12:$H$102)), ROW()-1)), "" ) ->  | D5: =IF($B5, INDIRECT("Fondo_Comun!D" & SMALL(IF( Fondo_Comun!$H$12:$H$102 = "", "", ROW(Fondo_Comun!$H$12:$H$102)), ROW()-1)), "" ) ->  | E5: =IF($B5, INDIRECT("Fondo_Comun!H" & SMALL(IF( Fondo_Comun!$H$12:$H$102 = "", "", ROW(Fondo_Comun!$H$12:$H$102)), ROW()-1)), "" ) ->  | F5: =IF( B5, SUM($E$2:E5), "" ) -> 
B6: =COUNTIF(Fondo_Comun!$H$12:$H$102, ">0") >= ROW() - 1 -> FALSE | C6: =IF($B6, INDIRECT("Fondo_Comun!C" & SMALL(IF( Fondo_Comun!$H$12:$H$102 = "", "", ROW(Fondo_Comun!$H$12:$H$102)), ROW()-1)), "" ) ->  | D6: =IF($B6, INDIRECT("Fondo_Comun!D" & SMALL(IF( Fondo_Comun!$H$12:$H$102 = "", "", ROW(Fondo_Comun!$H$12:$H$102)), ROW()-1)), "" ) ->  | E6: =IF($B6, INDIRECT("Fondo_Comun!H" & SMALL(IF( Fondo_Comun!$H$12:$H$102 = "", "", ROW(Fondo_Comun!$H$12:$H$102)), ROW()-1)), "" ) ->  | F6: =IF( B6, SUM($E$2:E6), "" ) -> 
B7: =COUNTIF(Fondo_Comun!$H$12:$H$102, ">0") >= ROW() - 1 -> FALSE | C7: =IF($B7, INDIRECT("Fondo_Comun!C" & SMALL(IF( Fondo_Comun!$H$12:$H$102 = "", "", ROW(Fondo_Comun!$H$12:$H$102)), ROW()-1)), "" ) ->  | D7: =IF($B7, INDIRECT("Fondo_Comun!D" & SMALL(IF( Fondo_Comun!$H$12:$H$102 = "", "", ROW(Fondo_Comun!$H$12:$H$102)), ROW()-1)), "" ) ->  | E7: =IF($B7, INDIRECT("Fondo_Comun!H" & SMALL(IF( Fondo_Comun!$H$12:$H$102 = "", "", ROW(Fondo_Comun!$H$12:$H$102)), ROW()-1)), "" ) ->  | F7: =IF( B7, SUM($E$2:E7), "" ) -> 
B8: =COUNTIF(Fondo_Comun!$H$12:$H$102, ">0") >= ROW() - 1 -> FALSE | C8: =IF($B8, INDIRECT("Fondo_Comun!C" & SMALL(IF( Fondo_Comun!$H$12:$H$102 = "", "", ROW(Fondo_Comun!$H$12:$H$102)), ROW()-1)), "" ) ->  | D8: =IF($B8, INDIRECT("Fondo_Comun!D" & SMALL(IF( Fondo_Comun!$H$12:$H$102 = "", "", ROW(Fondo_Comun!$H$12:$H$102)), ROW()-1)), "" ) ->  | E8: =IF($B8, INDIRECT("Fondo_Comun!H" & SMALL(IF( Fondo_Comun!$H$12:$H$102 = "", "", ROW(Fondo_Comun!$H$12:$H$102)), ROW()-1)), "" ) ->  | F8: =IF( B8, SUM($E$2:E8), "" ) -> 
B9: =COUNTIF(Fondo_Comun!$H$12:$H$102, ">0") >= ROW() - 1 -> FALSE | C9: =IF($B9, INDIRECT("Fondo_Comun!C" & SMALL(IF( Fondo_Comun!$H$12:$H$102 = "", "", ROW(Fondo_Comun!$H$12:$H$102)), ROW()-1)), "" ) ->  | D9: =IF($B9, INDIRECT("Fondo_Comun!D" & SMALL(IF( Fondo_Comun!$H$12:$H$102 = "", "", ROW(Fondo_Comun!$H$12:$H$102)), ROW()-1)), "" ) ->  | E9: =IF($B9, INDIRECT("Fondo_Comun!H" & SMALL(IF( Fondo_Comun!$H$12:$H$102 = "", "", ROW(Fondo_Comun!$H$12:$H$102)), ROW()-1)), "" ) ->  | F9: =IF( B9, SUM($E$2:E9), "" ) -> 
B10: =COUNTIF(Fondo_Comun!$H$12:$H$102, ">0") >= ROW() - 1 -> FALSE | C10: =IF($B10, INDIRECT("Fondo_Comun!C" & SMALL(IF( Fondo_Comun!$H$12:$H$102 = "", "", ROW(Fondo_Comun!$H$12:$H$102)), ROW()-1)), "" ) ->  | D10: =IF($B10, INDIRECT("Fondo_Comun!D" & SMALL(IF( Fondo_Comun!$H$12:$H$102 = "", "", ROW(Fondo_Comun!$H$12:$H$102)), ROW()-1)), "" ) ->  | E10: =IF($B10, INDIRECT("Fondo_Comun!H" & SMALL(IF( Fondo_Comun!$H$12:$H$102 = "", "", ROW(Fondo_Comun!$H$12:$H$102)), ROW()-1)), "" ) ->  | F10: =IF( B10, SUM($E$2:E10), "" ) -> 
B11: =COUNTIF(Fondo_Comun!$H$12:$H$102, ">0") >= ROW() - 1 -> FALSE | C11: =IF($B11, INDIRECT("Fondo_Comun!C" & SMALL(IF( Fondo_Comun!$H$12:$H$102 = "", "", ROW(Fondo_Comun!$H$12:$H$102)), ROW()-1)), "" ) ->  | D11: =IF($B11, INDIRECT("Fondo_Comun!D" & SMALL(IF( Fondo_Comun!$H$12:$H$102 = "", "", ROW(Fondo_Comun!$H$12:$H$102)), ROW()-1)), "" ) ->  | E11: =IF($B11, INDIRECT("Fondo_Comun!H" & SMALL(IF( Fondo_Comun!$H$12:$H$102 = "", "", ROW(Fondo_Comun!$H$12:$H$102)), ROW()-1)), "" ) ->  | F11: =IF( B11, SUM($E$2:E11), "" ) -> 
B12: =COUNTIF(Fondo_Comun!$H$12:$H$102, ">0") >= ROW() - 1 -> FALSE | C12: =IF($B12, INDIRECT("Fondo_Comun!C" & SMALL(IF( Fondo_Comun!$H$12:$H$102 = "", "", ROW(Fondo_Comun!$H$12:$H$102)), ROW()-1)), "" ) ->  | D12: =IF($B12, INDIRECT("Fondo_Comun!D" & SMALL(IF( Fondo_Comun!$H$12:$H$102 = "", "", ROW(Fondo_Comun!$H$12:$H$102)), ROW()-1)), "" ) ->  | E12: =IF($B12, INDIRECT("Fondo_Comun!H" & SMALL(IF( Fondo_Comun!$H$12:$H$102 = "", "", ROW(Fondo_Comun!$H$12:$H$102)), ROW()-1)), "" ) ->  | F12: =IF( B12, SUM($E$2:E12), "" ) -> 
B13: =COUNTIF(Fondo_Comun!$H$12:$H$102, ">0") >= ROW() - 1 -> FALSE | C13: =IF($B13, INDIRECT("Fondo_Comun!C" & SMALL(IF( Fondo_Comun!$H$12:$H$102 = "", "", ROW(Fondo_Comun!$H$12:$H$102)), ROW()-1)), "" ) ->  | D13: =IF($B13, INDIRECT("Fondo_Comun!D" & SMALL(IF( Fondo_Comun!$H$12:$H$102 = "", "", ROW(Fondo_Comun!$H$12:$H$102)), ROW()-1)), "" ) ->  | E13: =IF($B13, INDIRECT("Fondo_Comun!H" & SMALL(IF( Fondo_Comun!$H$12:$H$102 = "", "", ROW(Fondo_Comun!$H$12:$H$102)), ROW()-1)), "" ) ->  | F13: =IF( B13, SUM($E$2:E13), "" ) -> 
B14: =COUNTIF(Fondo_Comun!$H$12:$H$102, ">0") >= ROW() - 1 -> FALSE | C14: =IF($B14, INDIRECT("Fondo_Comun!C" & SMALL(IF( Fondo_Comun!$H$12:$H$102 = "", "", ROW(Fondo_Comun!$H$12:$H$102)), ROW()-1)), "" ) ->  | D14: =IF($B14, INDIRECT("Fondo_Comun!D" & SMALL(IF( Fondo_Comun!$H$12:$H$102 = "", "", ROW(Fondo_Comun!$H$12:$H$102)), ROW()-1)), "" ) ->  | E14: =IF($B14, INDIRECT("Fondo_Comun!H" & SMALL(IF( Fondo_Comun!$H$12:$H$102 = "", "", ROW(Fondo_Comun!$H$12:$H$102)), ROW()-1)), "" ) ->  | F14: =IF( B14, SUM($E$2:E14), "" ) -> 
B15: =COUNTIF(Fondo_Comun!$H$12:$H$102, ">0") >= ROW() - 1 -> FALSE | C15: =IF($B15, INDIRECT("Fondo_Comun!C" & SMALL(IF( Fondo_Comun!$H$12:$H$102 = "", "", ROW(Fondo_Comun!$H$12:$H$102)), ROW()-1)), "" ) ->  | D15: =IF($B15, INDIRECT("Fondo_Comun!D" & SMALL(IF( Fondo_Comun!$H$12:$H$102 = "", "", ROW(Fondo_Comun!$H$12:$H$102)), ROW()-1)), "" ) ->  | E15: =IF($B15, INDIRECT("Fondo_Comun!H" & SMALL(IF( Fondo_Comun!$H$12:$H$102 = "", "", ROW(Fondo_Comun!$H$12:$H$102)), ROW()-1)), "" ) ->  | F15: =IF( B15, SUM($E$2:E15), "" ) -> 
B16: =COUNTIF(Fondo_Comun!$H$12:$H$102, ">0") >= ROW() - 1 -> FALSE | C16: =IF($B16, INDIRECT("Fondo_Comun!C" & SMALL(IF( Fondo_Comun!$H$12:$H$102 = "", "", ROW(Fondo_Comun!$H$12:$H$102)), ROW()-1)), "" ) ->  | D16: =IF($B16, INDIRECT("Fondo_Comun!D" & SMALL(IF( Fondo_Comun!$H$12:$H$102 = "", "", ROW(Fondo_Comun!$H$12:$H$102)), ROW()-1)), "" ) ->  | E16: =IF($B16, INDIRECT("Fondo_Comun!H" & SMALL(IF( Fondo_Comun!$H$12:$H$102 = "", "", ROW(Fondo_Comun!$H$12:$H$102)), ROW()-1)), "" ) ->  | F16: =IF( B16, SUM($E$2:E16), "" ) -> 
B17: =COUNTIF(Fondo_Comun!$H$12:$H$102, ">0") >= ROW() - 1 -> FALSE | C17: =IF($B17, INDIRECT("Fondo_Comun!C" & SMALL(IF( Fondo_Comun!$H$12:$H$102 = "", "", ROW(Fondo_Comun!$H$12:$H$102)), ROW()-1)), "" ) ->  | D17: =IF($B17, INDIRECT("Fondo_Comun!D" & SMALL(IF( Fondo_Comun!$H$12:$H$102 = "", "", ROW(Fondo_Comun!$H$12:$H$102)), ROW()-1)), "" ) ->  | E17: =IF($B17, INDIRECT("Fondo_Comun!H" & SMALL(IF( Fondo_Comun!$H$12:$H$102 = "", "", ROW(Fondo_Comun!$H$12:$H$102)), ROW()-1)), "" ) ->  | F17: =IF( B17, SUM($E$2:E17), "" ) -> 
B18: =COUNTIF(Fondo_Comun!$H$12:$H$102, ">0") >= ROW() - 1 -> FALSE | C18: =IF($B18, INDIRECT("Fondo_Comun!C" & SMALL(IF( Fondo_Comun!$H$12:$H$102 = "", "", ROW(Fondo_Comun!$H$12:$H$102)), ROW()-1)), "" ) ->  | D18: =IF($B18, INDIRECT("Fondo_Comun!D" & SMALL(IF( Fondo_Comun!$H$12:$H$102 = "", "", ROW(Fondo_Comun!$H$12:$H$102)), ROW()-1)), "" ) ->  | E18: =IF($B18, INDIRECT("Fondo_Comun!H" & SMALL(IF( Fondo_Comun!$H$12:$H$102 = "", "", ROW(Fondo_Comun!$H$12:$H$102)), ROW()-1)), "" ) ->  | F18: =IF( B18, SUM($E$2:E18), "" ) -> 
B19: =COUNTIF(Fondo_Comun!$H$12:$H$102, ">0") >= ROW() - 1 -> FALSE | C19: =IF($B19, INDIRECT("Fondo_Comun!C" & SMALL(IF( Fondo_Comun!$H$12:$H$102 = "", "", ROW(Fondo_Comun!$H$12:$H$102)), ROW()-1)), "" ) ->  | D19: =IF($B19, INDIRECT("Fondo_Comun!D" & SMALL(IF( Fondo_Comun!$H$12:$H$102 = "", "", ROW(Fondo_Comun!$H$12:$H$102)), ROW()-1)), "" ) ->  | E19: =IF($B19, INDIRECT("Fondo_Comun!H" & SMALL(IF( Fondo_Comun!$H$12:$H$102 = "", "", ROW(Fondo_Comun!$H$12:$H$102)), ROW()-1)), "" ) ->  | F19: =IF( B19, SUM($E$2:E19), "" ) -> 
B20: =COUNTIF(Fondo_Comun!$H$12:$H$102, ">0") >= ROW() - 1 -> FALSE | C20: =IF($B20, INDIRECT("Fondo_Comun!C" & SMALL(IF( Fondo_Comun!$H$12:$H$102 = "", "", ROW(Fondo_Comun!$H$12:$H$102)), ROW()-1)), "" ) ->  | D20: =IF($B20, INDIRECT("Fondo_Comun!D" & SMALL(IF( Fondo_Comun!$H$12:$H$102 = "", "", ROW(Fondo_Comun!$H$12:$H$102)), ROW()-1)), "" ) ->  | E20: =IF($B20, INDIRECT("Fondo_Comun!H" & SMALL(IF( Fondo_Comun!$H$12:$H$102 = "", "", ROW(Fondo_Comun!$H$12:$H$102)), ROW()-1)), "" ) ->  | F20: =IF( B20, SUM($E$2:E20), "" ) -> 
B21: =COUNTIF(Fondo_Comun!$H$12:$H$102, ">0") >= ROW() - 1 -> FALSE | C21: =IF($B21, INDIRECT("Fondo_Comun!C" & SMALL(IF( Fondo_Comun!$H$12:$H$102 = "", "", ROW(Fondo_Comun!$H$12:$H$102)), ROW()-1)), "" ) ->  | D21: =IF($B21, INDIRECT("Fondo_Comun!D" & SMALL(IF( Fondo_Comun!$H$12:$H$102 = "", "", ROW(Fondo_Comun!$H$12:$H$102)), ROW()-1)), "" ) ->  | E21: =IF($B21, INDIRECT("Fondo_Comun!H" & SMALL(IF( Fondo_Comun!$H$12:$H$102 = "", "", ROW(Fondo_Comun!$H$12:$H$102)), ROW()-1)), "" ) ->  | F21: =IF( B21, SUM($E$2:E21), "" ) -> 
B22: =COUNTIF(Fondo_Comun!$H$12:$H$102, ">0") >= ROW() - 1 -> FALSE | C22: =IF($B22, INDIRECT("Fondo_Comun!C" & SMALL(IF( Fondo_Comun!$H$12:$H$102 = "", "", ROW(Fondo_Comun!$H$12:$H$102)), ROW()-1)), "" ) ->  | D22: =IF($B22, INDIRECT("Fondo_Comun!D" & SMALL(IF( Fondo_Comun!$H$12:$H$102 = "", "", ROW(Fondo_Comun!$H$12:$H$102)), ROW()-1)), "" ) ->  | E22: =IF($B22, INDIRECT("Fondo_Comun!H" & SMALL(IF( Fondo_Comun!$H$12:$H$102 = "", "", ROW(Fondo_Comun!$H$12:$H$102)), ROW()-1)), "" ) ->  | F22: =IF( B22, SUM($E$2:E22), "" ) -> 
B23: =COUNTIF(Fondo_Comun!$H$12:$H$102, ">0") >= ROW() - 1 -> FALSE | C23: =IF($B23, INDIRECT("Fondo_Comun!C" & SMALL(IF( Fondo_Comun!$H$12:$H$102 = "", "", ROW(Fondo_Comun!$H$12:$H$102)), ROW()-1)), "" ) ->  | D23: =IF($B23, INDIRECT("Fondo_Comun!D" & SMALL(IF( Fondo_Comun!$H$12:$H$102 = "", "", ROW(Fondo_Comun!$H$12:$H$102)), ROW()-1)), "" ) ->  | E23: =IF($B23, INDIRECT("Fondo_Comun!H" & SMALL(IF( Fondo_Comun!$H$12:$H$102 = "", "", ROW(Fondo_Comun!$H$12:$H$102)), ROW()-1)), "" ) ->  | F23: =IF( B23, SUM($E$2:E23), "" ) -> 
B24: =COUNTIF(Fondo_Comun!$H$12:$H$102, ">0") >= ROW() - 1 -> FALSE | C24: =IF($B24, INDIRECT("Fondo_Comun!C" & SMALL(IF( Fondo_Comun!$H$12:$H$102 = "", "", ROW(Fondo_Comun!$H$12:$H$102)), ROW()-1)), "" ) ->  | D24: =IF($B24, INDIRECT("Fondo_Comun!D" & SMALL(IF( Fondo_Comun!$H$12:$H$102 = "", "", ROW(Fondo_Comun!$H$12:$H$102)), ROW()-1)), "" ) ->  | E24: =IF($B24, INDIRECT("Fondo_Comun!H" & SMALL(IF( Fondo_Comun!$H$12:$H$102 = "", "", ROW(Fondo_Comun!$H$12:$H$102)), ROW()-1)), "" ) ->  | F24: =IF( B24, SUM($E$2:E24), "" ) -> 
B25: =COUNTIF(Fondo_Comun!$H$12:$H$102, ">0") >= ROW() - 1 -> FALSE | C25: =IF($B25, INDIRECT("Fondo_Comun!C" & SMALL(IF( Fondo_Comun!$H$12:$H$102 = "", "", ROW(Fondo_Comun!$H$12:$H$102)), ROW()-1)), "" ) ->  | D25: =IF($B25, INDIRECT("Fondo_Comun!D" & SMALL(IF( Fondo_Comun!$H$12:$H$102 = "", "", ROW(Fondo_Comun!$H$12:$H$102)), ROW()-1)), "" ) ->  | E25: =IF($B25, INDIRECT("Fondo_Comun!H" & SMALL(IF( Fondo_Comun!$H$12:$H$102 = "", "", ROW(Fondo_Comun!$H$12:$H$102)), ROW()-1)), "" ) ->  | F25: =IF( B25, SUM($E$2:E25), "" ) -> 
B26: =COUNTIF(Fondo_Comun!$H$12:$H$102, ">0") >= ROW() - 1 -> FALSE | C26: =IF($B26, INDIRECT("Fondo_Comun!C" & SMALL(IF( Fondo_Comun!$H$12:$H$102 = "", "", ROW(Fondo_Comun!$H$12:$H$102)), ROW()-1)), "" ) ->  | D26: =IF($B26, INDIRECT("Fondo_Comun!D" & SMALL(IF( Fondo_Comun!$H$12:$H$102 = "", "", ROW(Fondo_Comun!$H$12:$H$102)), ROW()-1)), "" ) ->  | E26: =IF($B26, INDIRECT("Fondo_Comun!H" & SMALL(IF( Fondo_Comun!$H$12:$H$102 = "", "", ROW(Fondo_Comun!$H$12:$H$102)), ROW()-1)), "" ) ->  | F26: =IF( B26, SUM($E$2:E26), "" ) -> 
B27: =COUNTIF(Fondo_Comun!$H$12:$H$102, ">0") >= ROW() - 1 -> FALSE | C27: =IF($B27, INDIRECT("Fondo_Comun!C" & SMALL(IF( Fondo_Comun!$H$12:$H$102 = "", "", ROW(Fondo_Comun!$H$12:$H$102)), ROW()-1)), "" ) ->  | D27: =IF($B27, INDIRECT("Fondo_Comun!D" & SMALL(IF( Fondo_Comun!$H$12:$H$102 = "", "", ROW(Fondo_Comun!$H$12:$H$102)), ROW()-1)), "" ) ->  | E27: =IF($B27, INDIRECT("Fondo_Comun!H" & SMALL(IF( Fondo_Comun!$H$12:$H$102 = "", "", ROW(Fondo_Comun!$H$12:$H$102)), ROW()-1)), "" ) ->  | F27: =IF( B27, SUM($E$2:E27), "" ) -> 
B28: =COUNTIF(Fondo_Comun!$H$12:$H$102, ">0") >= ROW() - 1 -> FALSE | C28: =IF($B28, INDIRECT("Fondo_Comun!C" & SMALL(IF( Fondo_Comun!$H$12:$H$102 = "", "", ROW(Fondo_Comun!$H$12:$H$102)), ROW()-1)), "" ) ->  | D28: =IF($B28, INDIRECT("Fondo_Comun!D" & SMALL(IF( Fondo_Comun!$H$12:$H$102 = "", "", ROW(Fondo_Comun!$H$12:$H$102)), ROW()-1)), "" ) ->  | E28: =IF($B28, INDIRECT("Fondo_Comun!H" & SMALL(IF( Fondo_Comun!$H$12:$H$102 = "", "", ROW(Fondo_Comun!$H$12:$H$102)), ROW()-1)), "" ) ->  | F28: =IF( B28, SUM($E$2:E28), "" ) -> 
B29: =COUNTIF(Fondo_Comun!$H$12:$H$102, ">0") >= ROW() - 1 -> FALSE | C29: =IF($B29, INDIRECT("Fondo_Comun!C" & SMALL(IF( Fondo_Comun!$H$12:$H$102 = "", "", ROW(Fondo_Comun!$H$12:$H$102)), ROW()-1)), "" ) ->  | D29: =IF($B29, INDIRECT("Fondo_Comun!D" & SMALL(IF( Fondo_Comun!$H$12:$H$102 = "", "", ROW(Fondo_Comun!$H$12:$H$102)), ROW()-1)), "" ) ->  | E29: =IF($B29, INDIRECT("Fondo_Comun!H" & SMALL(IF( Fondo_Comun!$H$12:$H$102 = "", "", ROW(Fondo_Comun!$H$12:$H$102)), ROW()-1)), "" ) ->  | F29: =IF( B29, SUM($E$2:E29), "" ) -> 
B30: =COUNTIF(Fondo_Comun!$H$12:$H$102, ">0") >= ROW() - 1 -> FALSE | C30: =IF($B30, INDIRECT("Fondo_Comun!C" & SMALL(IF( Fondo_Comun!$H$12:$H$102 = "", "", ROW(Fondo_Comun!$H$12:$H$102)), ROW()-1)), "" ) ->  | D30: =IF($B30, INDIRECT("Fondo_Comun!D" & SMALL(IF( Fondo_Comun!$H$12:$H$102 = "", "", ROW(Fondo_Comun!$H$12:$H$102)), ROW()-1)), "" ) ->  | E30: =IF($B30, INDIRECT("Fondo_Comun!H" & SMALL(IF( Fondo_Comun!$H$12:$H$102 = "", "", ROW(Fondo_Comun!$H$12:$H$102)), ROW()-1)), "" ) ->  | F30: =IF( B30, SUM($E$2:E30), "" ) -> 
B31: =COUNTIF(Fondo_Comun!$H$12:$H$102, ">0") >= ROW() - 1 -> FALSE | C31: =IF($B31, INDIRECT("Fondo_Comun!C" & SMALL(IF( Fondo_Comun!$H$12:$H$102 = "", "", ROW(Fondo_Comun!$H$12:$H$102)), ROW()-1)), "" ) ->  | D31: =IF($B31, INDIRECT("Fondo_Comun!D" & SMALL(IF( Fondo_Comun!$H$12:$H$102 = "", "", ROW(Fondo_Comun!$H$12:$H$102)), ROW()-1)), "" ) ->  | E31: =IF($B31, INDIRECT("Fondo_Comun!H" & SMALL(IF( Fondo_Comun!$H$12:$H$102 = "", "", ROW(Fondo_Comun!$H$12:$H$102)), ROW()-1)), "" ) ->  | F31: =IF( B31, SUM($E$2:E31), "" ) -> 
B32: =COUNTIF(Fondo_Comun!$H$12:$H$102, ">0") >= ROW() - 1 -> FALSE | C32: =IF($B32, INDIRECT("Fondo_Comun!C" & SMALL(IF( Fondo_Comun!$H$12:$H$102 = "", "", ROW(Fondo_Comun!$H$12:$H$102)), ROW()-1)), "" ) ->  | D32: =IF($B32, INDIRECT("Fondo_Comun!D" & SMALL(IF( Fondo_Comun!$H$12:$H$102 = "", "", ROW(Fondo_Comun!$H$12:$H$102)), ROW()-1)), "" ) ->  | E32: =IF($B32, INDIRECT("Fondo_Comun!H" & SMALL(IF( Fondo_Comun!$H$12:$H$102 = "", "", ROW(Fondo_Comun!$H$12:$H$102)), ROW()-1)), "" ) ->  | F32: =IF( B32, SUM($E$2:E32), "" ) -> 
B33: =COUNTIF(Fondo_Comun!$H$12:$H$102, ">0") >= ROW() - 1 -> FALSE | C33: =IF($B33, INDIRECT("Fondo_Comun!C" & SMALL(IF( Fondo_Comun!$H$12:$H$102 = "", "", ROW(Fondo_Comun!$H$12:$H$102)), ROW()-1)), "" ) ->  | D33: =IF($B33, INDIRECT("Fondo_Comun!D" & SMALL(IF( Fondo_Comun!$H$12:$H$102 = "", "", ROW(Fondo_Comun!$H$12:$H$102)), ROW()-1)), "" ) ->  | E33: =IF($B33, INDIRECT("Fondo_Comun!H" & SMALL(IF( Fondo_Comun!$H$12:$H$102 = "", "", ROW(Fondo_Comun!$H$12:$H$102)), ROW()-1)), "" ) ->  | F33: =IF( B33, SUM($E$2:E33), "" ) -> 
B34: =COUNTIF(Fondo_Comun!$H$12:$H$102, ">0") >= ROW() - 1 -> FALSE | C34: =IF($B34, INDIRECT("Fondo_Comun!C" & SMALL(IF( Fondo_Comun!$H$12:$H$102 = "", "", ROW(Fondo_Comun!$H$12:$H$102)), ROW()-1)), "" ) ->  | D34: =IF($B34, INDIRECT("Fondo_Comun!D" & SMALL(IF( Fondo_Comun!$H$12:$H$102 = "", "", ROW(Fondo_Comun!$H$12:$H$102)), ROW()-1)), "" ) ->  | E34: =IF($B34, INDIRECT("Fondo_Comun!H" & SMALL(IF( Fondo_Comun!$H$12:$H$102 = "", "", ROW(Fondo_Comun!$H$12:$H$102)), ROW()-1)), "" ) ->  | F34: =IF( B34, SUM($E$2:E34), "" ) -> 
B35: =COUNTIF(Fondo_Comun!$H$12:$H$102, ">0") >= ROW() - 1 -> FALSE | C35: =IF($B35, INDIRECT("Fondo_Comun!C" & SMALL(IF( Fondo_Comun!$H$12:$H$102 = "", "", ROW(Fondo_Comun!$H$12:$H$102)), ROW()-1)), "" ) ->  | D35: =IF($B35, INDIRECT("Fondo_Comun!D" & SMALL(IF( Fondo_Comun!$H$12:$H$102 = "", "", ROW(Fondo_Comun!$H$12:$H$102)), ROW()-1)), "" ) ->  | E35: =IF($B35, INDIRECT("Fondo_Comun!H" & SMALL(IF( Fondo_Comun!$H$12:$H$102 = "", "", ROW(Fondo_Comun!$H$12:$H$102)), ROW()-1)), "" ) ->  | F35: =IF( B35, SUM($E$2:E35), "" ) -> 
B36: =COUNTIF(Fondo_Comun!$H$12:$H$102, ">0") >= ROW() - 1 -> FALSE | C36: =IF($B36, INDIRECT("Fondo_Comun!C" & SMALL(IF( Fondo_Comun!$H$12:$H$102 = "", "", ROW(Fondo_Comun!$H$12:$H$102)), ROW()-1)), "" ) ->  | D36: =IF($B36, INDIRECT("Fondo_Comun!D" & SMALL(IF( Fondo_Comun!$H$12:$H$102 = "", "", ROW(Fondo_Comun!$H$12:$H$102)), ROW()-1)), "" ) ->  | E36: =IF($B36, INDIRECT("Fondo_Comun!H" & SMALL(IF( Fondo_Comun!$H$12:$H$102 = "", "", ROW(Fondo_Comun!$H$12:$H$102)), ROW()-1)), "" ) ->  | F36: =IF( B36, SUM($E$2:E36), "" ) -> 
B37: =COUNTIF(Fondo_Comun!$H$12:$H$102, ">0") >= ROW() - 1 -> FALSE | C37: =IF($B37, INDIRECT("Fondo_Comun!C" & SMALL(IF( Fondo_Comun!$H$12:$H$102 = "", "", ROW(Fondo_Comun!$H$12:$H$102)), ROW()-1)), "" ) ->  | D37: =IF($B37, INDIRECT("Fondo_Comun!D" & SMALL(IF( Fondo_Comun!$H$12:$H$102 = "", "", ROW(Fondo_Comun!$H$12:$H$102)), ROW()-1)), "" ) ->  | E37: =IF($B37, INDIRECT("Fondo_Comun!H" & SMALL(IF( Fondo_Comun!$H$12:$H$102 = "", "", ROW(Fondo_Comun!$H$12:$H$102)), ROW()-1)), "" ) ->  | F37: =IF( B37, SUM($E$2:E37), "" ) -> 
B38: =COUNTIF(Fondo_Comun!$H$12:$H$102, ">0") >= ROW() - 1 -> FALSE | C38: =IF($B38, INDIRECT("Fondo_Comun!C" & SMALL(IF( Fondo_Comun!$H$12:$H$102 = "", "", ROW(Fondo_Comun!$H$12:$H$102)), ROW()-1)), "" ) ->  | D38: =IF($B38, INDIRECT("Fondo_Comun!D" & SMALL(IF( Fondo_Comun!$H$12:$H$102 = "", "", ROW(Fondo_Comun!$H$12:$H$102)), ROW()-1)), "" ) ->  | E38: =IF($B38, INDIRECT("Fondo_Comun!H" & SMALL(IF( Fondo_Comun!$H$12:$H$102 = "", "", ROW(Fondo_Comun!$H$12:$H$102)), ROW()-1)), "" ) ->  | F38: =IF( B38, SUM($E$2:E38), "" ) -> 
B39: =COUNTIF(Fondo_Comun!$H$12:$H$102, ">0") >= ROW() - 1 -> FALSE | C39: =IF($B39, INDIRECT("Fondo_Comun!C" & SMALL(IF( Fondo_Comun!$H$12:$H$102 = "", "", ROW(Fondo_Comun!$H$12:$H$102)), ROW()-1)), "" ) ->  | D39: =IF($B39, INDIRECT("Fondo_Comun!D" & SMALL(IF( Fondo_Comun!$H$12:$H$102 = "", "", ROW(Fondo_Comun!$H$12:$H$102)), ROW()-1)), "" ) ->  | E39: =IF($B39, INDIRECT("Fondo_Comun!H" & SMALL(IF( Fondo_Comun!$H$12:$H$102 = "", "", ROW(Fondo_Comun!$H$12:$H$102)), ROW()-1)), "" ) ->  | F39: =IF( B39, SUM($E$2:E39), "" ) -> 
B40: =COUNTIF(Fondo_Comun!$H$12:$H$102, ">0") >= ROW() - 1 -> FALSE | C40: =IF($B40, INDIRECT("Fondo_Comun!C" & SMALL(IF( Fondo_Comun!$H$12:$H$102 = "", "", ROW(Fondo_Comun!$H$12:$H$102)), ROW()-1)), "" ) ->  | D40: =IF($B40, INDIRECT("Fondo_Comun!D" & SMALL(IF( Fondo_Comun!$H$12:$H$102 = "", "", ROW(Fondo_Comun!$H$12:$H$102)), ROW()-1)), "" ) ->  | E40: =IF($B40, INDIRECT("Fondo_Comun!H" & SMALL(IF( Fondo_Comun!$H$12:$H$102 = "", "", ROW(Fondo_Comun!$H$12:$H$102)), ROW()-1)), "" ) ->  | F40: =IF( B40, SUM($E$2:E40), "" ) -> 
B41: =COUNTIF(Fondo_Comun!$H$12:$H$102, ">0") >= ROW() - 1 -> FALSE | C41: =IF($B41, INDIRECT("Fondo_Comun!C" & SMALL(IF( Fondo_Comun!$H$12:$H$102 = "", "", ROW(Fondo_Comun!$H$12:$H$102)), ROW()-1)), "" ) ->  | D41: =IF($B41, INDIRECT("Fondo_Comun!D" & SMALL(IF( Fondo_Comun!$H$12:$H$102 = "", "", ROW(Fondo_Comun!$H$12:$H$102)), ROW()-1)), "" ) ->  | E41: =IF($B41, INDIRECT("Fondo_Comun!H" & SMALL(IF( Fondo_Comun!$H$12:$H$102 = "", "", ROW(Fondo_Comun!$H$12:$H$102)), ROW()-1)), "" ) ->  | F41: =IF( B41, SUM($E$2:E41), "" ) -> 
B42: =COUNTIF(Fondo_Comun!$H$12:$H$102, ">0") >= ROW() - 1 -> FALSE | C42: =IF($B42, INDIRECT("Fondo_Comun!C" & SMALL(IF( Fondo_Comun!$H$12:$H$102 = "", "", ROW(Fondo_Comun!$H$12:$H$102)), ROW()-1)), "" ) ->  | D42: =IF($B42, INDIRECT("Fondo_Comun!D" & SMALL(IF( Fondo_Comun!$H$12:$H$102 = "", "", ROW(Fondo_Comun!$H$12:$H$102)), ROW()-1)), "" ) ->  | E42: =IF($B42, INDIRECT("Fondo_Comun!H" & SMALL(IF( Fondo_Comun!$H$12:$H$102 = "", "", ROW(Fondo_Comun!$H$12:$H$102)), ROW()-1)), "" ) ->  | F42: =IF( B42, SUM($E$2:E42), "" ) -> 
B43: =COUNTIF(Fondo_Comun!$H$12:$H$102, ">0") >= ROW() - 1 -> FALSE | C43: =IF($B43, INDIRECT("Fondo_Comun!C" & SMALL(IF( Fondo_Comun!$H$12:$H$102 = "", "", ROW(Fondo_Comun!$H$12:$H$102)), ROW()-1)), "" ) ->  | D43: =IF($B43, INDIRECT("Fondo_Comun!D" & SMALL(IF( Fondo_Comun!$H$12:$H$102 = "", "", ROW(Fondo_Comun!$H$12:$H$102)), ROW()-1)), "" ) ->  | E43: =IF($B43, INDIRECT("Fondo_Comun!H" & SMALL(IF( Fondo_Comun!$H$12:$H$102 = "", "", ROW(Fondo_Comun!$H$12:$H$102)), ROW()-1)), "" ) ->  | F43: =IF( B43, SUM($E$2:E43), "" ) -> 
B44: =COUNTIF(Fondo_Comun!$H$12:$H$102, ">0") >= ROW() - 1 -> FALSE | C44: =IF($B44, INDIRECT("Fondo_Comun!C" & SMALL(IF( Fondo_Comun!$H$12:$H$102 = "", "", ROW(Fondo_Comun!$H$12:$H$102)), ROW()-1)), "" ) ->  | D44: =IF($B44, INDIRECT("Fondo_Comun!D" & SMALL(IF( Fondo_Comun!$H$12:$H$102 = "", "", ROW(Fondo_Comun!$H$12:$H$102)), ROW()-1)), "" ) ->  | E44: =IF($B44, INDIRECT("Fondo_Comun!H" & SMALL(IF( Fondo_Comun!$H$12:$H$102 = "", "", ROW(Fondo_Comun!$H$12:$H$102)), ROW()-1)), "" ) ->  | F44: =IF( B44, SUM($E$2:E44), "" ) -> 
B45: =COUNTIF(Fondo_Comun!$H$12:$H$102, ">0") >= ROW() - 1 -> FALSE | C45: =IF($B45, INDIRECT("Fondo_Comun!C" & SMALL(IF( Fondo_Comun!$H$12:$H$102 = "", "", ROW(Fondo_Comun!$H$12:$H$102)), ROW()-1)), "" ) ->  | D45: =IF($B45, INDIRECT("Fondo_Comun!D" & SMALL(IF( Fondo_Comun!$H$12:$H$102 = "", "", ROW(Fondo_Comun!$H$12:$H$102)), ROW()-1)), "" ) ->  | E45: =IF($B45, INDIRECT("Fondo_Comun!H" & SMALL(IF( Fondo_Comun!$H$12:$H$102 = "", "", ROW(Fondo_Comun!$H$12:$H$102)), ROW()-1)), "" ) ->  | F45: =IF( B45, SUM($E$2:E45), "" ) -> 
B46: =COUNTIF(Fondo_Comun!$H$12:$H$102, ">0") >= ROW() - 1 -> FALSE | C46: =IF($B46, INDIRECT("Fondo_Comun!C" & SMALL(IF( Fondo_Comun!$H$12:$H$102 = "", "", ROW(Fondo_Comun!$H$12:$H$102)), ROW()-1)), "" ) ->  | D46: =IF($B46, INDIRECT("Fondo_Comun!D" & SMALL(IF( Fondo_Comun!$H$12:$H$102 = "", "", ROW(Fondo_Comun!$H$12:$H$102)), ROW()-1)), "" ) ->  | E46: =IF($B46, INDIRECT("Fondo_Comun!H" & SMALL(IF( Fondo_Comun!$H$12:$H$102 = "", "", ROW(Fondo_Comun!$H$12:$H$102)), ROW()-1)), "" ) ->  | F46: =IF( B46, SUM($E$2:E46), "" ) -> 
B47: =COUNTIF(Fondo_Comun!$H$12:$H$102, ">0") >= ROW() - 1 -> FALSE | C47: =IF($B47, INDIRECT("Fondo_Comun!C" & SMALL(IF( Fondo_Comun!$H$12:$H$102 = "", "", ROW(Fondo_Comun!$H$12:$H$102)), ROW()-1)), "" ) ->  | D47: =IF($B47, INDIRECT("Fondo_Comun!D" & SMALL(IF( Fondo_Comun!$H$12:$H$102 = "", "", ROW(Fondo_Comun!$H$12:$H$102)), ROW()-1)), "" ) ->  | E47: =IF($B47, INDIRECT("Fondo_Comun!H" & SMALL(IF( Fondo_Comun!$H$12:$H$102 = "", "", ROW(Fondo_Comun!$H$12:$H$102)), ROW()-1)), "" ) ->  | F47: =IF( B47, SUM($E$2:E47), "" ) -> 
B48: =COUNTIF(Fondo_Comun!$H$12:$H$102, ">0") >= ROW() - 1 -> FALSE | C48: =IF($B48, INDIRECT("Fondo_Comun!C" & SMALL(IF( Fondo_Comun!$H$12:$H$102 = "", "", ROW(Fondo_Comun!$H$12:$H$102)), ROW()-1)), "" ) ->  | D48: =IF($B48, INDIRECT("Fondo_Comun!D" & SMALL(IF( Fondo_Comun!$H$12:$H$102 = "", "", ROW(Fondo_Comun!$H$12:$H$102)), ROW()-1)), "" ) ->  | E48: =IF($B48, INDIRECT("Fondo_Comun!H" & SMALL(IF( Fondo_Comun!$H$12:$H$102 = "", "", ROW(Fondo_Comun!$H$12:$H$102)), ROW()-1)), "" ) ->  | F48: =IF( B48, SUM($E$2:E48), "" ) -> 
B49: =COUNTIF(Fondo_Comun!$H$12:$H$102, ">0") >= ROW() - 1 -> FALSE | C49: =IF($B49, INDIRECT("Fondo_Comun!C" & SMALL(IF( Fondo_Comun!$H$12:$H$102 = "", "", ROW(Fondo_Comun!$H$12:$H$102)), ROW()-1)), "" ) ->  | D49: =IF($B49, INDIRECT("Fondo_Comun!D" & SMALL(IF( Fondo_Comun!$H$12:$H$102 = "", "", ROW(Fondo_Comun!$H$12:$H$102)), ROW()-1)), "" ) ->  | E49: =IF($B49, INDIRECT("Fondo_Comun!H" & SMALL(IF( Fondo_Comun!$H$12:$H$102 = "", "", ROW(Fondo_Comun!$H$12:$H$102)), ROW()-1)), "" ) ->  | F49: =IF( B49, SUM($E$2:E49), "" ) -> 
B50: =COUNTIF(Fondo_Comun!$H$12:$H$102, ">0") >= ROW() - 1 -> FALSE | C50: =IF($B50, INDIRECT("Fondo_Comun!C" & SMALL(IF( Fondo_Comun!$H$12:$H$102 = "", "", ROW(Fondo_Comun!$H$12:$H$102)), ROW()-1)), "" ) ->  | D50: =IF($B50, INDIRECT("Fondo_Comun!D" & SMALL(IF( Fondo_Comun!$H$12:$H$102 = "", "", ROW(Fondo_Comun!$H$12:$H$102)), ROW()-1)), "" ) ->  | E50: =IF($B50, INDIRECT("Fondo_Comun!H" & SMALL(IF( Fondo_Comun!$H$12:$H$102 = "", "", ROW(Fondo_Comun!$H$12:$H$102)), ROW()-1)), "" ) ->  | F50: =IF( B50, SUM($E$2:E50), "" ) -> 
B51: =COUNTIF(Fondo_Comun!$H$12:$H$102, ">0") >= ROW() - 1 -> FALSE | C51: =IF($B51, INDIRECT("Fondo_Comun!C" & SMALL(IF( Fondo_Comun!$H$12:$H$102 = "", "", ROW(Fondo_Comun!$H$12:$H$102)), ROW()-1)), "" ) ->  | D51: =IF($B51, INDIRECT("Fondo_Comun!D" & SMALL(IF( Fondo_Comun!$H$12:$H$102 = "", "", ROW(Fondo_Comun!$H$12:$H$102)), ROW()-1)), "" ) ->  | E51: =IF($B51, INDIRECT("Fondo_Comun!H" & SMALL(IF( Fondo_Comun!$H$12:$H$102 = "", "", ROW(Fondo_Comun!$H$12:$H$102)), ROW()-1)), "" ) ->  | F51: =IF( B51, SUM($E$2:E51), "" ) -> 
B52: =COUNTIF(Fondo_Comun!$H$12:$H$102, ">0") >= ROW() - 1 -> FALSE | C52: =IF($B52, INDIRECT("Fondo_Comun!C" & SMALL(IF( Fondo_Comun!$H$12:$H$102 = "", "", ROW(Fondo_Comun!$H$12:$H$102)), ROW()-1)), "" ) ->  | D52: =IF($B52, INDIRECT("Fondo_Comun!D" & SMALL(IF( Fondo_Comun!$H$12:$H$102 = "", "", ROW(Fondo_Comun!$H$12:$H$102)), ROW()-1)), "" ) ->  | E52: =IF($B52, INDIRECT("Fondo_Comun!H" & SMALL(IF( Fondo_Comun!$H$12:$H$102 = "", "", ROW(Fondo_Comun!$H$12:$H$102)), ROW()-1)), "" ) ->  | F52: =IF( B52, SUM($E$2:E52), "" ) -> 
B53: =COUNTIF(Fondo_Comun!$H$12:$H$102, ">0") >= ROW() - 1 -> FALSE | C53: =IF($B53, INDIRECT("Fondo_Comun!C" & SMALL(IF( Fondo_Comun!$H$12:$H$102 = "", "", ROW(Fondo_Comun!$H$12:$H$102)), ROW()-1)), "" ) ->  | D53: =IF($B53, INDIRECT("Fondo_Comun!D" & SMALL(IF( Fondo_Comun!$H$12:$H$102 = "", "", ROW(Fondo_Comun!$H$12:$H$102)), ROW()-1)), "" ) ->  | E53: =IF($B53, INDIRECT("Fondo_Comun!H" & SMALL(IF( Fondo_Comun!$H$12:$H$102 = "", "", ROW(Fondo_Comun!$H$12:$H$102)), ROW()-1)), "" ) ->  | F53: =IF( B53, SUM($E$2:E53), "" ) -> 
B54: =COUNTIF(Fondo_Comun!$H$12:$H$102, ">0") >= ROW() - 1 -> FALSE | C54: =IF($B54, INDIRECT("Fondo_Comun!C" & SMALL(IF( Fondo_Comun!$H$12:$H$102 = "", "", ROW(Fondo_Comun!$H$12:$H$102)), ROW()-1)), "" ) ->  | D54: =IF($B54, INDIRECT("Fondo_Comun!D" & SMALL(IF( Fondo_Comun!$H$12:$H$102 = "", "", ROW(Fondo_Comun!$H$12:$H$102)), ROW()-1)), "" ) ->  | E54: =IF($B54, INDIRECT("Fondo_Comun!H" & SMALL(IF( Fondo_Comun!$H$12:$H$102 = "", "", ROW(Fondo_Comun!$H$12:$H$102)), ROW()-1)), "" ) ->  | F54: =IF( B54, SUM($E$2:E54), "" ) -> 
B55: =COUNTIF(Fondo_Comun!$H$12:$H$102, ">0") >= ROW() - 1 -> FALSE | C55: =IF($B55, INDIRECT("Fondo_Comun!C" & SMALL(IF( Fondo_Comun!$H$12:$H$102 = "", "", ROW(Fondo_Comun!$H$12:$H$102)), ROW()-1)), "" ) ->  | D55: =IF($B55, INDIRECT("Fondo_Comun!D" & SMALL(IF( Fondo_Comun!$H$12:$H$102 = "", "", ROW(Fondo_Comun!$H$12:$H$102)), ROW()-1)), "" ) ->  | E55: =IF($B55, INDIRECT("Fondo_Comun!H" & SMALL(IF( Fondo_Comun!$H$12:$H$102 = "", "", ROW(Fondo_Comun!$H$12:$H$102)), ROW()-1)), "" ) ->  | F55: =IF( B55, SUM($E$2:E55), "" ) -> 
B56: =COUNTIF(Fondo_Comun!$H$12:$H$102, ">0") >= ROW() - 1 -> FALSE | C56: =IF($B56, INDIRECT("Fondo_Comun!C" & SMALL(IF( Fondo_Comun!$H$12:$H$102 = "", "", ROW(Fondo_Comun!$H$12:$H$102)), ROW()-1)), "" ) ->  | D56: =IF($B56, INDIRECT("Fondo_Comun!D" & SMALL(IF( Fondo_Comun!$H$12:$H$102 = "", "", ROW(Fondo_Comun!$H$12:$H$102)), ROW()-1)), "" ) ->  | E56: =IF($B56, INDIRECT("Fondo_Comun!H" & SMALL(IF( Fondo_Comun!$H$12:$H$102 = "", "", ROW(Fondo_Comun!$H$12:$H$102)), ROW()-1)), "" ) ->  | F56: =IF( B56, SUM($E$2:E56), "" ) -> 
B57: =COUNTIF(Fondo_Comun!$H$12:$H$102, ">0") >= ROW() - 1 -> FALSE | C57: =IF($B57, INDIRECT("Fondo_Comun!C" & SMALL(IF( Fondo_Comun!$H$12:$H$102 = "", "", ROW(Fondo_Comun!$H$12:$H$102)), ROW()-1)), "" ) ->  | D57: =IF($B57, INDIRECT("Fondo_Comun!D" & SMALL(IF( Fondo_Comun!$H$12:$H$102 = "", "", ROW(Fondo_Comun!$H$12:$H$102)), ROW()-1)), "" ) ->  | E57: =IF($B57, INDIRECT("Fondo_Comun!H" & SMALL(IF( Fondo_Comun!$H$12:$H$102 = "", "", ROW(Fondo_Comun!$H$12:$H$102)), ROW()-1)), "" ) ->  | F57: =IF( B57, SUM($E$2:E57), "" ) -> 
B58: =COUNTIF(Fondo_Comun!$H$12:$H$102, ">0") >= ROW() - 1 -> FALSE | C58: =IF($B58, INDIRECT("Fondo_Comun!C" & SMALL(IF( Fondo_Comun!$H$12:$H$102 = "", "", ROW(Fondo_Comun!$H$12:$H$102)), ROW()-1)), "" ) ->  | D58: =IF($B58, INDIRECT("Fondo_Comun!D" & SMALL(IF( Fondo_Comun!$H$12:$H$102 = "", "", ROW(Fondo_Comun!$H$12:$H$102)), ROW()-1)), "" ) ->  | E58: =IF($B58, INDIRECT("Fondo_Comun!H" & SMALL(IF( Fondo_Comun!$H$12:$H$102 = "", "", ROW(Fondo_Comun!$H$12:$H$102)), ROW()-1)), "" ) ->  | F58: =IF( B58, SUM($E$2:E58), "" ) -> 
B59: =COUNTIF(Fondo_Comun!$H$12:$H$102, ">0") >= ROW() - 1 -> FALSE | C59: =IF($B59, INDIRECT("Fondo_Comun!C" & SMALL(IF( Fondo_Comun!$H$12:$H$102 = "", "", ROW(Fondo_Comun!$H$12:$H$102)), ROW()-1)), "" ) ->  | D59: =IF($B59, INDIRECT("Fondo_Comun!D" & SMALL(IF( Fondo_Comun!$H$12:$H$102 = "", "", ROW(Fondo_Comun!$H$12:$H$102)), ROW()-1)), "" ) ->  | E59: =IF($B59, INDIRECT("Fondo_Comun!H" & SMALL(IF( Fondo_Comun!$H$12:$H$102 = "", "", ROW(Fondo_Comun!$H$12:$H$102)), ROW()-1)), "" ) ->  | F59: =IF( B59, SUM($E$2:E59), "" ) -> 
B60: =COUNTIF(Fondo_Comun!$H$12:$H$102, ">0") >= ROW() - 1 -> FALSE | C60: =IF($B60, INDIRECT("Fondo_Comun!C" & SMALL(IF( Fondo_Comun!$H$12:$H$102 = "", "", ROW(Fondo_Comun!$H$12:$H$102)), ROW()-1)), "" ) ->  | D60: =IF($B60, INDIRECT("Fondo_Comun!D" & SMALL(IF( Fondo_Comun!$H$12:$H$102 = "", "", ROW(Fondo_Comun!$H$12:$H$102)), ROW()-1)), "" ) ->  | E60: =IF($B60, INDIRECT("Fondo_Comun!H" & SMALL(IF( Fondo_Comun!$H$12:$H$102 = "", "", ROW(Fondo_Comun!$H$12:$H$102)), ROW()-1)), "" ) ->  | F60: =IF( B60, SUM($E$2:E60), "" ) -> 
B61: =COUNTIF(Fondo_Comun!$H$12:$H$102, ">0") >= ROW() - 1 -> FALSE | C61: =IF($B61, INDIRECT("Fondo_Comun!C" & SMALL(IF( Fondo_Comun!$H$12:$H$102 = "", "", ROW(Fondo_Comun!$H$12:$H$102)), ROW()-1)), "" ) ->  | D61: =IF($B61, INDIRECT("Fondo_Comun!D" & SMALL(IF( Fondo_Comun!$H$12:$H$102 = "", "", ROW(Fondo_Comun!$H$12:$H$102)), ROW()-1)), "" ) ->  | E61: =IF($B61, INDIRECT("Fondo_Comun!H" & SMALL(IF( Fondo_Comun!$H$12:$H$102 = "", "", ROW(Fondo_Comun!$H$12:$H$102)), ROW()-1)), "" ) ->  | F61: =IF( B61, SUM($E$2:E61), "" ) -> 
B62: =COUNTIF(Fondo_Comun!$H$12:$H$102, ">0") >= ROW() - 1 -> FALSE | C62: =IF($B62, INDIRECT("Fondo_Comun!C" & SMALL(IF( Fondo_Comun!$H$12:$H$102 = "", "", ROW(Fondo_Comun!$H$12:$H$102)), ROW()-1)), "" ) ->  | D62: =IF($B62, INDIRECT("Fondo_Comun!D" & SMALL(IF( Fondo_Comun!$H$12:$H$102 = "", "", ROW(Fondo_Comun!$H$12:$H$102)), ROW()-1)), "" ) ->  | E62: =IF($B62, INDIRECT("Fondo_Comun!H" & SMALL(IF( Fondo_Comun!$H$12:$H$102 = "", "", ROW(Fondo_Comun!$H$12:$H$102)), ROW()-1)), "" ) ->  | F62: =IF( B62, SUM($E$2:E62), "" ) -> 
B63: =COUNTIF(Fondo_Comun!$H$12:$H$102, ">0") >= ROW() - 1 -> FALSE | C63: =IF($B63, INDIRECT("Fondo_Comun!C" & SMALL(IF( Fondo_Comun!$H$12:$H$102 = "", "", ROW(Fondo_Comun!$H$12:$H$102)), ROW()-1)), "" ) ->  | D63: =IF($B63, INDIRECT("Fondo_Comun!D" & SMALL(IF( Fondo_Comun!$H$12:$H$102 = "", "", ROW(Fondo_Comun!$H$12:$H$102)), ROW()-1)), "" ) ->  | E63: =IF($B63, INDIRECT("Fondo_Comun!H" & SMALL(IF( Fondo_Comun!$H$12:$H$102 = "", "", ROW(Fondo_Comun!$H$12:$H$102)), ROW()-1)), "" ) ->  | F63: =IF( B63, SUM($E$2:E63), "" ) -> 
B64: =COUNTIF(Fondo_Comun!$H$12:$H$102, ">0") >= ROW() - 1 -> FALSE | C64: =IF($B64, INDIRECT("Fondo_Comun!C" & SMALL(IF( Fondo_Comun!$H$12:$H$102 = "", "", ROW(Fondo_Comun!$H$12:$H$102)), ROW()-1)), "" ) ->  | D64: =IF($B64, INDIRECT("Fondo_Comun!D" & SMALL(IF( Fondo_Comun!$H$12:$H$102 = "", "", ROW(Fondo_Comun!$H$12:$H$102)), ROW()-1)), "" ) ->  | E64: =IF($B64, INDIRECT("Fondo_Comun!H" & SMALL(IF( Fondo_Comun!$H$12:$H$102 = "", "", ROW(Fondo_Comun!$H$12:$H$102)), ROW()-1)), "" ) ->  | F64: =IF( B64, SUM($E$2:E64), "" ) -> 
B65: =COUNTIF(Fondo_Comun!$H$12:$H$102, ">0") >= ROW() - 1 -> FALSE | C65: =IF($B65, INDIRECT("Fondo_Comun!C" & SMALL(IF( Fondo_Comun!$H$12:$H$102 = "", "", ROW(Fondo_Comun!$H$12:$H$102)), ROW()-1)), "" ) ->  | D65: =IF($B65, INDIRECT("Fondo_Comun!D" & SMALL(IF( Fondo_Comun!$H$12:$H$102 = "", "", ROW(Fondo_Comun!$H$12:$H$102)), ROW()-1)), "" ) ->  | E65: =IF($B65, INDIRECT("Fondo_Comun!H" & SMALL(IF( Fondo_Comun!$H$12:$H$102 = "", "", ROW(Fondo_Comun!$H$12:$H$102)), ROW()-1)), "" ) ->  | F65: =IF( B65, SUM($E$2:E65), "" ) -> 
B66: =COUNTIF(Fondo_Comun!$H$12:$H$102, ">0") >= ROW() - 1 -> FALSE | C66: =IF($B66, INDIRECT("Fondo_Comun!C" & SMALL(IF( Fondo_Comun!$H$12:$H$102 = "", "", ROW(Fondo_Comun!$H$12:$H$102)), ROW()-1)), "" ) ->  | D66: =IF($B66, INDIRECT("Fondo_Comun!D" & SMALL(IF( Fondo_Comun!$H$12:$H$102 = "", "", ROW(Fondo_Comun!$H$12:$H$102)), ROW()-1)), "" ) ->  | E66: =IF($B66, INDIRECT("Fondo_Comun!H" & SMALL(IF( Fondo_Comun!$H$12:$H$102 = "", "", ROW(Fondo_Comun!$H$12:$H$102)), ROW()-1)), "" ) ->  | F66: =IF( B66, SUM($E$2:E66), "" ) -> 
B67: =COUNTIF(Fondo_Comun!$H$12:$H$102, ">0") >= ROW() - 1 -> FALSE | C67: =IF($B67, INDIRECT("Fondo_Comun!C" & SMALL(IF( Fondo_Comun!$H$12:$H$102 = "", "", ROW(Fondo_Comun!$H$12:$H$102)), ROW()-1)), "" ) ->  | D67: =IF($B67, INDIRECT("Fondo_Comun!D" & SMALL(IF( Fondo_Comun!$H$12:$H$102 = "", "", ROW(Fondo_Comun!$H$12:$H$102)), ROW()-1)), "" ) ->  | E67: =IF($B67, INDIRECT("Fondo_Comun!H" & SMALL(IF( Fondo_Comun!$H$12:$H$102 = "", "", ROW(Fondo_Comun!$H$12:$H$102)), ROW()-1)), "" ) ->  | F67: =IF( B67, SUM($E$2:E67), "" ) -> 
B68: =COUNTIF(Fondo_Comun!$H$12:$H$102, ">0") >= ROW() - 1 -> FALSE | C68: =IF($B68, INDIRECT("Fondo_Comun!C" & SMALL(IF( Fondo_Comun!$H$12:$H$102 = "", "", ROW(Fondo_Comun!$H$12:$H$102)), ROW()-1)), "" ) ->  | D68: =IF($B68, INDIRECT("Fondo_Comun!D" & SMALL(IF( Fondo_Comun!$H$12:$H$102 = "", "", ROW(Fondo_Comun!$H$12:$H$102)), ROW()-1)), "" ) ->  | E68: =IF($B68, INDIRECT("Fondo_Comun!H" & SMALL(IF( Fondo_Comun!$H$12:$H$102 = "", "", ROW(Fondo_Comun!$H$12:$H$102)), ROW()-1)), "" ) ->  | F68: =IF( B68, SUM($E$2:E68), "" ) -> 
B69: =COUNTIF(Fondo_Comun!$H$12:$H$102, ">0") >= ROW() - 1 -> FALSE | C69: =IF($B69, INDIRECT("Fondo_Comun!C" & SMALL(IF( Fondo_Comun!$H$12:$H$102 = "", "", ROW(Fondo_Comun!$H$12:$H$102)), ROW()-1)), "" ) ->  | D69: =IF($B69, INDIRECT("Fondo_Comun!D" & SMALL(IF( Fondo_Comun!$H$12:$H$102 = "", "", ROW(Fondo_Comun!$H$12:$H$102)), ROW()-1)), "" ) ->  | E69: =IF($B69, INDIRECT("Fondo_Comun!H" & SMALL(IF( Fondo_Comun!$H$12:$H$102 = "", "", ROW(Fondo_Comun!$H$12:$H$102)), ROW()-1)), "" ) ->  | F69: =IF( B69, SUM($E$2:E69), "" ) -> 
B70: =COUNTIF(Fondo_Comun!$H$12:$H$102, ">0") >= ROW() - 1 -> FALSE | C70: =IF($B70, INDIRECT("Fondo_Comun!C" & SMALL(IF( Fondo_Comun!$H$12:$H$102 = "", "", ROW(Fondo_Comun!$H$12:$H$102)), ROW()-1)), "" ) ->  | D70: =IF($B70, INDIRECT("Fondo_Comun!D" & SMALL(IF( Fondo_Comun!$H$12:$H$102 = "", "", ROW(Fondo_Comun!$H$12:$H$102)), ROW()-1)), "" ) ->  | E70: =IF($B70, INDIRECT("Fondo_Comun!H" & SMALL(IF( Fondo_Comun!$H$12:$H$102 = "", "", ROW(Fondo_Comun!$H$12:$H$102)), ROW()-1)), "" ) ->  | F70: =IF( B70, SUM($E$2:E70), "" ) -> 
B71: =COUNTIF(Fondo_Comun!$H$12:$H$102, ">0") >= ROW() - 1 -> FALSE | C71: =IF($B71, INDIRECT("Fondo_Comun!C" & SMALL(IF( Fondo_Comun!$H$12:$H$102 = "", "", ROW(Fondo_Comun!$H$12:$H$102)), ROW()-1)), "" ) ->  | D71: =IF($B71, INDIRECT("Fondo_Comun!D" & SMALL(IF( Fondo_Comun!$H$12:$H$102 = "", "", ROW(Fondo_Comun!$H$12:$H$102)), ROW()-1)), "" ) ->  | E71: =IF($B71, INDIRECT("Fondo_Comun!H" & SMALL(IF( Fondo_Comun!$H$12:$H$102 = "", "", ROW(Fondo_Comun!$H$12:$H$102)), ROW()-1)), "" ) ->  | F71: =IF( B71, SUM($E$2:E71), "" ) -> 
B72: =COUNTIF(Fondo_Comun!$H$12:$H$102, ">0") >= ROW() - 1 -> FALSE | C72: =IF($B72, INDIRECT("Fondo_Comun!C" & SMALL(IF( Fondo_Comun!$H$12:$H$102 = "", "", ROW(Fondo_Comun!$H$12:$H$102)), ROW()-1)), "" ) ->  | D72: =IF($B72, INDIRECT("Fondo_Comun!D" & SMALL(IF( Fondo_Comun!$H$12:$H$102 = "", "", ROW(Fondo_Comun!$H$12:$H$102)), ROW()-1)), "" ) ->  | E72: =IF($B72, INDIRECT("Fondo_Comun!H" & SMALL(IF( Fondo_Comun!$H$12:$H$102 = "", "", ROW(Fondo_Comun!$H$12:$H$102)), ROW()-1)), "" ) ->  | F72: =IF( B72, SUM($E$2:E72), "" ) -> 
B73: =COUNTIF(Fondo_Comun!$H$12:$H$102, ">0") >= ROW() - 1 -> FALSE | C73: =IF($B73, INDIRECT("Fondo_Comun!C" & SMALL(IF( Fondo_Comun!$H$12:$H$102 = "", "", ROW(Fondo_Comun!$H$12:$H$102)), ROW()-1)), "" ) ->  | D73: =IF($B73, INDIRECT("Fondo_Comun!D" & SMALL(IF( Fondo_Comun!$H$12:$H$102 = "", "", ROW(Fondo_Comun!$H$12:$H$102)), ROW()-1)), "" ) ->  | E73: =IF($B73, INDIRECT("Fondo_Comun!H" & SMALL(IF( Fondo_Comun!$H$12:$H$102 = "", "", ROW(Fondo_Comun!$H$12:$H$102)), ROW()-1)), "" ) ->  | F73: =IF( B73, SUM($E$2:E73), "" ) -> 
B74: =COUNTIF(Fondo_Comun!$H$12:$H$102, ">0") >= ROW() - 1 -> FALSE | C74: =IF($B74, INDIRECT("Fondo_Comun!C" & SMALL(IF( Fondo_Comun!$H$12:$H$102 = "", "", ROW(Fondo_Comun!$H$12:$H$102)), ROW()-1)), "" ) ->  | D74: =IF($B74, INDIRECT("Fondo_Comun!D" & SMALL(IF( Fondo_Comun!$H$12:$H$102 = "", "", ROW(Fondo_Comun!$H$12:$H$102)), ROW()-1)), "" ) ->  | E74: =IF($B74, INDIRECT("Fondo_Comun!H" & SMALL(IF( Fondo_Comun!$H$12:$H$102 = "", "", ROW(Fondo_Comun!$H$12:$H$102)), ROW()-1)), "" ) ->  | F74: =IF( B74, SUM($E$2:E74), "" ) -> 
B75: =COUNTIF(Fondo_Comun!$H$12:$H$102, ">0") >= ROW() - 1 -> FALSE | C75: =IF($B75, INDIRECT("Fondo_Comun!C" & SMALL(IF( Fondo_Comun!$H$12:$H$102 = "", "", ROW(Fondo_Comun!$H$12:$H$102)), ROW()-1)), "" ) ->  | D75: =IF($B75, INDIRECT("Fondo_Comun!D" & SMALL(IF( Fondo_Comun!$H$12:$H$102 = "", "", ROW(Fondo_Comun!$H$12:$H$102)), ROW()-1)), "" ) ->  | E75: =IF($B75, INDIRECT("Fondo_Comun!H" & SMALL(IF( Fondo_Comun!$H$12:$H$102 = "", "", ROW(Fondo_Comun!$H$12:$H$102)), ROW()-1)), "" ) ->  | F75: =IF( B75, SUM($E$2:E75), "" ) -> 
B76: =COUNTIF(Fondo_Comun!$H$12:$H$102, ">0") >= ROW() - 1 -> FALSE | C76: =IF($B76, INDIRECT("Fondo_Comun!C" & SMALL(IF( Fondo_Comun!$H$12:$H$102 = "", "", ROW(Fondo_Comun!$H$12:$H$102)), ROW()-1)), "" ) ->  | D76: =IF($B76, INDIRECT("Fondo_Comun!D" & SMALL(IF( Fondo_Comun!$H$12:$H$102 = "", "", ROW(Fondo_Comun!$H$12:$H$102)), ROW()-1)), "" ) ->  | E76: =IF($B76, INDIRECT("Fondo_Comun!H" & SMALL(IF( Fondo_Comun!$H$12:$H$102 = "", "", ROW(Fondo_Comun!$H$12:$H$102)), ROW()-1)), "" ) ->  | F76: =IF( B76, SUM($E$2:E76), "" ) -> 
B77: =COUNTIF(Fondo_Comun!$H$12:$H$102, ">0") >= ROW() - 1 -> FALSE | C77: =IF($B77, INDIRECT("Fondo_Comun!C" & SMALL(IF( Fondo_Comun!$H$12:$H$102 = "", "", ROW(Fondo_Comun!$H$12:$H$102)), ROW()-1)), "" ) ->  | D77: =IF($B77, INDIRECT("Fondo_Comun!D" & SMALL(IF( Fondo_Comun!$H$12:$H$102 = "", "", ROW(Fondo_Comun!$H$12:$H$102)), ROW()-1)), "" ) ->  | E77: =IF($B77, INDIRECT("Fondo_Comun!H" & SMALL(IF( Fondo_Comun!$H$12:$H$102 = "", "", ROW(Fondo_Comun!$H$12:$H$102)), ROW()-1)), "" ) ->  | F77: =IF( B77, SUM($E$2:E77), "" ) -> 
B78: =COUNTIF(Fondo_Comun!$H$12:$H$102, ">0") >= ROW() - 1 -> FALSE | C78: =IF($B78, INDIRECT("Fondo_Comun!C" & SMALL(IF( Fondo_Comun!$H$12:$H$102 = "", "", ROW(Fondo_Comun!$H$12:$H$102)), ROW()-1)), "" ) ->  | D78: =IF($B78, INDIRECT("Fondo_Comun!D" & SMALL(IF( Fondo_Comun!$H$12:$H$102 = "", "", ROW(Fondo_Comun!$H$12:$H$102)), ROW()-1)), "" ) ->  | E78: =IF($B78, INDIRECT("Fondo_Comun!H" & SMALL(IF( Fondo_Comun!$H$12:$H$102 = "", "", ROW(Fondo_Comun!$H$12:$H$102)), ROW()-1)), "" ) ->  | F78: =IF( B78, SUM($E$2:E78), "" ) -> 
B79: =COUNTIF(Fondo_Comun!$H$12:$H$102, ">0") >= ROW() - 1 -> FALSE | C79: =IF($B79, INDIRECT("Fondo_Comun!C" & SMALL(IF( Fondo_Comun!$H$12:$H$102 = "", "", ROW(Fondo_Comun!$H$12:$H$102)), ROW()-1)), "" ) ->  | D79: =IF($B79, INDIRECT("Fondo_Comun!D" & SMALL(IF( Fondo_Comun!$H$12:$H$102 = "", "", ROW(Fondo_Comun!$H$12:$H$102)), ROW()-1)), "" ) ->  | E79: =IF($B79, INDIRECT("Fondo_Comun!H" & SMALL(IF( Fondo_Comun!$H$12:$H$102 = "", "", ROW(Fondo_Comun!$H$12:$H$102)), ROW()-1)), "" ) ->  | F79: =IF( B79, SUM($E$2:E79), "" ) -> 
B80: =COUNTIF(Fondo_Comun!$H$12:$H$102, ">0") >= ROW() - 1 -> FALSE | C80: =IF($B80, INDIRECT("Fondo_Comun!C" & SMALL(IF( Fondo_Comun!$H$12:$H$102 = "", "", ROW(Fondo_Comun!$H$12:$H$102)), ROW()-1)), "" ) ->  | D80: =IF($B80, INDIRECT("Fondo_Comun!D" & SMALL(IF( Fondo_Comun!$H$12:$H$102 = "", "", ROW(Fondo_Comun!$H$12:$H$102)), ROW()-1)), "" ) ->  | E80: =IF($B80, INDIRECT("Fondo_Comun!H" & SMALL(IF( Fondo_Comun!$H$12:$H$102 = "", "", ROW(Fondo_Comun!$H$12:$H$102)), ROW()-1)), "" ) ->  | F80: =IF( B80, SUM($E$2:E80), "" ) -> 
B81: =COUNTIF(Fondo_Comun!$H$12:$H$102, ">0") >= ROW() - 1 -> FALSE | C81: =IF($B81, INDIRECT("Fondo_Comun!C" & SMALL(IF( Fondo_Comun!$H$12:$H$102 = "", "", ROW(Fondo_Comun!$H$12:$H$102)), ROW()-1)), "" ) ->  | D81: =IF($B81, INDIRECT("Fondo_Comun!D" & SMALL(IF( Fondo_Comun!$H$12:$H$102 = "", "", ROW(Fondo_Comun!$H$12:$H$102)), ROW()-1)), "" ) ->  | E81: =IF($B81, INDIRECT("Fondo_Comun!H" & SMALL(IF( Fondo_Comun!$H$12:$H$102 = "", "", ROW(Fondo_Comun!$H$12:$H$102)), ROW()-1)), "" ) ->  | F81: =IF( B81, SUM($E$2:E81), "" ) -> 
B82: =COUNTIF(Fondo_Comun!$H$12:$H$102, ">0") >= ROW() - 1 -> FALSE | C82: =IF($B82, INDIRECT("Fondo_Comun!C" & SMALL(IF( Fondo_Comun!$H$12:$H$102 = "", "", ROW(Fondo_Comun!$H$12:$H$102)), ROW()-1)), "" ) ->  | D82: =IF($B82, INDIRECT("Fondo_Comun!D" & SMALL(IF( Fondo_Comun!$H$12:$H$102 = "", "", ROW(Fondo_Comun!$H$12:$H$102)), ROW()-1)), "" ) ->  | E82: =IF($B82, INDIRECT("Fondo_Comun!H" & SMALL(IF( Fondo_Comun!$H$12:$H$102 = "", "", ROW(Fondo_Comun!$H$12:$H$102)), ROW()-1)), "" ) ->  | F82: =IF( B82, SUM($E$2:E82), "" ) -> 
B83: =COUNTIF(Fondo_Comun!$H$12:$H$102, ">0") >= ROW() - 1 -> FALSE | C83: =IF($B83, INDIRECT("Fondo_Comun!C" & SMALL(IF( Fondo_Comun!$H$12:$H$102 = "", "", ROW(Fondo_Comun!$H$12:$H$102)), ROW()-1)), "" ) ->  | D83: =IF($B83, INDIRECT("Fondo_Comun!D" & SMALL(IF( Fondo_Comun!$H$12:$H$102 = "", "", ROW(Fondo_Comun!$H$12:$H$102)), ROW()-1)), "" ) ->  | E83: =IF($B83, INDIRECT("Fondo_Comun!H" & SMALL(IF( Fondo_Comun!$H$12:$H$102 = "", "", ROW(Fondo_Comun!$H$12:$H$102)), ROW()-1)), "" ) ->  | F83: =IF( B83, SUM($E$2:E83), "" ) -> 
B84: =COUNTIF(Fondo_Comun!$H$12:$H$102, ">0") >= ROW() - 1 -> FALSE | C84: =IF($B84, INDIRECT("Fondo_Comun!C" & SMALL(IF( Fondo_Comun!$H$12:$H$102 = "", "", ROW(Fondo_Comun!$H$12:$H$102)), ROW()-1)), "" ) ->  | D84: =IF($B84, INDIRECT("Fondo_Comun!D" & SMALL(IF( Fondo_Comun!$H$12:$H$102 = "", "", ROW(Fondo_Comun!$H$12:$H$102)), ROW()-1)), "" ) ->  | E84: =IF($B84, INDIRECT("Fondo_Comun!H" & SMALL(IF( Fondo_Comun!$H$12:$H$102 = "", "", ROW(Fondo_Comun!$H$12:$H$102)), ROW()-1)), "" ) ->  | F84: =IF( B84, SUM($E$2:E84), "" ) -> 
B85: =COUNTIF(Fondo_Comun!$H$12:$H$102, ">0") >= ROW() - 1 -> FALSE | C85: =IF($B85, INDIRECT("Fondo_Comun!C" & SMALL(IF( Fondo_Comun!$H$12:$H$102 = "", "", ROW(Fondo_Comun!$H$12:$H$102)), ROW()-1)), "" ) ->  | D85: =IF($B85, INDIRECT("Fondo_Comun!D" & SMALL(IF( Fondo_Comun!$H$12:$H$102 = "", "", ROW(Fondo_Comun!$H$12:$H$102)), ROW()-1)), "" ) ->  | E85: =IF($B85, INDIRECT("Fondo_Comun!H" & SMALL(IF( Fondo_Comun!$H$12:$H$102 = "", "", ROW(Fondo_Comun!$H$12:$H$102)), ROW()-1)), "" ) ->  | F85: =IF( B85, SUM($E$2:E85), "" ) -> 
B86: =COUNTIF(Fondo_Comun!$H$12:$H$102, ">0") >= ROW() - 1 -> FALSE | C86: =IF($B86, INDIRECT("Fondo_Comun!C" & SMALL(IF( Fondo_Comun!$H$12:$H$102 = "", "", ROW(Fondo_Comun!$H$12:$H$102)), ROW()-1)), "" ) ->  | D86: =IF($B86, INDIRECT("Fondo_Comun!D" & SMALL(IF( Fondo_Comun!$H$12:$H$102 = "", "", ROW(Fondo_Comun!$H$12:$H$102)), ROW()-1)), "" ) ->  | E86: =IF($B86, INDIRECT("Fondo_Comun!H" & SMALL(IF( Fondo_Comun!$H$12:$H$102 = "", "", ROW(Fondo_Comun!$H$12:$H$102)), ROW()-1)), "" ) ->  | F86: =IF( B86, SUM($E$2:E86), "" ) -> 
B87: =COUNTIF(Fondo_Comun!$H$12:$H$102, ">0") >= ROW() - 1 -> FALSE | C87: =IF($B87, INDIRECT("Fondo_Comun!C" & SMALL(IF( Fondo_Comun!$H$12:$H$102 = "", "", ROW(Fondo_Comun!$H$12:$H$102)), ROW()-1)), "" ) ->  | D87: =IF($B87, INDIRECT("Fondo_Comun!D" & SMALL(IF( Fondo_Comun!$H$12:$H$102 = "", "", ROW(Fondo_Comun!$H$12:$H$102)), ROW()-1)), "" ) ->  | E87: =IF($B87, INDIRECT("Fondo_Comun!H" & SMALL(IF( Fondo_Comun!$H$12:$H$102 = "", "", ROW(Fondo_Comun!$H$12:$H$102)), ROW()-1)), "" ) ->  | F87: =IF( B87, SUM($E$2:E87), "" ) -> 
B88: =COUNTIF(Fondo_Comun!$H$12:$H$102, ">0") >= ROW() - 1 -> FALSE | C88: =IF($B88, INDIRECT("Fondo_Comun!C" & SMALL(IF( Fondo_Comun!$H$12:$H$102 = "", "", ROW(Fondo_Comun!$H$12:$H$102)), ROW()-1)), "" ) ->  | D88: =IF($B88, INDIRECT("Fondo_Comun!D" & SMALL(IF( Fondo_Comun!$H$12:$H$102 = "", "", ROW(Fondo_Comun!$H$12:$H$102)), ROW()-1)), "" ) ->  | E88: =IF($B88, INDIRECT("Fondo_Comun!H" & SMALL(IF( Fondo_Comun!$H$12:$H$102 = "", "", ROW(Fondo_Comun!$H$12:$H$102)), ROW()-1)), "" ) ->  | F88: =IF( B88, SUM($E$2:E88), "" ) -> 
B89: =COUNTIF(Fondo_Comun!$H$12:$H$102, ">0") >= ROW() - 1 -> FALSE | C89: =IF($B89, INDIRECT("Fondo_Comun!C" & SMALL(IF( Fondo_Comun!$H$12:$H$102 = "", "", ROW(Fondo_Comun!$H$12:$H$102)), ROW()-1)), "" ) ->  | D89: =IF($B89, INDIRECT("Fondo_Comun!D" & SMALL(IF( Fondo_Comun!$H$12:$H$102 = "", "", ROW(Fondo_Comun!$H$12:$H$102)), ROW()-1)), "" ) ->  | E89: =IF($B89, INDIRECT("Fondo_Comun!H" & SMALL(IF( Fondo_Comun!$H$12:$H$102 = "", "", ROW(Fondo_Comun!$H$12:$H$102)), ROW()-1)), "" ) ->  | F89: =IF( B89, SUM($E$2:E89), "" ) -> 
B90: =COUNTIF(Fondo_Comun!$H$12:$H$102, ">0") >= ROW() - 1 -> FALSE | C90: =IF($B90, INDIRECT("Fondo_Comun!C" & SMALL(IF( Fondo_Comun!$H$12:$H$102 = "", "", ROW(Fondo_Comun!$H$12:$H$102)), ROW()-1)), "" ) ->  | D90: =IF($B90, INDIRECT("Fondo_Comun!D" & SMALL(IF( Fondo_Comun!$H$12:$H$102 = "", "", ROW(Fondo_Comun!$H$12:$H$102)), ROW()-1)), "" ) ->  | E90: =IF($B90, INDIRECT("Fondo_Comun!H" & SMALL(IF( Fondo_Comun!$H$12:$H$102 = "", "", ROW(Fondo_Comun!$H$12:$H$102)), ROW()-1)), "" ) ->  | F90: =IF( B90, SUM($E$2:E90), "" ) -> 
B91: =COUNTIF(Fondo_Comun!$H$12:$H$102, ">0") >= ROW() - 1 -> FALSE | C91: =IF($B91, INDIRECT("Fondo_Comun!C" & SMALL(IF( Fondo_Comun!$H$12:$H$102 = "", "", ROW(Fondo_Comun!$H$12:$H$102)), ROW()-1)), "" ) ->  | D91: =IF($B91, INDIRECT("Fondo_Comun!D" & SMALL(IF( Fondo_Comun!$H$12:$H$102 = "", "", ROW(Fondo_Comun!$H$12:$H$102)), ROW()-1)), "" ) ->  | E91: =IF($B91, INDIRECT("Fondo_Comun!H" & SMALL(IF( Fondo_Comun!$H$12:$H$102 = "", "", ROW(Fondo_Comun!$H$12:$H$102)), ROW()-1)), "" ) ->  | F91: =IF( B91, SUM($E$2:E91), "" ) -> 
B92: =COUNTIF(Fondo_Comun!$H$12:$H$102, ">0") >= ROW() - 1 -> FALSE | C92: =IF($B92, INDIRECT("Fondo_Comun!C" & SMALL(IF( Fondo_Comun!$H$12:$H$102 = "", "", ROW(Fondo_Comun!$H$12:$H$102)), ROW()-1)), "" ) ->  | D92: =IF($B92, INDIRECT("Fondo_Comun!D" & SMALL(IF( Fondo_Comun!$H$12:$H$102 = "", "", ROW(Fondo_Comun!$H$12:$H$102)), ROW()-1)), "" ) ->  | E92: =IF($B92, INDIRECT("Fondo_Comun!H" & SMALL(IF( Fondo_Comun!$H$12:$H$102 = "", "", ROW(Fondo_Comun!$H$12:$H$102)), ROW()-1)), "" ) ->  | F92: =IF( B92, SUM($E$2:E92), "" ) -> 
B93: =COUNTIF(Fondo_Comun!$H$12:$H$102, ">0") >= ROW() - 1 -> FALSE | C93: =IF($B93, INDIRECT("Fondo_Comun!C" & SMALL(IF( Fondo_Comun!$H$12:$H$102 = "", "", ROW(Fondo_Comun!$H$12:$H$102)), ROW()-1)), "" ) ->  | D93: =IF($B93, INDIRECT("Fondo_Comun!D" & SMALL(IF( Fondo_Comun!$H$12:$H$102 = "", "", ROW(Fondo_Comun!$H$12:$H$102)), ROW()-1)), "" ) ->  | E93: =IF($B93, INDIRECT("Fondo_Comun!H" & SMALL(IF( Fondo_Comun!$H$12:$H$102 = "", "", ROW(Fondo_Comun!$H$12:$H$102)), ROW()-1)), "" ) ->  | F93: =IF( B93, SUM($E$2:E93), "" ) -> 
B94: =COUNTIF(Fondo_Comun!$H$12:$H$102, ">0") >= ROW() - 1 -> FALSE | C94: =IF($B94, INDIRECT("Fondo_Comun!C" & SMALL(IF( Fondo_Comun!$H$12:$H$102 = "", "", ROW(Fondo_Comun!$H$12:$H$102)), ROW()-1)), "" ) ->  | D94: =IF($B94, INDIRECT("Fondo_Comun!D" & SMALL(IF( Fondo_Comun!$H$12:$H$102 = "", "", ROW(Fondo_Comun!$H$12:$H$102)), ROW()-1)), "" ) ->  | E94: =IF($B94, INDIRECT("Fondo_Comun!H" & SMALL(IF( Fondo_Comun!$H$12:$H$102 = "", "", ROW(Fondo_Comun!$H$12:$H$102)), ROW()-1)), "" ) ->  | F94: =IF( B94, SUM($E$2:E94), "" ) -> 
B95: =COUNTIF(Fondo_Comun!$H$12:$H$102, ">0") >= ROW() - 1 -> FALSE | C95: =IF($B95, INDIRECT("Fondo_Comun!C" & SMALL(IF( Fondo_Comun!$H$12:$H$102 = "", "", ROW(Fondo_Comun!$H$12:$H$102)), ROW()-1)), "" ) ->  | D95: =IF($B95, INDIRECT("Fondo_Comun!D" & SMALL(IF( Fondo_Comun!$H$12:$H$102 = "", "", ROW(Fondo_Comun!$H$12:$H$102)), ROW()-1)), "" ) ->  | E95: =IF($B95, INDIRECT("Fondo_Comun!H" & SMALL(IF( Fondo_Comun!$H$12:$H$102 = "", "", ROW(Fondo_Comun!$H$12:$H$102)), ROW()-1)), "" ) ->  | F95: =IF( B95, SUM($E$2:E95), "" ) -> 
B96: =COUNTIF(Fondo_Comun!$H$12:$H$102, ">0") >= ROW() - 1 -> FALSE | C96: =IF($B96, INDIRECT("Fondo_Comun!C" & SMALL(IF( Fondo_Comun!$H$12:$H$102 = "", "", ROW(Fondo_Comun!$H$12:$H$102)), ROW()-1)), "" ) ->  | D96: =IF($B96, INDIRECT("Fondo_Comun!D" & SMALL(IF( Fondo_Comun!$H$12:$H$102 = "", "", ROW(Fondo_Comun!$H$12:$H$102)), ROW()-1)), "" ) ->  | E96: =IF($B96, INDIRECT("Fondo_Comun!H" & SMALL(IF( Fondo_Comun!$H$12:$H$102 = "", "", ROW(Fondo_Comun!$H$12:$H$102)), ROW()-1)), "" ) ->  | F96: =IF( B96, SUM($E$2:E96), "" ) -> 
B97: =COUNTIF(Fondo_Comun!$H$12:$H$102, ">0") >= ROW() - 1 -> FALSE | C97: =IF($B97, INDIRECT("Fondo_Comun!C" & SMALL(IF( Fondo_Comun!$H$12:$H$102 = "", "", ROW(Fondo_Comun!$H$12:$H$102)), ROW()-1)), "" ) ->  | D97: =IF($B97, INDIRECT("Fondo_Comun!D" & SMALL(IF( Fondo_Comun!$H$12:$H$102 = "", "", ROW(Fondo_Comun!$H$12:$H$102)), ROW()-1)), "" ) ->  | E97: =IF($B97, INDIRECT("Fondo_Comun!H" & SMALL(IF( Fondo_Comun!$H$12:$H$102 = "", "", ROW(Fondo_Comun!$H$12:$H$102)), ROW()-1)), "" ) ->  | F97: =IF( B97, SUM($E$2:E97), "" ) -> 
B98: =COUNTIF(Fondo_Comun!$H$12:$H$102, ">0") >= ROW() - 1 -> FALSE | C98: =IF($B98, INDIRECT("Fondo_Comun!C" & SMALL(IF( Fondo_Comun!$H$12:$H$102 = "", "", ROW(Fondo_Comun!$H$12:$H$102)), ROW()-1)), "" ) ->  | D98: =IF($B98, INDIRECT("Fondo_Comun!D" & SMALL(IF( Fondo_Comun!$H$12:$H$102 = "", "", ROW(Fondo_Comun!$H$12:$H$102)), ROW()-1)), "" ) ->  | E98: =IF($B98, INDIRECT("Fondo_Comun!H" & SMALL(IF( Fondo_Comun!$H$12:$H$102 = "", "", ROW(Fondo_Comun!$H$12:$H$102)), ROW()-1)), "" ) ->  | F98: =IF( B98, SUM($E$2:E98), "" ) -> 
B99: =COUNTIF(Fondo_Comun!$H$12:$H$102, ">0") >= ROW() - 1 -> FALSE | C99: =IF($B99, INDIRECT("Fondo_Comun!C" & SMALL(IF( Fondo_Comun!$H$12:$H$102 = "", "", ROW(Fondo_Comun!$H$12:$H$102)), ROW()-1)), "" ) ->  | D99: =IF($B99, INDIRECT("Fondo_Comun!D" & SMALL(IF( Fondo_Comun!$H$12:$H$102 = "", "", ROW(Fondo_Comun!$H$12:$H$102)), ROW()-1)), "" ) ->  | E99: =IF($B99, INDIRECT("Fondo_Comun!H" & SMALL(IF( Fondo_Comun!$H$12:$H$102 = "", "", ROW(Fondo_Comun!$H$12:$H$102)), ROW()-1)), "" ) ->  | F99: =IF( B99, SUM($E$2:E99), "" ) -> 
B100: =COUNTIF(Fondo_Comun!$H$12:$H$102, ">0") >= ROW() - 1 -> FALSE | C100: =IF($B100, INDIRECT("Fondo_Comun!C" & SMALL(IF( Fondo_Comun!$H$12:$H$102 = "", "", ROW(Fondo_Comun!$H$12:$H$102)), ROW()-1)), "" ) ->  | D100: =IF($B100, INDIRECT("Fondo_Comun!D" & SMALL(IF( Fondo_Comun!$H$12:$H$102 = "", "", ROW(Fondo_Comun!$H$12:$H$102)), ROW()-1)), "" ) ->  | E100: =IF($B100, INDIRECT("Fondo_Comun!H" & SMALL(IF( Fondo_Comun!$H$12:$H$102 = "", "", ROW(Fondo_Comun!$H$12:$H$102)), ROW()-1)), "" ) ->  | F100: =IF( B100, SUM($E$2:E100), "" ) -> 
B101: =COUNTIF(Fondo_Comun!$H$12:$H$102, ">0") >= ROW() - 1 -> FALSE | C101: =IF($B101, INDIRECT("Fondo_Comun!C" & SMALL(IF( Fondo_Comun!$H$12:$H$102 = "", "", ROW(Fondo_Comun!$H$12:$H$102)), ROW()-1)), "" ) ->  | D101: =IF($B101, INDIRECT("Fondo_Comun!D" & SMALL(IF( Fondo_Comun!$H$12:$H$102 = "", "", ROW(Fondo_Comun!$H$12:$H$102)), ROW()-1)), "" ) ->  | E101: =IF($B101, INDIRECT("Fondo_Comun!H" & SMALL(IF( Fondo_Comun!$H$12:$H$102 = "", "", ROW(Fondo_Comun!$H$12:$H$102)), ROW()-1)), "" ) ->  | F101: =IF( B101, SUM($E$2:E101), "" ) -> 
B102: =COUNTIF(Fondo_Comun!$H$12:$H$102, ">0") >= ROW() - 1 -> FALSE | C102: =IF($B102, INDIRECT("Fondo_Comun!C" & SMALL(IF( Fondo_Comun!$H$12:$H$102 = "", "", ROW(Fondo_Comun!$H$12:$H$102)), ROW()-1)), "" ) ->  | D102: =IF($B102, INDIRECT("Fondo_Comun!D" & SMALL(IF( Fondo_Comun!$H$12:$H$102 = "", "", ROW(Fondo_Comun!$H$12:$H$102)), ROW()-1)), "" ) ->  | E102: =IF($B102, INDIRECT("Fondo_Comun!H" & SMALL(IF( Fondo_Comun!$H$12:$H$102 = "", "", ROW(Fondo_Comun!$H$12:$H$102)), ROW()-1)), "" ) ->  | F102: =IF( B102, SUM($E$2:E102), "" ) -> 
B103: =COUNTIF(Fondo_Comun!$H$12:$H$102, ">0") >= ROW() - 1 -> FALSE | C103: =IF($B103, INDIRECT("Fondo_Comun!C" & SMALL(IF( Fondo_Comun!$H$12:$H$102 = "", "", ROW(Fondo_Comun!$H$12:$H$102)), ROW()-1)), "" ) ->  | D103: =IF($B103, INDIRECT("Fondo_Comun!D" & SMALL(IF( Fondo_Comun!$H$12:$H$102 = "", "", ROW(Fondo_Comun!$H$12:$H$102)), ROW()-1)), "" ) ->  | E103: =IF($B103, INDIRECT("Fondo_Comun!H" & SMALL(IF( Fondo_Comun!$H$12:$H$102 = "", "", ROW(Fondo_Comun!$H$12:$H$102)), ROW()-1)), "" ) ->  | F103: =IF( B103, SUM($E$2:E103), "" ) -> 
B104: =COUNTIF(Fondo_Comun!$H$12:$H$102, ">0") >= ROW() - 1 -> FALSE | C104: =IF($B104, INDIRECT("Fondo_Comun!C" & SMALL(IF( Fondo_Comun!$H$12:$H$102 = "", "", ROW(Fondo_Comun!$H$12:$H$102)), ROW()-1)), "" ) ->  | D104: =IF($B104, INDIRECT("Fondo_Comun!D" & SMALL(IF( Fondo_Comun!$H$12:$H$102 = "", "", ROW(Fondo_Comun!$H$12:$H$102)), ROW()-1)), "" ) ->  | E104: =IF($B104, INDIRECT("Fondo_Comun!H" & SMALL(IF( Fondo_Comun!$H$12:$H$102 = "", "", ROW(Fondo_Comun!$H$12:$H$102)), ROW()-1)), "" ) ->  | F104: =IF( B104, SUM($E$2:E104), "" ) -> 
B105: =COUNTIF(Fondo_Comun!$H$12:$H$102, ">0") >= ROW() - 1 -> FALSE | C105: =IF($B105, INDIRECT("Fondo_Comun!C" & SMALL(IF( Fondo_Comun!$H$12:$H$102 = "", "", ROW(Fondo_Comun!$H$12:$H$102)), ROW()-1)), "" ) ->  | D105: =IF($B105, INDIRECT("Fondo_Comun!D" & SMALL(IF( Fondo_Comun!$H$12:$H$102 = "", "", ROW(Fondo_Comun!$H$12:$H$102)), ROW()-1)), "" ) ->  | E105: =IF($B105, INDIRECT("Fondo_Comun!H" & SMALL(IF( Fondo_Comun!$H$12:$H$102 = "", "", ROW(Fondo_Comun!$H$12:$H$102)), ROW()-1)), "" ) ->  | F105: =IF( B105, SUM($E$2:E105), "" ) -> 
B106: =COUNTIF(Fondo_Comun!$H$12:$H$102, ">0") >= ROW() - 1 -> FALSE | C106: =IF($B106, INDIRECT("Fondo_Comun!C" & SMALL(IF( Fondo_Comun!$H$12:$H$102 = "", "", ROW(Fondo_Comun!$H$12:$H$102)), ROW()-1)), "" ) ->  | D106: =IF($B106, INDIRECT("Fondo_Comun!D" & SMALL(IF( Fondo_Comun!$H$12:$H$102 = "", "", ROW(Fondo_Comun!$H$12:$H$102)), ROW()-1)), "" ) ->  | E106: =IF($B106, INDIRECT("Fondo_Comun!H" & SMALL(IF( Fondo_Comun!$H$12:$H$102 = "", "", ROW(Fondo_Comun!$H$12:$H$102)), ROW()-1)), "" ) ->  | F106: =IF( B106, SUM($E$2:E106), "" ) -> 
B107: =COUNTIF(Fondo_Comun!$H$12:$H$102, ">0") >= ROW() - 1 -> FALSE | C107: =IF($B107, INDIRECT("Fondo_Comun!C" & SMALL(IF( Fondo_Comun!$H$12:$H$102 = "", "", ROW(Fondo_Comun!$H$12:$H$102)), ROW()-1)), "" ) ->  | D107: =IF($B107, INDIRECT("Fondo_Comun!D" & SMALL(IF( Fondo_Comun!$H$12:$H$102 = "", "", ROW(Fondo_Comun!$H$12:$H$102)), ROW()-1)), "" ) ->  | E107: =IF($B107, INDIRECT("Fondo_Comun!H" & SMALL(IF( Fondo_Comun!$H$12:$H$102 = "", "", ROW(Fondo_Comun!$H$12:$H$102)), ROW()-1)), "" ) ->  | F107: =IF( B107, SUM($E$2:E107), "" ) -> 
B108: =COUNTIF(Fondo_Comun!$H$12:$H$102, ">0") >= ROW() - 1 -> FALSE | C108: =IF($B108, INDIRECT("Fondo_Comun!C" & SMALL(IF( Fondo_Comun!$H$12:$H$102 = "", "", ROW(Fondo_Comun!$H$12:$H$102)), ROW()-1)), "" ) ->  | D108: =IF($B108, INDIRECT("Fondo_Comun!D" & SMALL(IF( Fondo_Comun!$H$12:$H$102 = "", "", ROW(Fondo_Comun!$H$12:$H$102)), ROW()-1)), "" ) ->  | E108: =IF($B108, INDIRECT("Fondo_Comun!H" & SMALL(IF( Fondo_Comun!$H$12:$H$102 = "", "", ROW(Fondo_Comun!$H$12:$H$102)), ROW()-1)), "" ) ->  | F108: =IF( B108, SUM($E$2:E108), "" ) -> 
B109: =COUNTIF(Fondo_Comun!$H$12:$H$102, ">0") >= ROW() - 1 -> FALSE | C109: =IF($B109, INDIRECT("Fondo_Comun!C" & SMALL(IF( Fondo_Comun!$H$12:$H$102 = "", "", ROW(Fondo_Comun!$H$12:$H$102)), ROW()-1)), "" ) ->  | D109: =IF($B109, INDIRECT("Fondo_Comun!D" & SMALL(IF( Fondo_Comun!$H$12:$H$102 = "", "", ROW(Fondo_Comun!$H$12:$H$102)), ROW()-1)), "" ) ->  | E109: =IF($B109, INDIRECT("Fondo_Comun!H" & SMALL(IF( Fondo_Comun!$H$12:$H$102 = "", "", ROW(Fondo_Comun!$H$12:$H$102)), ROW()-1)), "" ) ->  | F109: =IF( B109, SUM($E$2:E109), "" ) -> 
B110: =COUNTIF(Fondo_Comun!$H$12:$H$102, ">0") >= ROW() - 1 -> FALSE | C110: =IF($B110, INDIRECT("Fondo_Comun!C" & SMALL(IF( Fondo_Comun!$H$12:$H$102 = "", "", ROW(Fondo_Comun!$H$12:$H$102)), ROW()-1)), "" ) ->  | D110: =IF($B110, INDIRECT("Fondo_Comun!D" & SMALL(IF( Fondo_Comun!$H$12:$H$102 = "", "", ROW(Fondo_Comun!$H$12:$H$102)), ROW()-1)), "" ) ->  | E110: =IF($B110, INDIRECT("Fondo_Comun!H" & SMALL(IF( Fondo_Comun!$H$12:$H$102 = "", "", ROW(Fondo_Comun!$H$12:$H$102)), ROW()-1)), "" ) ->  | F110: =IF( B110, SUM($E$2:E110), "" ) -> 
B111: =COUNTIF(Fondo_Comun!$H$12:$H$102, ">0") >= ROW() - 1 -> FALSE | C111: =IF($B111, INDIRECT("Fondo_Comun!C" & SMALL(IF( Fondo_Comun!$H$12:$H$102 = "", "", ROW(Fondo_Comun!$H$12:$H$102)), ROW()-1)), "" ) ->  | D111: =IF($B111, INDIRECT("Fondo_Comun!D" & SMALL(IF( Fondo_Comun!$H$12:$H$102 = "", "", ROW(Fondo_Comun!$H$12:$H$102)), ROW()-1)), "" ) ->  | E111: =IF($B111, INDIRECT("Fondo_Comun!H" & SMALL(IF( Fondo_Comun!$H$12:$H$102 = "", "", ROW(Fondo_Comun!$H$12:$H$102)), ROW()-1)), "" ) ->  | F111: =IF( B111, SUM($E$2:E111), "" ) -> 
B112: =COUNTIF(Fondo_Comun!$H$12:$H$102, ">0") >= ROW() - 1 -> FALSE | C112: =IF($B112, INDIRECT("Fondo_Comun!C" & SMALL(IF( Fondo_Comun!$H$12:$H$102 = "", "", ROW(Fondo_Comun!$H$12:$H$102)), ROW()-1)), "" ) ->  | D112: =IF($B112, INDIRECT("Fondo_Comun!D" & SMALL(IF( Fondo_Comun!$H$12:$H$102 = "", "", ROW(Fondo_Comun!$H$12:$H$102)), ROW()-1)), "" ) ->  | E112: =IF($B112, INDIRECT("Fondo_Comun!H" & SMALL(IF( Fondo_Comun!$H$12:$H$102 = "", "", ROW(Fondo_Comun!$H$12:$H$102)), ROW()-1)), "" ) ->  | F112: =IF( B112, SUM($E$2:E112), "" ) -> 
B113: =COUNTIF(Fondo_Comun!$H$12:$H$102, ">0") >= ROW() - 1 -> FALSE | C113: =IF($B113, INDIRECT("Fondo_Comun!C" & SMALL(IF( Fondo_Comun!$H$12:$H$102 = "", "", ROW(Fondo_Comun!$H$12:$H$102)), ROW()-1)), "" ) ->  | D113: =IF($B113, INDIRECT("Fondo_Comun!D" & SMALL(IF( Fondo_Comun!$H$12:$H$102 = "", "", ROW(Fondo_Comun!$H$12:$H$102)), ROW()-1)), "" ) ->  | E113: =IF($B113, INDIRECT("Fondo_Comun!H" & SMALL(IF( Fondo_Comun!$H$12:$H$102 = "", "", ROW(Fondo_Comun!$H$12:$H$102)), ROW()-1)), "" ) ->  | F113: =IF( B113, SUM($E$2:E113), "" ) -> 
B114: =COUNTIF(Fondo_Comun!$H$12:$H$102, ">0") >= ROW() - 1 -> FALSE | C114: =IF($B114, INDIRECT("Fondo_Comun!C" & SMALL(IF( Fondo_Comun!$H$12:$H$102 = "", "", ROW(Fondo_Comun!$H$12:$H$102)), ROW()-1)), "" ) ->  | D114: =IF($B114, INDIRECT("Fondo_Comun!D" & SMALL(IF( Fondo_Comun!$H$12:$H$102 = "", "", ROW(Fondo_Comun!$H$12:$H$102)), ROW()-1)), "" ) ->  | E114: =IF($B114, INDIRECT("Fondo_Comun!H" & SMALL(IF( Fondo_Comun!$H$12:$H$102 = "", "", ROW(Fondo_Comun!$H$12:$H$102)), ROW()-1)), "" ) ->  | F114: =IF( B114, SUM($E$2:E114), "" ) -> 
B115: =COUNTIF(Fondo_Comun!$H$12:$H$102, ">0") >= ROW() - 1 -> FALSE | C115: =IF($B115, INDIRECT("Fondo_Comun!C" & SMALL(IF( Fondo_Comun!$H$12:$H$102 = "", "", ROW(Fondo_Comun!$H$12:$H$102)), ROW()-1)), "" ) ->  | D115: =IF($B115, INDIRECT("Fondo_Comun!D" & SMALL(IF( Fondo_Comun!$H$12:$H$102 = "", "", ROW(Fondo_Comun!$H$12:$H$102)), ROW()-1)), "" ) ->  | E115: =IF($B115, INDIRECT("Fondo_Comun!H" & SMALL(IF( Fondo_Comun!$H$12:$H$102 = "", "", ROW(Fondo_Comun!$H$12:$H$102)), ROW()-1)), "" ) ->  | F115: =IF( B115, SUM($E$2:E115), "" ) -> 
B116: =COUNTIF(Fondo_Comun!$H$12:$H$102, ">0") >= ROW() - 1 -> FALSE | C116: =IF($B116, INDIRECT("Fondo_Comun!C" & SMALL(IF( Fondo_Comun!$H$12:$H$102 = "", "", ROW(Fondo_Comun!$H$12:$H$102)), ROW()-1)), "" ) ->  | D116: =IF($B116, INDIRECT("Fondo_Comun!D" & SMALL(IF( Fondo_Comun!$H$12:$H$102 = "", "", ROW(Fondo_Comun!$H$12:$H$102)), ROW()-1)), "" ) ->  | E116: =IF($B116, INDIRECT("Fondo_Comun!H" & SMALL(IF( Fondo_Comun!$H$12:$H$102 = "", "", ROW(Fondo_Comun!$H$12:$H$102)), ROW()-1)), "" ) ->  | F116: =IF( B116, SUM($E$2:E116), "" ) -> 
B117: =COUNTIF(Fondo_Comun!$H$12:$H$102, ">0") >= ROW() - 1 -> FALSE | C117: =IF($B117, INDIRECT("Fondo_Comun!C" & SMALL(IF( Fondo_Comun!$H$12:$H$102 = "", "", ROW(Fondo_Comun!$H$12:$H$102)), ROW()-1)), "" ) ->  | D117: =IF($B117, INDIRECT("Fondo_Comun!D" & SMALL(IF( Fondo_Comun!$H$12:$H$102 = "", "", ROW(Fondo_Comun!$H$12:$H$102)), ROW()-1)), "" ) ->  | E117: =IF($B117, INDIRECT("Fondo_Comun!H" & SMALL(IF( Fondo_Comun!$H$12:$H$102 = "", "", ROW(Fondo_Comun!$H$12:$H$102)), ROW()-1)), "" ) ->  | F117: =IF( B117, SUM($E$2:E117), "" ) -> 
B118: =COUNTIF(Fondo_Comun!$H$12:$H$102, ">0") >= ROW() - 1 -> FALSE | C118: =IF($B118, INDIRECT("Fondo_Comun!C" & SMALL(IF( Fondo_Comun!$H$12:$H$102 = "", "", ROW(Fondo_Comun!$H$12:$H$102)), ROW()-1)), "" ) ->  | D118: =IF($B118, INDIRECT("Fondo_Comun!D" & SMALL(IF( Fondo_Comun!$H$12:$H$102 = "", "", ROW(Fondo_Comun!$H$12:$H$102)), ROW()-1)), "" ) ->  | E118: =IF($B118, INDIRECT("Fondo_Comun!H" & SMALL(IF( Fondo_Comun!$H$12:$H$102 = "", "", ROW(Fondo_Comun!$H$12:$H$102)), ROW()-1)), "" ) ->  | F118: =IF( B118, SUM($E$2:E118), "" ) -> 
B119: =COUNTIF(Fondo_Comun!$H$12:$H$102, ">0") >= ROW() - 1 -> FALSE | C119: =IF($B119, INDIRECT("Fondo_Comun!C" & SMALL(IF( Fondo_Comun!$H$12:$H$102 = "", "", ROW(Fondo_Comun!$H$12:$H$102)), ROW()-1)), "" ) ->  | D119: =IF($B119, INDIRECT("Fondo_Comun!D" & SMALL(IF( Fondo_Comun!$H$12:$H$102 = "", "", ROW(Fondo_Comun!$H$12:$H$102)), ROW()-1)), "" ) ->  | E119: =IF($B119, INDIRECT("Fondo_Comun!H" & SMALL(IF( Fondo_Comun!$H$12:$H$102 = "", "", ROW(Fondo_Comun!$H$12:$H$102)), ROW()-1)), "" ) ->  | F119: =IF( B119, SUM($E$2:E119), "" ) -> 
B120: =COUNTIF(Fondo_Comun!$H$12:$H$102, ">0") >= ROW() - 1 -> FALSE | C120: =IF($B120, INDIRECT("Fondo_Comun!C" & SMALL(IF( Fondo_Comun!$H$12:$H$102 = "", "", ROW(Fondo_Comun!$H$12:$H$102)), ROW()-1)), "" ) ->  | D120: =IF($B120, INDIRECT("Fondo_Comun!D" & SMALL(IF( Fondo_Comun!$H$12:$H$102 = "", "", ROW(Fondo_Comun!$H$12:$H$102)), ROW()-1)), "" ) ->  | E120: =IF($B120, INDIRECT("Fondo_Comun!H" & SMALL(IF( Fondo_Comun!$H$12:$H$102 = "", "", ROW(Fondo_Comun!$H$12:$H$102)), ROW()-1)), "" ) ->  | F120: =IF( B120, SUM($E$2:E120), "" ) -> 
B121: =COUNTIF(Fondo_Comun!$H$12:$H$102, ">0") >= ROW() - 1 -> FALSE | C121: =IF($B121, INDIRECT("Fondo_Comun!C" & SMALL(IF( Fondo_Comun!$H$12:$H$102 = "", "", ROW(Fondo_Comun!$H$12:$H$102)), ROW()-1)), "" ) ->  | D121: =IF($B121, INDIRECT("Fondo_Comun!D" & SMALL(IF( Fondo_Comun!$H$12:$H$102 = "", "", ROW(Fondo_Comun!$H$12:$H$102)), ROW()-1)), "" ) ->  | E121: =IF($B121, INDIRECT("Fondo_Comun!H" & SMALL(IF( Fondo_Comun!$H$12:$H$102 = "", "", ROW(Fondo_Comun!$H$12:$H$102)), ROW()-1)), "" ) ->  | F121: =IF( B121, SUM($E$2:E121), "" ) -> 
B122: =COUNTIF(Fondo_Comun!$H$12:$H$102, ">0") >= ROW() - 1 -> FALSE | C122: =IF($B122, INDIRECT("Fondo_Comun!C" & SMALL(IF( Fondo_Comun!$H$12:$H$102 = "", "", ROW(Fondo_Comun!$H$12:$H$102)), ROW()-1)), "" ) ->  | D122: =IF($B122, INDIRECT("Fondo_Comun!D" & SMALL(IF( Fondo_Comun!$H$12:$H$102 = "", "", ROW(Fondo_Comun!$H$12:$H$102)), ROW()-1)), "" ) ->  | E122: =IF($B122, INDIRECT("Fondo_Comun!H" & SMALL(IF( Fondo_Comun!$H$12:$H$102 = "", "", ROW(Fondo_Comun!$H$12:$H$102)), ROW()-1)), "" ) ->  | F122: =IF( B122, SUM($E$2:E122), "" ) -> 
B123: =COUNTIF(Fondo_Comun!$H$12:$H$102, ">0") >= ROW() - 1 -> FALSE | C123: =IF($B123, INDIRECT("Fondo_Comun!C" & SMALL(IF( Fondo_Comun!$H$12:$H$102 = "", "", ROW(Fondo_Comun!$H$12:$H$102)), ROW()-1)), "" ) ->  | D123: =IF($B123, INDIRECT("Fondo_Comun!D" & SMALL(IF( Fondo_Comun!$H$12:$H$102 = "", "", ROW(Fondo_Comun!$H$12:$H$102)), ROW()-1)), "" ) ->  | E123: =IF($B123, INDIRECT("Fondo_Comun!H" & SMALL(IF( Fondo_Comun!$H$12:$H$102 = "", "", ROW(Fondo_Comun!$H$12:$H$102)), ROW()-1)), "" ) ->  | F123: =IF( B123, SUM($E$2:E123), "" ) -> 
B124: =COUNTIF(Fondo_Comun!$H$12:$H$102, ">0") >= ROW() - 1 -> FALSE | C124: =IF($B124, INDIRECT("Fondo_Comun!C" & SMALL(IF( Fondo_Comun!$H$12:$H$102 = "", "", ROW(Fondo_Comun!$H$12:$H$102)), ROW()-1)), "" ) ->  | D124: =IF($B124, INDIRECT("Fondo_Comun!D" & SMALL(IF( Fondo_Comun!$H$12:$H$102 = "", "", ROW(Fondo_Comun!$H$12:$H$102)), ROW()-1)), "" ) ->  | E124: =IF($B124, INDIRECT("Fondo_Comun!H" & SMALL(IF( Fondo_Comun!$H$12:$H$102 = "", "", ROW(Fondo_Comun!$H$12:$H$102)), ROW()-1)), "" ) ->  | F124: =IF( B124, SUM($E$2:E124), "" ) -> 
B125: =COUNTIF(Fondo_Comun!$H$12:$H$102, ">0") >= ROW() - 1 -> FALSE | C125: =IF($B125, INDIRECT("Fondo_Comun!C" & SMALL(IF( Fondo_Comun!$H$12:$H$102 = "", "", ROW(Fondo_Comun!$H$12:$H$102)), ROW()-1)), "" ) ->  | D125: =IF($B125, INDIRECT("Fondo_Comun!D" & SMALL(IF( Fondo_Comun!$H$12:$H$102 = "", "", ROW(Fondo_Comun!$H$12:$H$102)), ROW()-1)), "" ) ->  | E125: =IF($B125, INDIRECT("Fondo_Comun!H" & SMALL(IF( Fondo_Comun!$H$12:$H$102 = "", "", ROW(Fondo_Comun!$H$12:$H$102)), ROW()-1)), "" ) ->  | F125: =IF( B125, SUM($E$2:E125), "" ) -> 
B126: =COUNTIF(Fondo_Comun!$H$12:$H$102, ">0") >= ROW() - 1 -> FALSE | C126: =IF($B126, INDIRECT("Fondo_Comun!C" & SMALL(IF( Fondo_Comun!$H$12:$H$102 = "", "", ROW(Fondo_Comun!$H$12:$H$102)), ROW()-1)), "" ) ->  | D126: =IF($B126, INDIRECT("Fondo_Comun!D" & SMALL(IF( Fondo_Comun!$H$12:$H$102 = "", "", ROW(Fondo_Comun!$H$12:$H$102)), ROW()-1)), "" ) ->  | E126: =IF($B126, INDIRECT("Fondo_Comun!H" & SMALL(IF( Fondo_Comun!$H$12:$H$102 = "", "", ROW(Fondo_Comun!$H$12:$H$102)), ROW()-1)), "" ) ->  | F126: =IF( B126, SUM($E$2:E126), "" ) -> 
B127: =COUNTIF(Fondo_Comun!$H$12:$H$102, ">0") >= ROW() - 1 -> FALSE | C127: =IF($B127, INDIRECT("Fondo_Comun!C" & SMALL(IF( Fondo_Comun!$H$12:$H$102 = "", "", ROW(Fondo_Comun!$H$12:$H$102)), ROW()-1)), "" ) ->  | D127: =IF($B127, INDIRECT("Fondo_Comun!D" & SMALL(IF( Fondo_Comun!$H$12:$H$102 = "", "", ROW(Fondo_Comun!$H$12:$H$102)), ROW()-1)), "" ) ->  | E127: =IF($B127, INDIRECT("Fondo_Comun!H" & SMALL(IF( Fondo_Comun!$H$12:$H$102 = "", "", ROW(Fondo_Comun!$H$12:$H$102)), ROW()-1)), "" ) ->  | F127: =IF( B127, SUM($E$2:E127), "" ) -> 
B128: =COUNTIF(Fondo_Comun!$H$12:$H$102, ">0") >= ROW() - 1 -> FALSE | C128: =IF($B128, INDIRECT("Fondo_Comun!C" & SMALL(IF( Fondo_Comun!$H$12:$H$102 = "", "", ROW(Fondo_Comun!$H$12:$H$102)), ROW()-1)), "" ) ->  | D128: =IF($B128, INDIRECT("Fondo_Comun!D" & SMALL(IF( Fondo_Comun!$H$12:$H$102 = "", "", ROW(Fondo_Comun!$H$12:$H$102)), ROW()-1)), "" ) ->  | E128: =IF($B128, INDIRECT("Fondo_Comun!H" & SMALL(IF( Fondo_Comun!$H$12:$H$102 = "", "", ROW(Fondo_Comun!$H$12:$H$102)), ROW()-1)), "" ) ->  | F128: =IF( B128, SUM($E$2:E128), "" ) -> 
B129: =COUNTIF(Fondo_Comun!$H$12:$H$102, ">0") >= ROW() - 1 -> FALSE | C129: =IF($B129, INDIRECT("Fondo_Comun!C" & SMALL(IF( Fondo_Comun!$H$12:$H$102 = "", "", ROW(Fondo_Comun!$H$12:$H$102)), ROW()-1)), "" ) ->  | D129: =IF($B129, INDIRECT("Fondo_Comun!D" & SMALL(IF( Fondo_Comun!$H$12:$H$102 = "", "", ROW(Fondo_Comun!$H$12:$H$102)), ROW()-1)), "" ) ->  | E129: =IF($B129, INDIRECT("Fondo_Comun!H" & SMALL(IF( Fondo_Comun!$H$12:$H$102 = "", "", ROW(Fondo_Comun!$H$12:$H$102)), ROW()-1)), "" ) ->  | F129: =IF( B129, SUM($E$2:E129), "" ) -> 
B130: =COUNTIF(Fondo_Comun!$H$12:$H$102, ">0") >= ROW() - 1 -> FALSE | C130: =IF($B130, INDIRECT("Fondo_Comun!C" & SMALL(IF( Fondo_Comun!$H$12:$H$102 = "", "", ROW(Fondo_Comun!$H$12:$H$102)), ROW()-1)), "" ) ->  | D130: =IF($B130, INDIRECT("Fondo_Comun!D" & SMALL(IF( Fondo_Comun!$H$12:$H$102 = "", "", ROW(Fondo_Comun!$H$12:$H$102)), ROW()-1)), "" ) ->  | E130: =IF($B130, INDIRECT("Fondo_Comun!H" & SMALL(IF( Fondo_Comun!$H$12:$H$102 = "", "", ROW(Fondo_Comun!$H$12:$H$102)), ROW()-1)), "" ) ->  | F130: =IF( B130, SUM($E$2:E130), "" ) -> 
B131: =COUNTIF(Fondo_Comun!$H$12:$H$102, ">0") >= ROW() - 1 -> FALSE | C131: =IF($B131, INDIRECT("Fondo_Comun!C" & SMALL(IF( Fondo_Comun!$H$12:$H$102 = "", "", ROW(Fondo_Comun!$H$12:$H$102)), ROW()-1)), "" ) ->  | D131: =IF($B131, INDIRECT("Fondo_Comun!D" & SMALL(IF( Fondo_Comun!$H$12:$H$102 = "", "", ROW(Fondo_Comun!$H$12:$H$102)), ROW()-1)), "" ) ->  | E131: =IF($B131, INDIRECT("Fondo_Comun!H" & SMALL(IF( Fondo_Comun!$H$12:$H$102 = "", "", ROW(Fondo_Comun!$H$12:$H$102)), ROW()-1)), "" ) ->  | F131: =IF( B131, SUM($E$2:E131), "" ) -> 
B132: =COUNTIF(Fondo_Comun!$H$12:$H$102, ">0") >= ROW() - 1 -> FALSE | C132: =IF($B132, INDIRECT("Fondo_Comun!C" & SMALL(IF( Fondo_Comun!$H$12:$H$102 = "", "", ROW(Fondo_Comun!$H$12:$H$102)), ROW()-1)), "" ) ->  | D132: =IF($B132, INDIRECT("Fondo_Comun!D" & SMALL(IF( Fondo_Comun!$H$12:$H$102 = "", "", ROW(Fondo_Comun!$H$12:$H$102)), ROW()-1)), "" ) ->  | E132: =IF($B132, INDIRECT("Fondo_Comun!H" & SMALL(IF( Fondo_Comun!$H$12:$H$102 = "", "", ROW(Fondo_Comun!$H$12:$H$102)), ROW()-1)), "" ) ->  | F132: =IF( B132, SUM($E$2:E132), "" ) -> 
B133: =COUNTIF(Fondo_Comun!$H$12:$H$102, ">0") >= ROW() - 1 -> FALSE | C133: =IF($B133, INDIRECT("Fondo_Comun!C" & SMALL(IF( Fondo_Comun!$H$12:$H$102 = "", "", ROW(Fondo_Comun!$H$12:$H$102)), ROW()-1)), "" ) ->  | D133: =IF($B133, INDIRECT("Fondo_Comun!D" & SMALL(IF( Fondo_Comun!$H$12:$H$102 = "", "", ROW(Fondo_Comun!$H$12:$H$102)), ROW()-1)), "" ) ->  | E133: =IF($B133, INDIRECT("Fondo_Comun!H" & SMALL(IF( Fondo_Comun!$H$12:$H$102 = "", "", ROW(Fondo_Comun!$H$12:$H$102)), ROW()-1)), "" ) ->  | F133: =IF( B133, SUM($E$2:E133), "" ) -> 
B134: =COUNTIF(Fondo_Comun!$H$12:$H$102, ">0") >= ROW() - 1 -> FALSE | C134: =IF($B134, INDIRECT("Fondo_Comun!C" & SMALL(IF( Fondo_Comun!$H$12:$H$102 = "", "", ROW(Fondo_Comun!$H$12:$H$102)), ROW()-1)), "" ) ->  | D134: =IF($B134, INDIRECT("Fondo_Comun!D" & SMALL(IF( Fondo_Comun!$H$12:$H$102 = "", "", ROW(Fondo_Comun!$H$12:$H$102)), ROW()-1)), "" ) ->  | E134: =IF($B134, INDIRECT("Fondo_Comun!H" & SMALL(IF( Fondo_Comun!$H$12:$H$102 = "", "", ROW(Fondo_Comun!$H$12:$H$102)), ROW()-1)), "" ) ->  | F134: =IF( B134, SUM($E$2:E134), "" ) -> 
B135: =COUNTIF(Fondo_Comun!$H$12:$H$102, ">0") >= ROW() - 1 -> FALSE | C135: =IF($B135, INDIRECT("Fondo_Comun!C" & SMALL(IF( Fondo_Comun!$H$12:$H$102 = "", "", ROW(Fondo_Comun!$H$12:$H$102)), ROW()-1)), "" ) ->  | D135: =IF($B135, INDIRECT("Fondo_Comun!D" & SMALL(IF( Fondo_Comun!$H$12:$H$102 = "", "", ROW(Fondo_Comun!$H$12:$H$102)), ROW()-1)), "" ) ->  | E135: =IF($B135, INDIRECT("Fondo_Comun!H" & SMALL(IF( Fondo_Comun!$H$12:$H$102 = "", "", ROW(Fondo_Comun!$H$12:$H$102)), ROW()-1)), "" ) ->  | F135: =IF( B135, SUM($E$2:E135), "" ) -> 
B136: =COUNTIF(Fondo_Comun!$H$12:$H$102, ">0") >= ROW() - 1 -> FALSE | C136: =IF($B136, INDIRECT("Fondo_Comun!C" & SMALL(IF( Fondo_Comun!$H$12:$H$102 = "", "", ROW(Fondo_Comun!$H$12:$H$102)), ROW()-1)), "" ) ->  | D136: =IF($B136, INDIRECT("Fondo_Comun!D" & SMALL(IF( Fondo_Comun!$H$12:$H$102 = "", "", ROW(Fondo_Comun!$H$12:$H$102)), ROW()-1)), "" ) ->  | E136: =IF($B136, INDIRECT("Fondo_Comun!H" & SMALL(IF( Fondo_Comun!$H$12:$H$102 = "", "", ROW(Fondo_Comun!$H$12:$H$102)), ROW()-1)), "" ) ->  | F136: =IF( B136, SUM($E$2:E136), "" ) -> 
B137: =COUNTIF(Fondo_Comun!$H$12:$H$102, ">0") >= ROW() - 1 -> FALSE | C137: =IF($B137, INDIRECT("Fondo_Comun!C" & SMALL(IF( Fondo_Comun!$H$12:$H$102 = "", "", ROW(Fondo_Comun!$H$12:$H$102)), ROW()-1)), "" ) ->  | D137: =IF($B137, INDIRECT("Fondo_Comun!D" & SMALL(IF( Fondo_Comun!$H$12:$H$102 = "", "", ROW(Fondo_Comun!$H$12:$H$102)), ROW()-1)), "" ) ->  | E137: =IF($B137, INDIRECT("Fondo_Comun!H" & SMALL(IF( Fondo_Comun!$H$12:$H$102 = "", "", ROW(Fondo_Comun!$H$12:$H$102)), ROW()-1)), "" ) ->  | F137: =IF( B137, SUM($E$2:E137), "" ) -> 
B138: =COUNTIF(Fondo_Comun!$H$12:$H$102, ">0") >= ROW() - 1 -> FALSE | C138: =IF($B138, INDIRECT("Fondo_Comun!C" & SMALL(IF( Fondo_Comun!$H$12:$H$102 = "", "", ROW(Fondo_Comun!$H$12:$H$102)), ROW()-1)), "" ) ->  | D138: =IF($B138, INDIRECT("Fondo_Comun!D" & SMALL(IF( Fondo_Comun!$H$12:$H$102 = "", "", ROW(Fondo_Comun!$H$12:$H$102)), ROW()-1)), "" ) ->  | E138: =IF($B138, INDIRECT("Fondo_Comun!H" & SMALL(IF( Fondo_Comun!$H$12:$H$102 = "", "", ROW(Fondo_Comun!$H$12:$H$102)), ROW()-1)), "" ) ->  | F138: =IF( B138, SUM($E$2:E138), "" ) -> 
B139: =COUNTIF(Fondo_Comun!$H$12:$H$102, ">0") >= ROW() - 1 -> FALSE | C139: =IF($B139, INDIRECT("Fondo_Comun!C" & SMALL(IF( Fondo_Comun!$H$12:$H$102 = "", "", ROW(Fondo_Comun!$H$12:$H$102)), ROW()-1)), "" ) ->  | D139: =IF($B139, INDIRECT("Fondo_Comun!D" & SMALL(IF( Fondo_Comun!$H$12:$H$102 = "", "", ROW(Fondo_Comun!$H$12:$H$102)), ROW()-1)), "" ) ->  | E139: =IF($B139, INDIRECT("Fondo_Comun!H" & SMALL(IF( Fondo_Comun!$H$12:$H$102 = "", "", ROW(Fondo_Comun!$H$12:$H$102)), ROW()-1)), "" ) ->  | F139: =IF( B139, SUM($E$2:E139), "" ) -> 
B140: =COUNTIF(Fondo_Comun!$H$12:$H$102, ">0") >= ROW() - 1 -> FALSE | C140: =IF($B140, INDIRECT("Fondo_Comun!C" & SMALL(IF( Fondo_Comun!$H$12:$H$102 = "", "", ROW(Fondo_Comun!$H$12:$H$102)), ROW()-1)), "" ) ->  | D140: =IF($B140, INDIRECT("Fondo_Comun!D" & SMALL(IF( Fondo_Comun!$H$12:$H$102 = "", "", ROW(Fondo_Comun!$H$12:$H$102)), ROW()-1)), "" ) ->  | E140: =IF($B140, INDIRECT("Fondo_Comun!H" & SMALL(IF( Fondo_Comun!$H$12:$H$102 = "", "", ROW(Fondo_Comun!$H$12:$H$102)), ROW()-1)), "" ) ->  | F140: =IF( B140, SUM($E$2:E140), "" ) -> 
B141: =COUNTIF(Fondo_Comun!$H$12:$H$102, ">0") >= ROW() - 1 -> FALSE | C141: =IF($B141, INDIRECT("Fondo_Comun!C" & SMALL(IF( Fondo_Comun!$H$12:$H$102 = "", "", ROW(Fondo_Comun!$H$12:$H$102)), ROW()-1)), "" ) ->  | D141: =IF($B141, INDIRECT("Fondo_Comun!D" & SMALL(IF( Fondo_Comun!$H$12:$H$102 = "", "", ROW(Fondo_Comun!$H$12:$H$102)), ROW()-1)), "" ) ->  | E141: =IF($B141, INDIRECT("Fondo_Comun!H" & SMALL(IF( Fondo_Comun!$H$12:$H$102 = "", "", ROW(Fondo_Comun!$H$12:$H$102)), ROW()-1)), "" ) ->  | F141: =IF( B141, SUM($E$2:E141), "" ) -> 
B142: =COUNTIF(Fondo_Comun!$H$12:$H$102, ">0") >= ROW() - 1 -> FALSE | C142: =IF($B142, INDIRECT("Fondo_Comun!C" & SMALL(IF( Fondo_Comun!$H$12:$H$102 = "", "", ROW(Fondo_Comun!$H$12:$H$102)), ROW()-1)), "" ) ->  | D142: =IF($B142, INDIRECT("Fondo_Comun!D" & SMALL(IF( Fondo_Comun!$H$12:$H$102 = "", "", ROW(Fondo_Comun!$H$12:$H$102)), ROW()-1)), "" ) ->  | E142: =IF($B142, INDIRECT("Fondo_Comun!H" & SMALL(IF( Fondo_Comun!$H$12:$H$102 = "", "", ROW(Fondo_Comun!$H$12:$H$102)), ROW()-1)), "" ) ->  | F142: =IF( B142, SUM($E$2:E142), "" ) -> 
B143: =COUNTIF(Fondo_Comun!$H$12:$H$102, ">0") >= ROW() - 1 -> FALSE | C143: =IF($B143, INDIRECT("Fondo_Comun!C" & SMALL(IF( Fondo_Comun!$H$12:$H$102 = "", "", ROW(Fondo_Comun!$H$12:$H$102)), ROW()-1)), "" ) ->  | D143: =IF($B143, INDIRECT("Fondo_Comun!D" & SMALL(IF( Fondo_Comun!$H$12:$H$102 = "", "", ROW(Fondo_Comun!$H$12:$H$102)), ROW()-1)), "" ) ->  | E143: =IF($B143, INDIRECT("Fondo_Comun!H" & SMALL(IF( Fondo_Comun!$H$12:$H$102 = "", "", ROW(Fondo_Comun!$H$12:$H$102)), ROW()-1)), "" ) ->  | F143: =IF( B143, SUM($E$2:E143), "" ) -> 
B144: =COUNTIF(Fondo_Comun!$H$12:$H$102, ">0") >= ROW() - 1 -> FALSE | C144: =IF($B144, INDIRECT("Fondo_Comun!C" & SMALL(IF( Fondo_Comun!$H$12:$H$102 = "", "", ROW(Fondo_Comun!$H$12:$H$102)), ROW()-1)), "" ) ->  | D144: =IF($B144, INDIRECT("Fondo_Comun!D" & SMALL(IF( Fondo_Comun!$H$12:$H$102 = "", "", ROW(Fondo_Comun!$H$12:$H$102)), ROW()-1)), "" ) ->  | E144: =IF($B144, INDIRECT("Fondo_Comun!H" & SMALL(IF( Fondo_Comun!$H$12:$H$102 = "", "", ROW(Fondo_Comun!$H$12:$H$102)), ROW()-1)), "" ) ->  | F144: =IF( B144, SUM($E$2:E144), "" ) -> 
B145: =COUNTIF(Fondo_Comun!$H$12:$H$102, ">0") >= ROW() - 1 -> FALSE | C145: =IF($B145, INDIRECT("Fondo_Comun!C" & SMALL(IF( Fondo_Comun!$H$12:$H$102 = "", "", ROW(Fondo_Comun!$H$12:$H$102)), ROW()-1)), "" ) ->  | D145: =IF($B145, INDIRECT("Fondo_Comun!D" & SMALL(IF( Fondo_Comun!$H$12:$H$102 = "", "", ROW(Fondo_Comun!$H$12:$H$102)), ROW()-1)), "" ) ->  | E145: =IF($B145, INDIRECT("Fondo_Comun!H" & SMALL(IF( Fondo_Comun!$H$12:$H$102 = "", "", ROW(Fondo_Comun!$H$12:$H$102)), ROW()-1)), "" ) ->  | F145: =IF( B145, SUM($E$2:E145), "" ) -> 
B146: =COUNTIF(Fondo_Comun!$H$12:$H$102, ">0") >= ROW() - 1 -> FALSE | C146: =IF($B146, INDIRECT("Fondo_Comun!C" & SMALL(IF( Fondo_Comun!$H$12:$H$102 = "", "", ROW(Fondo_Comun!$H$12:$H$102)), ROW()-1)), "" ) ->  | D146: =IF($B146, INDIRECT("Fondo_Comun!D" & SMALL(IF( Fondo_Comun!$H$12:$H$102 = "", "", ROW(Fondo_Comun!$H$12:$H$102)), ROW()-1)), "" ) ->  | E146: =IF($B146, INDIRECT("Fondo_Comun!H" & SMALL(IF( Fondo_Comun!$H$12:$H$102 = "", "", ROW(Fondo_Comun!$H$12:$H$102)), ROW()-1)), "" ) ->  | F146: =IF( B146, SUM($E$2:E146), "" ) -> 
B147: =COUNTIF(Fondo_Comun!$H$12:$H$102, ">0") >= ROW() - 1 -> FALSE | C147: =IF($B147, INDIRECT("Fondo_Comun!C" & SMALL(IF( Fondo_Comun!$H$12:$H$102 = "", "", ROW(Fondo_Comun!$H$12:$H$102)), ROW()-1)), "" ) ->  | D147: =IF($B147, INDIRECT("Fondo_Comun!D" & SMALL(IF( Fondo_Comun!$H$12:$H$102 = "", "", ROW(Fondo_Comun!$H$12:$H$102)), ROW()-1)), "" ) ->  | E147: =IF($B147, INDIRECT("Fondo_Comun!H" & SMALL(IF( Fondo_Comun!$H$12:$H$102 = "", "", ROW(Fondo_Comun!$H$12:$H$102)), ROW()-1)), "" ) ->  | F147: =IF( B147, SUM($E$2:E147), "" ) -> 
B148: =COUNTIF(Fondo_Comun!$H$12:$H$102, ">0") >= ROW() - 1 -> FALSE | C148: =IF($B148, INDIRECT("Fondo_Comun!C" & SMALL(IF( Fondo_Comun!$H$12:$H$102 = "", "", ROW(Fondo_Comun!$H$12:$H$102)), ROW()-1)), "" ) ->  | D148: =IF($B148, INDIRECT("Fondo_Comun!D" & SMALL(IF( Fondo_Comun!$H$12:$H$102 = "", "", ROW(Fondo_Comun!$H$12:$H$102)), ROW()-1)), "" ) ->  | E148: =IF($B148, INDIRECT("Fondo_Comun!H" & SMALL(IF( Fondo_Comun!$H$12:$H$102 = "", "", ROW(Fondo_Comun!$H$12:$H$102)), ROW()-1)), "" ) ->  | F148: =IF( B148, SUM($E$2:E148), "" ) -> 
B149: =COUNTIF(Fondo_Comun!$H$12:$H$102, ">0") >= ROW() - 1 -> FALSE | C149: =IF($B149, INDIRECT("Fondo_Comun!C" & SMALL(IF( Fondo_Comun!$H$12:$H$102 = "", "", ROW(Fondo_Comun!$H$12:$H$102)), ROW()-1)), "" ) ->  | D149: =IF($B149, INDIRECT("Fondo_Comun!D" & SMALL(IF( Fondo_Comun!$H$12:$H$102 = "", "", ROW(Fondo_Comun!$H$12:$H$102)), ROW()-1)), "" ) ->  | E149: =IF($B149, INDIRECT("Fondo_Comun!H" & SMALL(IF( Fondo_Comun!$H$12:$H$102 = "", "", ROW(Fondo_Comun!$H$12:$H$102)), ROW()-1)), "" ) ->  | F149: =IF( B149, SUM($E$2:E149), "" ) -> 
B150: =COUNTIF(Fondo_Comun!$H$12:$H$102, ">0") >= ROW() - 1 -> FALSE | C150: =IF($B150, INDIRECT("Fondo_Comun!C" & SMALL(IF( Fondo_Comun!$H$12:$H$102 = "", "", ROW(Fondo_Comun!$H$12:$H$102)), ROW()-1)), "" ) ->  | D150: =IF($B150, INDIRECT("Fondo_Comun!D" & SMALL(IF( Fondo_Comun!$H$12:$H$102 = "", "", ROW(Fondo_Comun!$H$12:$H$102)), ROW()-1)), "" ) ->  | E150: =IF($B150, INDIRECT("Fondo_Comun!H" & SMALL(IF( Fondo_Comun!$H$12:$H$102 = "", "", ROW(Fondo_Comun!$H$12:$H$102)), ROW()-1)), "" ) ->  | F150: =IF( B150, SUM($E$2:E150), "" ) -> 
B151: =COUNTIF(Fondo_Comun!$H$12:$H$102, ">0") >= ROW() - 1 -> FALSE | C151: =IF($B151, INDIRECT("Fondo_Comun!C" & SMALL(IF( Fondo_Comun!$H$12:$H$102 = "", "", ROW(Fondo_Comun!$H$12:$H$102)), ROW()-1)), "" ) ->  | D151: =IF($B151, INDIRECT("Fondo_Comun!D" & SMALL(IF( Fondo_Comun!$H$12:$H$102 = "", "", ROW(Fondo_Comun!$H$12:$H$102)), ROW()-1)), "" ) ->  | E151: =IF($B151, INDIRECT("Fondo_Comun!H" & SMALL(IF( Fondo_Comun!$H$12:$H$102 = "", "", ROW(Fondo_Comun!$H$12:$H$102)), ROW()-1)), "" ) ->  | F151: =IF( B151, SUM($E$2:E151), "" ) -> 
B152: =COUNTIF(Fondo_Comun!$H$12:$H$102, ">0") >= ROW() - 1 -> FALSE | C152: =IF($B152, INDIRECT("Fondo_Comun!C" & SMALL(IF( Fondo_Comun!$H$12:$H$102 = "", "", ROW(Fondo_Comun!$H$12:$H$102)), ROW()-1)), "" ) ->  | D152: =IF($B152, INDIRECT("Fondo_Comun!D" & SMALL(IF( Fondo_Comun!$H$12:$H$102 = "", "", ROW(Fondo_Comun!$H$12:$H$102)), ROW()-1)), "" ) ->  | E152: =IF($B152, INDIRECT("Fondo_Comun!H" & SMALL(IF( Fondo_Comun!$H$12:$H$102 = "", "", ROW(Fondo_Comun!$H$12:$H$102)), ROW()-1)), "" ) ->  | F152: =IF( B152, SUM($E$2:E152), "" ) -> 
B153: =COUNTIF(Fondo_Comun!$H$12:$H$102, ">0") >= ROW() - 1 -> FALSE | C153: =IF($B153, INDIRECT("Fondo_Comun!C" & SMALL(IF( Fondo_Comun!$H$12:$H$102 = "", "", ROW(Fondo_Comun!$H$12:$H$102)), ROW()-1)), "" ) ->  | D153: =IF($B153, INDIRECT("Fondo_Comun!D" & SMALL(IF( Fondo_Comun!$H$12:$H$102 = "", "", ROW(Fondo_Comun!$H$12:$H$102)), ROW()-1)), "" ) ->  | E153: =IF($B153, INDIRECT("Fondo_Comun!H" & SMALL(IF( Fondo_Comun!$H$12:$H$102 = "", "", ROW(Fondo_Comun!$H$12:$H$102)), ROW()-1)), "" ) ->  | F153: =IF( B153, SUM($E$2:E153), "" ) -> 
B154: =COUNTIF(Fondo_Comun!$H$12:$H$102, ">0") >= ROW() - 1 -> FALSE | C154: =IF($B154, INDIRECT("Fondo_Comun!C" & SMALL(IF( Fondo_Comun!$H$12:$H$102 = "", "", ROW(Fondo_Comun!$H$12:$H$102)), ROW()-1)), "" ) ->  | D154: =IF($B154, INDIRECT("Fondo_Comun!D" & SMALL(IF( Fondo_Comun!$H$12:$H$102 = "", "", ROW(Fondo_Comun!$H$12:$H$102)), ROW()-1)), "" ) ->  | E154: =IF($B154, INDIRECT("Fondo_Comun!H" & SMALL(IF( Fondo_Comun!$H$12:$H$102 = "", "", ROW(Fondo_Comun!$H$12:$H$102)), ROW()-1)), "" ) ->  | F154: =IF( B154, SUM($E$2:E154), "" ) -> 
B155: =COUNTIF(Fondo_Comun!$H$12:$H$102, ">0") >= ROW() - 1 -> FALSE | C155: =IF($B155, INDIRECT("Fondo_Comun!C" & SMALL(IF( Fondo_Comun!$H$12:$H$102 = "", "", ROW(Fondo_Comun!$H$12:$H$102)), ROW()-1)), "" ) ->  | D155: =IF($B155, INDIRECT("Fondo_Comun!D" & SMALL(IF( Fondo_Comun!$H$12:$H$102 = "", "", ROW(Fondo_Comun!$H$12:$H$102)), ROW()-1)), "" ) ->  | E155: =IF($B155, INDIRECT("Fondo_Comun!H" & SMALL(IF( Fondo_Comun!$H$12:$H$102 = "", "", ROW(Fondo_Comun!$H$12:$H$102)), ROW()-1)), "" ) ->  | F155: =IF( B155, SUM($E$2:E155), "" ) -> 
B156: =COUNTIF(Fondo_Comun!$H$12:$H$102, ">0") >= ROW() - 1 -> FALSE | C156: =IF($B156, INDIRECT("Fondo_Comun!C" & SMALL(IF( Fondo_Comun!$H$12:$H$102 = "", "", ROW(Fondo_Comun!$H$12:$H$102)), ROW()-1)), "" ) ->  | D156: =IF($B156, INDIRECT("Fondo_Comun!D" & SMALL(IF( Fondo_Comun!$H$12:$H$102 = "", "", ROW(Fondo_Comun!$H$12:$H$102)), ROW()-1)), "" ) ->  | E156: =IF($B156, INDIRECT("Fondo_Comun!H" & SMALL(IF( Fondo_Comun!$H$12:$H$102 = "", "", ROW(Fondo_Comun!$H$12:$H$102)), ROW()-1)), "" ) ->  | F156: =IF( B156, SUM($E$2:E156), "" ) -> 
B157: =COUNTIF(Fondo_Comun!$H$12:$H$102, ">0") >= ROW() - 1 -> FALSE | C157: =IF($B157, INDIRECT("Fondo_Comun!C" & SMALL(IF( Fondo_Comun!$H$12:$H$102 = "", "", ROW(Fondo_Comun!$H$12:$H$102)), ROW()-1)), "" ) ->  | D157: =IF($B157, INDIRECT("Fondo_Comun!D" & SMALL(IF( Fondo_Comun!$H$12:$H$102 = "", "", ROW(Fondo_Comun!$H$12:$H$102)), ROW()-1)), "" ) ->  | E157: =IF($B157, INDIRECT("Fondo_Comun!H" & SMALL(IF( Fondo_Comun!$H$12:$H$102 = "", "", ROW(Fondo_Comun!$H$12:$H$102)), ROW()-1)), "" ) ->  | F157: =IF( B157, SUM($E$2:E157), "" ) -> 
B158: =COUNTIF(Fondo_Comun!$H$12:$H$102, ">0") >= ROW() - 1 -> FALSE | C158: =IF($B158, INDIRECT("Fondo_Comun!C" & SMALL(IF( Fondo_Comun!$H$12:$H$102 = "", "", ROW(Fondo_Comun!$H$12:$H$102)), ROW()-1)), "" ) ->  | D158: =IF($B158, INDIRECT("Fondo_Comun!D" & SMALL(IF( Fondo_Comun!$H$12:$H$102 = "", "", ROW(Fondo_Comun!$H$12:$H$102)), ROW()-1)), "" ) ->  | E158: =IF($B158, INDIRECT("Fondo_Comun!H" & SMALL(IF( Fondo_Comun!$H$12:$H$102 = "", "", ROW(Fondo_Comun!$H$12:$H$102)), ROW()-1)), "" ) ->  | F158: =IF( B158, SUM($E$2:E158), "" ) -> 
B159: =COUNTIF(Fondo_Comun!$H$12:$H$102, ">0") >= ROW() - 1 -> FALSE | C159: =IF($B159, INDIRECT("Fondo_Comun!C" & SMALL(IF( Fondo_Comun!$H$12:$H$102 = "", "", ROW(Fondo_Comun!$H$12:$H$102)), ROW()-1)), "" ) ->  | D159: =IF($B159, INDIRECT("Fondo_Comun!D" & SMALL(IF( Fondo_Comun!$H$12:$H$102 = "", "", ROW(Fondo_Comun!$H$12:$H$102)), ROW()-1)), "" ) ->  | E159: =IF($B159, INDIRECT("Fondo_Comun!H" & SMALL(IF( Fondo_Comun!$H$12:$H$102 = "", "", ROW(Fondo_Comun!$H$12:$H$102)), ROW()-1)), "" ) ->  | F159: =IF( B159, SUM($E$2:E159), "" ) -> 
B160: =COUNTIF(Fondo_Comun!$H$12:$H$102, ">0") >= ROW() - 1 -> FALSE | C160: =IF($B160, INDIRECT("Fondo_Comun!C" & SMALL(IF( Fondo_Comun!$H$12:$H$102 = "", "", ROW(Fondo_Comun!$H$12:$H$102)), ROW()-1)), "" ) ->  | D160: =IF($B160, INDIRECT("Fondo_Comun!D" & SMALL(IF( Fondo_Comun!$H$12:$H$102 = "", "", ROW(Fondo_Comun!$H$12:$H$102)), ROW()-1)), "" ) ->  | E160: =IF($B160, INDIRECT("Fondo_Comun!H" & SMALL(IF( Fondo_Comun!$H$12:$H$102 = "", "", ROW(Fondo_Comun!$H$12:$H$102)), ROW()-1)), "" ) ->  | F160: =IF( B160, SUM($E$2:E160), "" ) -> 
B161: =COUNTIF(Fondo_Comun!$H$12:$H$102, ">0") >= ROW() - 1 -> FALSE | C161: =IF($B161, INDIRECT("Fondo_Comun!C" & SMALL(IF( Fondo_Comun!$H$12:$H$102 = "", "", ROW(Fondo_Comun!$H$12:$H$102)), ROW()-1)), "" ) ->  | D161: =IF($B161, INDIRECT("Fondo_Comun!D" & SMALL(IF( Fondo_Comun!$H$12:$H$102 = "", "", ROW(Fondo_Comun!$H$12:$H$102)), ROW()-1)), "" ) ->  | E161: =IF($B161, INDIRECT("Fondo_Comun!H" & SMALL(IF( Fondo_Comun!$H$12:$H$102 = "", "", ROW(Fondo_Comun!$H$12:$H$102)), ROW()-1)), "" ) ->  | F161: =IF( B161, SUM($E$2:E161), "" ) -> 
B162: =COUNTIF(Fondo_Comun!$H$12:$H$102, ">0") >= ROW() - 1 -> FALSE | C162: =IF($B162, INDIRECT("Fondo_Comun!C" & SMALL(IF( Fondo_Comun!$H$12:$H$102 = "", "", ROW(Fondo_Comun!$H$12:$H$102)), ROW()-1)), "" ) ->  | D162: =IF($B162, INDIRECT("Fondo_Comun!D" & SMALL(IF( Fondo_Comun!$H$12:$H$102 = "", "", ROW(Fondo_Comun!$H$12:$H$102)), ROW()-1)), "" ) ->  | E162: =IF($B162, INDIRECT("Fondo_Comun!H" & SMALL(IF( Fondo_Comun!$H$12:$H$102 = "", "", ROW(Fondo_Comun!$H$12:$H$102)), ROW()-1)), "" ) ->  | F162: =IF( B162, SUM($E$2:E162), "" ) -> 
B163: =COUNTIF(Fondo_Comun!$H$12:$H$102, ">0") >= ROW() - 1 -> FALSE | C163: =IF($B163, INDIRECT("Fondo_Comun!C" & SMALL(IF( Fondo_Comun!$H$12:$H$102 = "", "", ROW(Fondo_Comun!$H$12:$H$102)), ROW()-1)), "" ) ->  | D163: =IF($B163, INDIRECT("Fondo_Comun!D" & SMALL(IF( Fondo_Comun!$H$12:$H$102 = "", "", ROW(Fondo_Comun!$H$12:$H$102)), ROW()-1)), "" ) ->  | E163: =IF($B163, INDIRECT("Fondo_Comun!H" & SMALL(IF( Fondo_Comun!$H$12:$H$102 = "", "", ROW(Fondo_Comun!$H$12:$H$102)), ROW()-1)), "" ) ->  | F163: =IF( B163, SUM($E$2:E163), "" ) -> 
B164: =COUNTIF(Fondo_Comun!$H$12:$H$102, ">0") >= ROW() - 1 -> FALSE | C164: =IF($B164, INDIRECT("Fondo_Comun!C" & SMALL(IF( Fondo_Comun!$H$12:$H$102 = "", "", ROW(Fondo_Comun!$H$12:$H$102)), ROW()-1)), "" ) ->  | D164: =IF($B164, INDIRECT("Fondo_Comun!D" & SMALL(IF( Fondo_Comun!$H$12:$H$102 = "", "", ROW(Fondo_Comun!$H$12:$H$102)), ROW()-1)), "" ) ->  | E164: =IF($B164, INDIRECT("Fondo_Comun!H" & SMALL(IF( Fondo_Comun!$H$12:$H$102 = "", "", ROW(Fondo_Comun!$H$12:$H$102)), ROW()-1)), "" ) ->  | F164: =IF( B164, SUM($E$2:E164), "" ) -> 
B165: =COUNTIF(Fondo_Comun!$H$12:$H$102, ">0") >= ROW() - 1 -> FALSE | C165: =IF($B165, INDIRECT("Fondo_Comun!C" & SMALL(IF( Fondo_Comun!$H$12:$H$102 = "", "", ROW(Fondo_Comun!$H$12:$H$102)), ROW()-1)), "" ) ->  | D165: =IF($B165, INDIRECT("Fondo_Comun!D" & SMALL(IF( Fondo_Comun!$H$12:$H$102 = "", "", ROW(Fondo_Comun!$H$12:$H$102)), ROW()-1)), "" ) ->  | E165: =IF($B165, INDIRECT("Fondo_Comun!H" & SMALL(IF( Fondo_Comun!$H$12:$H$102 = "", "", ROW(Fondo_Comun!$H$12:$H$102)), ROW()-1)), "" ) ->  | F165: =IF( B165, SUM($E$2:E165), "" ) -> 
B166: =COUNTIF(Fondo_Comun!$H$12:$H$102, ">0") >= ROW() - 1 -> FALSE | C166: =IF($B166, INDIRECT("Fondo_Comun!C" & SMALL(IF( Fondo_Comun!$H$12:$H$102 = "", "", ROW(Fondo_Comun!$H$12:$H$102)), ROW()-1)), "" ) ->  | D166: =IF($B166, INDIRECT("Fondo_Comun!D" & SMALL(IF( Fondo_Comun!$H$12:$H$102 = "", "", ROW(Fondo_Comun!$H$12:$H$102)), ROW()-1)), "" ) ->  | E166: =IF($B166, INDIRECT("Fondo_Comun!H" & SMALL(IF( Fondo_Comun!$H$12:$H$102 = "", "", ROW(Fondo_Comun!$H$12:$H$102)), ROW()-1)), "" ) ->  | F166: =IF( B166, SUM($E$2:E166), "" ) -> 
B167: =COUNTIF(Fondo_Comun!$H$12:$H$102, ">0") >= ROW() - 1 -> FALSE | C167: =IF($B167, INDIRECT("Fondo_Comun!C" & SMALL(IF( Fondo_Comun!$H$12:$H$102 = "", "", ROW(Fondo_Comun!$H$12:$H$102)), ROW()-1)), "" ) ->  | D167: =IF($B167, INDIRECT("Fondo_Comun!D" & SMALL(IF( Fondo_Comun!$H$12:$H$102 = "", "", ROW(Fondo_Comun!$H$12:$H$102)), ROW()-1)), "" ) ->  | E167: =IF($B167, INDIRECT("Fondo_Comun!H" & SMALL(IF( Fondo_Comun!$H$12:$H$102 = "", "", ROW(Fondo_Comun!$H$12:$H$102)), ROW()-1)), "" ) ->  | F167: =IF( B167, SUM($E$2:E167), "" ) -> 
B168: =COUNTIF(Fondo_Comun!$H$12:$H$102, ">0") >= ROW() - 1 -> FALSE | C168: =IF($B168, INDIRECT("Fondo_Comun!C" & SMALL(IF( Fondo_Comun!$H$12:$H$102 = "", "", ROW(Fondo_Comun!$H$12:$H$102)), ROW()-1)), "" ) ->  | D168: =IF($B168, INDIRECT("Fondo_Comun!D" & SMALL(IF( Fondo_Comun!$H$12:$H$102 = "", "", ROW(Fondo_Comun!$H$12:$H$102)), ROW()-1)), "" ) ->  | E168: =IF($B168, INDIRECT("Fondo_Comun!H" & SMALL(IF( Fondo_Comun!$H$12:$H$102 = "", "", ROW(Fondo_Comun!$H$12:$H$102)), ROW()-1)), "" ) ->  | F168: =IF( B168, SUM($E$2:E168), "" ) -> 
B169: =COUNTIF(Fondo_Comun!$H$12:$H$102, ">0") >= ROW() - 1 -> FALSE | C169: =IF($B169, INDIRECT("Fondo_Comun!C" & SMALL(IF( Fondo_Comun!$H$12:$H$102 = "", "", ROW(Fondo_Comun!$H$12:$H$102)), ROW()-1)), "" ) ->  | D169: =IF($B169, INDIRECT("Fondo_Comun!D" & SMALL(IF( Fondo_Comun!$H$12:$H$102 = "", "", ROW(Fondo_Comun!$H$12:$H$102)), ROW()-1)), "" ) ->  | E169: =IF($B169, INDIRECT("Fondo_Comun!H" & SMALL(IF( Fondo_Comun!$H$12:$H$102 = "", "", ROW(Fondo_Comun!$H$12:$H$102)), ROW()-1)), "" ) ->  | F169: =IF( B169, SUM($E$2:E169), "" ) -> 
B170: =COUNTIF(Fondo_Comun!$H$12:$H$102, ">0") >= ROW() - 1 -> FALSE | C170: =IF($B170, INDIRECT("Fondo_Comun!C" & SMALL(IF( Fondo_Comun!$H$12:$H$102 = "", "", ROW(Fondo_Comun!$H$12:$H$102)), ROW()-1)), "" ) ->  | D170: =IF($B170, INDIRECT("Fondo_Comun!D" & SMALL(IF( Fondo_Comun!$H$12:$H$102 = "", "", ROW(Fondo_Comun!$H$12:$H$102)), ROW()-1)), "" ) ->  | E170: =IF($B170, INDIRECT("Fondo_Comun!H" & SMALL(IF( Fondo_Comun!$H$12:$H$102 = "", "", ROW(Fondo_Comun!$H$12:$H$102)), ROW()-1)), "" ) ->  | F170: =IF( B170, SUM($E$2:E170), "" ) -> 
B171: =COUNTIF(Fondo_Comun!$H$12:$H$102, ">0") >= ROW() - 1 -> FALSE | C171: =IF($B171, INDIRECT("Fondo_Comun!C" & SMALL(IF( Fondo_Comun!$H$12:$H$102 = "", "", ROW(Fondo_Comun!$H$12:$H$102)), ROW()-1)), "" ) ->  | D171: =IF($B171, INDIRECT("Fondo_Comun!D" & SMALL(IF( Fondo_Comun!$H$12:$H$102 = "", "", ROW(Fondo_Comun!$H$12:$H$102)), ROW()-1)), "" ) ->  | E171: =IF($B171, INDIRECT("Fondo_Comun!H" & SMALL(IF( Fondo_Comun!$H$12:$H$102 = "", "", ROW(Fondo_Comun!$H$12:$H$102)), ROW()-1)), "" ) ->  | F171: =IF( B171, SUM($E$2:E171), "" ) -> 
B172: =COUNTIF(Fondo_Comun!$H$12:$H$102, ">0") >= ROW() - 1 -> FALSE | C172: =IF($B172, INDIRECT("Fondo_Comun!C" & SMALL(IF( Fondo_Comun!$H$12:$H$102 = "", "", ROW(Fondo_Comun!$H$12:$H$102)), ROW()-1)), "" ) ->  | D172: =IF($B172, INDIRECT("Fondo_Comun!D" & SMALL(IF( Fondo_Comun!$H$12:$H$102 = "", "", ROW(Fondo_Comun!$H$12:$H$102)), ROW()-1)), "" ) ->  | E172: =IF($B172, INDIRECT("Fondo_Comun!H" & SMALL(IF( Fondo_Comun!$H$12:$H$102 = "", "", ROW(Fondo_Comun!$H$12:$H$102)), ROW()-1)), "" ) ->  | F172: =IF( B172, SUM($E$2:E172), "" ) -> 
B173: =COUNTIF(Fondo_Comun!$H$12:$H$102, ">0") >= ROW() - 1 -> FALSE | C173: =IF($B173, INDIRECT("Fondo_Comun!C" & SMALL(IF( Fondo_Comun!$H$12:$H$102 = "", "", ROW(Fondo_Comun!$H$12:$H$102)), ROW()-1)), "" ) ->  | D173: =IF($B173, INDIRECT("Fondo_Comun!D" & SMALL(IF( Fondo_Comun!$H$12:$H$102 = "", "", ROW(Fondo_Comun!$H$12:$H$102)), ROW()-1)), "" ) ->  | E173: =IF($B173, INDIRECT("Fondo_Comun!H" & SMALL(IF( Fondo_Comun!$H$12:$H$102 = "", "", ROW(Fondo_Comun!$H$12:$H$102)), ROW()-1)), "" ) ->  | F173: =IF( B173, SUM($E$2:E173), "" ) -> 
B174: =COUNTIF(Fondo_Comun!$H$12:$H$102, ">0") >= ROW() - 1 -> FALSE | C174: =IF($B174, INDIRECT("Fondo_Comun!C" & SMALL(IF( Fondo_Comun!$H$12:$H$102 = "", "", ROW(Fondo_Comun!$H$12:$H$102)), ROW()-1)), "" ) ->  | D174: =IF($B174, INDIRECT("Fondo_Comun!D" & SMALL(IF( Fondo_Comun!$H$12:$H$102 = "", "", ROW(Fondo_Comun!$H$12:$H$102)), ROW()-1)), "" ) ->  | E174: =IF($B174, INDIRECT("Fondo_Comun!H" & SMALL(IF( Fondo_Comun!$H$12:$H$102 = "", "", ROW(Fondo_Comun!$H$12:$H$102)), ROW()-1)), "" ) ->  | F174: =IF( B174, SUM($E$2:E174), "" ) -> 
B175: =COUNTIF(Fondo_Comun!$H$12:$H$102, ">0") >= ROW() - 1 -> FALSE | C175: =IF($B175, INDIRECT("Fondo_Comun!C" & SMALL(IF( Fondo_Comun!$H$12:$H$102 = "", "", ROW(Fondo_Comun!$H$12:$H$102)), ROW()-1)), "" ) ->  | D175: =IF($B175, INDIRECT("Fondo_Comun!D" & SMALL(IF( Fondo_Comun!$H$12:$H$102 = "", "", ROW(Fondo_Comun!$H$12:$H$102)), ROW()-1)), "" ) ->  | E175: =IF($B175, INDIRECT("Fondo_Comun!H" & SMALL(IF( Fondo_Comun!$H$12:$H$102 = "", "", ROW(Fondo_Comun!$H$12:$H$102)), ROW()-1)), "" ) ->  | F175: =IF( B175, SUM($E$2:E175), "" ) -> 
B176: =COUNTIF(Fondo_Comun!$H$12:$H$102, ">0") >= ROW() - 1 -> FALSE | C176: =IF($B176, INDIRECT("Fondo_Comun!C" & SMALL(IF( Fondo_Comun!$H$12:$H$102 = "", "", ROW(Fondo_Comun!$H$12:$H$102)), ROW()-1)), "" ) ->  | D176: =IF($B176, INDIRECT("Fondo_Comun!D" & SMALL(IF( Fondo_Comun!$H$12:$H$102 = "", "", ROW(Fondo_Comun!$H$12:$H$102)), ROW()-1)), "" ) ->  | E176: =IF($B176, INDIRECT("Fondo_Comun!H" & SMALL(IF( Fondo_Comun!$H$12:$H$102 = "", "", ROW(Fondo_Comun!$H$12:$H$102)), ROW()-1)), "" ) ->  | F176: =IF( B176, SUM($E$2:E176), "" ) -> 
B177: =COUNTIF(Fondo_Comun!$H$12:$H$102, ">0") >= ROW() - 1 -> FALSE | C177: =IF($B177, INDIRECT("Fondo_Comun!C" & SMALL(IF( Fondo_Comun!$H$12:$H$102 = "", "", ROW(Fondo_Comun!$H$12:$H$102)), ROW()-1)), "" ) ->  | D177: =IF($B177, INDIRECT("Fondo_Comun!D" & SMALL(IF( Fondo_Comun!$H$12:$H$102 = "", "", ROW(Fondo_Comun!$H$12:$H$102)), ROW()-1)), "" ) ->  | E177: =IF($B177, INDIRECT("Fondo_Comun!H" & SMALL(IF( Fondo_Comun!$H$12:$H$102 = "", "", ROW(Fondo_Comun!$H$12:$H$102)), ROW()-1)), "" ) ->  | F177: =IF( B177, SUM($E$2:E177), "" ) -> 
B178: =COUNTIF(Fondo_Comun!$H$12:$H$102, ">0") >= ROW() - 1 -> FALSE | C178: =IF($B178, INDIRECT("Fondo_Comun!C" & SMALL(IF( Fondo_Comun!$H$12:$H$102 = "", "", ROW(Fondo_Comun!$H$12:$H$102)), ROW()-1)), "" ) ->  | D178: =IF($B178, INDIRECT("Fondo_Comun!D" & SMALL(IF( Fondo_Comun!$H$12:$H$102 = "", "", ROW(Fondo_Comun!$H$12:$H$102)), ROW()-1)), "" ) ->  | E178: =IF($B178, INDIRECT("Fondo_Comun!H" & SMALL(IF( Fondo_Comun!$H$12:$H$102 = "", "", ROW(Fondo_Comun!$H$12:$H$102)), ROW()-1)), "" ) ->  | F178: =IF( B178, SUM($E$2:E178), "" ) -> 
B179: =COUNTIF(Fondo_Comun!$H$12:$H$102, ">0") >= ROW() - 1 -> FALSE | C179: =IF($B179, INDIRECT("Fondo_Comun!C" & SMALL(IF( Fondo_Comun!$H$12:$H$102 = "", "", ROW(Fondo_Comun!$H$12:$H$102)), ROW()-1)), "" ) ->  | D179: =IF($B179, INDIRECT("Fondo_Comun!D" & SMALL(IF( Fondo_Comun!$H$12:$H$102 = "", "", ROW(Fondo_Comun!$H$12:$H$102)), ROW()-1)), "" ) ->  | E179: =IF($B179, INDIRECT("Fondo_Comun!H" & SMALL(IF( Fondo_Comun!$H$12:$H$102 = "", "", ROW(Fondo_Comun!$H$12:$H$102)), ROW()-1)), "" ) ->  | F179: =IF( B179, SUM($E$2:E179), "" ) -> 
B180: =COUNTIF(Fondo_Comun!$H$12:$H$102, ">0") >= ROW() - 1 -> FALSE | C180: =IF($B180, INDIRECT("Fondo_Comun!C" & SMALL(IF( Fondo_Comun!$H$12:$H$102 = "", "", ROW(Fondo_Comun!$H$12:$H$102)), ROW()-1)), "" ) ->  | D180: =IF($B180, INDIRECT("Fondo_Comun!D" & SMALL(IF( Fondo_Comun!$H$12:$H$102 = "", "", ROW(Fondo_Comun!$H$12:$H$102)), ROW()-1)), "" ) ->  | E180: =IF($B180, INDIRECT("Fondo_Comun!H" & SMALL(IF( Fondo_Comun!$H$12:$H$102 = "", "", ROW(Fondo_Comun!$H$12:$H$102)), ROW()-1)), "" ) ->  | F180: =IF( B180, SUM($E$2:E180), "" ) -> 
B181: =COUNTIF(Fondo_Comun!$H$12:$H$102, ">0") >= ROW() - 1 -> FALSE | C181: =IF($B181, INDIRECT("Fondo_Comun!C" & SMALL(IF( Fondo_Comun!$H$12:$H$102 = "", "", ROW(Fondo_Comun!$H$12:$H$102)), ROW()-1)), "" ) ->  | D181: =IF($B181, INDIRECT("Fondo_Comun!D" & SMALL(IF( Fondo_Comun!$H$12:$H$102 = "", "", ROW(Fondo_Comun!$H$12:$H$102)), ROW()-1)), "" ) ->  | E181: =IF($B181, INDIRECT("Fondo_Comun!H" & SMALL(IF( Fondo_Comun!$H$12:$H$102 = "", "", ROW(Fondo_Comun!$H$12:$H$102)), ROW()-1)), "" ) ->  | F181: =IF( B181, SUM($E$2:E181), "" ) -> 
B182: =COUNTIF(Fondo_Comun!$H$12:$H$102, ">0") >= ROW() - 1 -> FALSE | C182: =IF($B182, INDIRECT("Fondo_Comun!C" & SMALL(IF( Fondo_Comun!$H$12:$H$102 = "", "", ROW(Fondo_Comun!$H$12:$H$102)), ROW()-1)), "" ) ->  | D182: =IF($B182, INDIRECT("Fondo_Comun!D" & SMALL(IF( Fondo_Comun!$H$12:$H$102 = "", "", ROW(Fondo_Comun!$H$12:$H$102)), ROW()-1)), "" ) ->  | E182: =IF($B182, INDIRECT("Fondo_Comun!H" & SMALL(IF( Fondo_Comun!$H$12:$H$102 = "", "", ROW(Fondo_Comun!$H$12:$H$102)), ROW()-1)), "" ) ->  | F182: =IF( B182, SUM($E$2:E182), "" ) -> 
B183: =COUNTIF(Fondo_Comun!$H$12:$H$102, ">0") >= ROW() - 1 -> FALSE | C183: =IF($B183, INDIRECT("Fondo_Comun!C" & SMALL(IF( Fondo_Comun!$H$12:$H$102 = "", "", ROW(Fondo_Comun!$H$12:$H$102)), ROW()-1)), "" ) ->  | D183: =IF($B183, INDIRECT("Fondo_Comun!D" & SMALL(IF( Fondo_Comun!$H$12:$H$102 = "", "", ROW(Fondo_Comun!$H$12:$H$102)), ROW()-1)), "" ) ->  | E183: =IF($B183, INDIRECT("Fondo_Comun!H" & SMALL(IF( Fondo_Comun!$H$12:$H$102 = "", "", ROW(Fondo_Comun!$H$12:$H$102)), ROW()-1)), "" ) ->  | F183: =IF( B183, SUM($E$2:E183), "" ) -> 
B184: =COUNTIF(Fondo_Comun!$H$12:$H$102, ">0") >= ROW() - 1 -> FALSE | C184: =IF($B184, INDIRECT("Fondo_Comun!C" & SMALL(IF( Fondo_Comun!$H$12:$H$102 = "", "", ROW(Fondo_Comun!$H$12:$H$102)), ROW()-1)), "" ) ->  | D184: =IF($B184, INDIRECT("Fondo_Comun!D" & SMALL(IF( Fondo_Comun!$H$12:$H$102 = "", "", ROW(Fondo_Comun!$H$12:$H$102)), ROW()-1)), "" ) ->  | E184: =IF($B184, INDIRECT("Fondo_Comun!H" & SMALL(IF( Fondo_Comun!$H$12:$H$102 = "", "", ROW(Fondo_Comun!$H$12:$H$102)), ROW()-1)), "" ) ->  | F184: =IF( B184, SUM($E$2:E184), "" ) -> 
B185: =COUNTIF(Fondo_Comun!$H$12:$H$102, ">0") >= ROW() - 1 -> FALSE | C185: =IF($B185, INDIRECT("Fondo_Comun!C" & SMALL(IF( Fondo_Comun!$H$12:$H$102 = "", "", ROW(Fondo_Comun!$H$12:$H$102)), ROW()-1)), "" ) ->  | D185: =IF($B185, INDIRECT("Fondo_Comun!D" & SMALL(IF( Fondo_Comun!$H$12:$H$102 = "", "", ROW(Fondo_Comun!$H$12:$H$102)), ROW()-1)), "" ) ->  | E185: =IF($B185, INDIRECT("Fondo_Comun!H" & SMALL(IF( Fondo_Comun!$H$12:$H$102 = "", "", ROW(Fondo_Comun!$H$12:$H$102)), ROW()-1)), "" ) ->  | F185: =IF( B185, SUM($E$2:E185), "" ) -> 
B186: =COUNTIF(Fondo_Comun!$H$12:$H$102, ">0") >= ROW() - 1 -> FALSE | C186: =IF($B186, INDIRECT("Fondo_Comun!C" & SMALL(IF( Fondo_Comun!$H$12:$H$102 = "", "", ROW(Fondo_Comun!$H$12:$H$102)), ROW()-1)), "" ) ->  | D186: =IF($B186, INDIRECT("Fondo_Comun!D" & SMALL(IF( Fondo_Comun!$H$12:$H$102 = "", "", ROW(Fondo_Comun!$H$12:$H$102)), ROW()-1)), "" ) ->  | E186: =IF($B186, INDIRECT("Fondo_Comun!H" & SMALL(IF( Fondo_Comun!$H$12:$H$102 = "", "", ROW(Fondo_Comun!$H$12:$H$102)), ROW()-1)), "" ) ->  | F186: =IF( B186, SUM($E$2:E186), "" ) -> 
B187: =COUNTIF(Fondo_Comun!$H$12:$H$102, ">0") >= ROW() - 1 -> FALSE | C187: =IF($B187, INDIRECT("Fondo_Comun!C" & SMALL(IF( Fondo_Comun!$H$12:$H$102 = "", "", ROW(Fondo_Comun!$H$12:$H$102)), ROW()-1)), "" ) ->  | D187: =IF($B187, INDIRECT("Fondo_Comun!D" & SMALL(IF( Fondo_Comun!$H$12:$H$102 = "", "", ROW(Fondo_Comun!$H$12:$H$102)), ROW()-1)), "" ) ->  | E187: =IF($B187, INDIRECT("Fondo_Comun!H" & SMALL(IF( Fondo_Comun!$H$12:$H$102 = "", "", ROW(Fondo_Comun!$H$12:$H$102)), ROW()-1)), "" ) ->  | F187: =IF( B187, SUM($E$2:E187), "" ) -> 
B188: =COUNTIF(Fondo_Comun!$H$12:$H$102, ">0") >= ROW() - 1 -> FALSE | C188: =IF($B188, INDIRECT("Fondo_Comun!C" & SMALL(IF( Fondo_Comun!$H$12:$H$102 = "", "", ROW(Fondo_Comun!$H$12:$H$102)), ROW()-1)), "" ) ->  | D188: =IF($B188, INDIRECT("Fondo_Comun!D" & SMALL(IF( Fondo_Comun!$H$12:$H$102 = "", "", ROW(Fondo_Comun!$H$12:$H$102)), ROW()-1)), "" ) ->  | E188: =IF($B188, INDIRECT("Fondo_Comun!H" & SMALL(IF( Fondo_Comun!$H$12:$H$102 = "", "", ROW(Fondo_Comun!$H$12:$H$102)), ROW()-1)), "" ) ->  | F188: =IF( B188, SUM($E$2:E188), "" ) -> 
B189: =COUNTIF(Fondo_Comun!$H$12:$H$102, ">0") >= ROW() - 1 -> FALSE | C189: =IF($B189, INDIRECT("Fondo_Comun!C" & SMALL(IF( Fondo_Comun!$H$12:$H$102 = "", "", ROW(Fondo_Comun!$H$12:$H$102)), ROW()-1)), "" ) ->  | D189: =IF($B189, INDIRECT("Fondo_Comun!D" & SMALL(IF( Fondo_Comun!$H$12:$H$102 = "", "", ROW(Fondo_Comun!$H$12:$H$102)), ROW()-1)), "" ) ->  | E189: =IF($B189, INDIRECT("Fondo_Comun!H" & SMALL(IF( Fondo_Comun!$H$12:$H$102 = "", "", ROW(Fondo_Comun!$H$12:$H$102)), ROW()-1)), "" ) ->  | F189: =IF( B189, SUM($E$2:E189), "" ) -> 
B190: =COUNTIF(Fondo_Comun!$H$12:$H$102, ">0") >= ROW() - 1 -> FALSE | C190: =IF($B190, INDIRECT("Fondo_Comun!C" & SMALL(IF( Fondo_Comun!$H$12:$H$102 = "", "", ROW(Fondo_Comun!$H$12:$H$102)), ROW()-1)), "" ) ->  | D190: =IF($B190, INDIRECT("Fondo_Comun!D" & SMALL(IF( Fondo_Comun!$H$12:$H$102 = "", "", ROW(Fondo_Comun!$H$12:$H$102)), ROW()-1)), "" ) ->  | E190: =IF($B190, INDIRECT("Fondo_Comun!H" & SMALL(IF( Fondo_Comun!$H$12:$H$102 = "", "", ROW(Fondo_Comun!$H$12:$H$102)), ROW()-1)), "" ) ->  | F190: =IF( B190, SUM($E$2:E190), "" ) -> 
B191: =COUNTIF(Fondo_Comun!$H$12:$H$102, ">0") >= ROW() - 1 -> FALSE | C191: =IF($B191, INDIRECT("Fondo_Comun!C" & SMALL(IF( Fondo_Comun!$H$12:$H$102 = "", "", ROW(Fondo_Comun!$H$12:$H$102)), ROW()-1)), "" ) ->  | D191: =IF($B191, INDIRECT("Fondo_Comun!D" & SMALL(IF( Fondo_Comun!$H$12:$H$102 = "", "", ROW(Fondo_Comun!$H$12:$H$102)), ROW()-1)), "" ) ->  | E191: =IF($B191, INDIRECT("Fondo_Comun!H" & SMALL(IF( Fondo_Comun!$H$12:$H$102 = "", "", ROW(Fondo_Comun!$H$12:$H$102)), ROW()-1)), "" ) ->  | F191: =IF( B191, SUM($E$2:E191), "" ) -> 
B192: =COUNTIF(Fondo_Comun!$H$12:$H$102, ">0") >= ROW() - 1 -> FALSE | C192: =IF($B192, INDIRECT("Fondo_Comun!C" & SMALL(IF( Fondo_Comun!$H$12:$H$102 = "", "", ROW(Fondo_Comun!$H$12:$H$102)), ROW()-1)), "" ) ->  | D192: =IF($B192, INDIRECT("Fondo_Comun!D" & SMALL(IF( Fondo_Comun!$H$12:$H$102 = "", "", ROW(Fondo_Comun!$H$12:$H$102)), ROW()-1)), "" ) ->  | E192: =IF($B192, INDIRECT("Fondo_Comun!H" & SMALL(IF( Fondo_Comun!$H$12:$H$102 = "", "", ROW(Fondo_Comun!$H$12:$H$102)), ROW()-1)), "" ) ->  | F192: =IF( B192, SUM($E$2:E192), "" ) -> 
B193: =COUNTIF(Fondo_Comun!$H$12:$H$102, ">0") >= ROW() - 1 -> FALSE | C193: =IF($B193, INDIRECT("Fondo_Comun!C" & SMALL(IF( Fondo_Comun!$H$12:$H$102 = "", "", ROW(Fondo_Comun!$H$12:$H$102)), ROW()-1)), "" ) ->  | D193: =IF($B193, INDIRECT("Fondo_Comun!D" & SMALL(IF( Fondo_Comun!$H$12:$H$102 = "", "", ROW(Fondo_Comun!$H$12:$H$102)), ROW()-1)), "" ) ->  | E193: =IF($B193, INDIRECT("Fondo_Comun!H" & SMALL(IF( Fondo_Comun!$H$12:$H$102 = "", "", ROW(Fondo_Comun!$H$12:$H$102)), ROW()-1)), "" ) ->  | F193: =IF( B193, SUM($E$2:E193), "" ) -> 
B194: =COUNTIF(Fondo_Comun!$H$12:$H$102, ">0") >= ROW() - 1 -> FALSE | C194: =IF($B194, INDIRECT("Fondo_Comun!C" & SMALL(IF( Fondo_Comun!$H$12:$H$102 = "", "", ROW(Fondo_Comun!$H$12:$H$102)), ROW()-1)), "" ) ->  | D194: =IF($B194, INDIRECT("Fondo_Comun!D" & SMALL(IF( Fondo_Comun!$H$12:$H$102 = "", "", ROW(Fondo_Comun!$H$12:$H$102)), ROW()-1)), "" ) ->  | E194: =IF($B194, INDIRECT("Fondo_Comun!H" & SMALL(IF( Fondo_Comun!$H$12:$H$102 = "", "", ROW(Fondo_Comun!$H$12:$H$102)), ROW()-1)), "" ) ->  | F194: =IF( B194, SUM($E$2:E194), "" ) -> 
B195: =COUNTIF(Fondo_Comun!$H$12:$H$102, ">0") >= ROW() - 1 -> FALSE | C195: =IF($B195, INDIRECT("Fondo_Comun!C" & SMALL(IF( Fondo_Comun!$H$12:$H$102 = "", "", ROW(Fondo_Comun!$H$12:$H$102)), ROW()-1)), "" ) ->  | D195: =IF($B195, INDIRECT("Fondo_Comun!D" & SMALL(IF( Fondo_Comun!$H$12:$H$102 = "", "", ROW(Fondo_Comun!$H$12:$H$102)), ROW()-1)), "" ) ->  | E195: =IF($B195, INDIRECT("Fondo_Comun!H" & SMALL(IF( Fondo_Comun!$H$12:$H$102 = "", "", ROW(Fondo_Comun!$H$12:$H$102)), ROW()-1)), "" ) ->  | F195: =IF( B195, SUM($E$2:E195), "" ) -> 
B196: =COUNTIF(Fondo_Comun!$H$12:$H$102, ">0") >= ROW() - 1 -> FALSE | C196: =IF($B196, INDIRECT("Fondo_Comun!C" & SMALL(IF( Fondo_Comun!$H$12:$H$102 = "", "", ROW(Fondo_Comun!$H$12:$H$102)), ROW()-1)), "" ) ->  | D196: =IF($B196, INDIRECT("Fondo_Comun!D" & SMALL(IF( Fondo_Comun!$H$12:$H$102 = "", "", ROW(Fondo_Comun!$H$12:$H$102)), ROW()-1)), "" ) ->  | E196: =IF($B196, INDIRECT("Fondo_Comun!H" & SMALL(IF( Fondo_Comun!$H$12:$H$102 = "", "", ROW(Fondo_Comun!$H$12:$H$102)), ROW()-1)), "" ) ->  | F196: =IF( B196, SUM($E$2:E196), "" ) -> 
B197: =COUNTIF(Fondo_Comun!$H$12:$H$102, ">0") >= ROW() - 1 -> FALSE | C197: =IF($B197, INDIRECT("Fondo_Comun!C" & SMALL(IF( Fondo_Comun!$H$12:$H$102 = "", "", ROW(Fondo_Comun!$H$12:$H$102)), ROW()-1)), "" ) ->  | D197: =IF($B197, INDIRECT("Fondo_Comun!D" & SMALL(IF( Fondo_Comun!$H$12:$H$102 = "", "", ROW(Fondo_Comun!$H$12:$H$102)), ROW()-1)), "" ) ->  | E197: =IF($B197, INDIRECT("Fondo_Comun!H" & SMALL(IF( Fondo_Comun!$H$12:$H$102 = "", "", ROW(Fondo_Comun!$H$12:$H$102)), ROW()-1)), "" ) ->  | F197: =IF( B197, SUM($E$2:E197), "" ) -> 
B198: =COUNTIF(Fondo_Comun!$H$12:$H$102, ">0") >= ROW() - 1 -> FALSE | C198: =IF($B198, INDIRECT("Fondo_Comun!C" & SMALL(IF( Fondo_Comun!$H$12:$H$102 = "", "", ROW(Fondo_Comun!$H$12:$H$102)), ROW()-1)), "" ) ->  | D198: =IF($B198, INDIRECT("Fondo_Comun!D" & SMALL(IF( Fondo_Comun!$H$12:$H$102 = "", "", ROW(Fondo_Comun!$H$12:$H$102)), ROW()-1)), "" ) ->  | E198: =IF($B198, INDIRECT("Fondo_Comun!H" & SMALL(IF( Fondo_Comun!$H$12:$H$102 = "", "", ROW(Fondo_Comun!$H$12:$H$102)), ROW()-1)), "" ) ->  | F198: =IF( B198, SUM($E$2:E198), "" ) -> 
B199: =COUNTIF(Fondo_Comun!$H$12:$H$102, ">0") >= ROW() - 1 -> FALSE | C199: =IF($B199, INDIRECT("Fondo_Comun!C" & SMALL(IF( Fondo_Comun!$H$12:$H$102 = "", "", ROW(Fondo_Comun!$H$12:$H$102)), ROW()-1)), "" ) ->  | D199: =IF($B199, INDIRECT("Fondo_Comun!D" & SMALL(IF( Fondo_Comun!$H$12:$H$102 = "", "", ROW(Fondo_Comun!$H$12:$H$102)), ROW()-1)), "" ) ->  | E199: =IF($B199, INDIRECT("Fondo_Comun!H" & SMALL(IF( Fondo_Comun!$H$12:$H$102 = "", "", ROW(Fondo_Comun!$H$12:$H$102)), ROW()-1)), "" ) ->  | F199: =IF( B199, SUM($E$2:E199), "" ) -> 
B200: =COUNTIF(Fondo_Comun!$H$12:$H$102, ">0") >= ROW() - 1 -> FALSE | C200: =IF($B200, INDIRECT("Fondo_Comun!C" & SMALL(IF( Fondo_Comun!$H$12:$H$102 = "", "", ROW(Fondo_Comun!$H$12:$H$102)), ROW()-1)), "" ) ->  | D200: =IF($B200, INDIRECT("Fondo_Comun!D" & SMALL(IF( Fondo_Comun!$H$12:$H$102 = "", "", ROW(Fondo_Comun!$H$12:$H$102)), ROW()-1)), "" ) ->  | E200: =IF($B200, INDIRECT("Fondo_Comun!H" & SMALL(IF( Fondo_Comun!$H$12:$H$102 = "", "", ROW(Fondo_Comun!$H$12:$H$102)), ROW()-1)), "" ) ->  | F200: =IF( B200, SUM($E$2:E200), "" ) -> 
... 48 more rows

Sheet Hoja1
B6: Quisiera tener un solo grafico que me represente la hoja Mercantil y tambien la hoja Fondo_Comun
B7: un sollo grafico para las 2 hojas Mercantil y Fondo_Comun
B8: Podria ser un solo grafico pero Dividido o que las lineas o barras representen según colores, una y otra hoja, es decir,
B9: el grafico puede ser de lineas, columnas u otro tipo que se vea y sea facil, (principalmente facil) de describir al verlo
B10: y no sea tan pequeño pero que no sobrepase el tamaño de la pantalla y sin tener que correr la barra de desplazamiento
B11: La hoja para o del grafico pasaria a llamarse, Grafico
B12: No se si los graficos existentes, están mostrando o no los datos correctamente
B14: En caso negativo, agradezco me lo corrija
